Body Name,Body,Service Label,Service Code,Service Division ,Service Division Code,Organisational Unit,Expenditure Category - SeRCOP,Expenditure Code - SeRCOP,Expenditure Category - ProClass,Expenditure Code - ProClass,SeRCOP Detailed Expenditure Type,SeRCOP Detailed Expenditure Code,Date,Transaction Number,Amount,Capital and Revenue,Supplier Name,Supplier ID
Fareham Borough Council,http://statistics.data.gov.uk/id/local-authority/24UE,CULTURAL AND RELATED SERVICES,BV09,RECREATION AND SPORT,BV09B,DEPT OF LEISURE & COMMUNITY,PREMISES RELATED EXPENDITURE,2,Utilities,37,SEWERAGE & ENV. CHARGES (SWS),2410,19/07/2019,647235,1064.30 ,Revenue,SCOTTISH WATER BUSINESS STREAM LIMITED,SC294924
Fareham Borough Council,http://statistics.data.gov.uk/id/local-authority/24UE,ENVIRONMENT AND REGULATORY SER,BV03,ENVIRONMENTAL HEALTH,BV03C,STREETSCENE,PREMISES RELATED EXPENDITURE,2,Utilities,37,WATER CHARGES - SUPPLY (PWC),2400,19/07/2019,647958,1320.32 ,Revenue,SCOTTISH WATER BUSINESS STREAM LIMITED,SC294924
Fareham Borough Council,http://statistics.data.gov.uk/id/local-authority/24UE,HIGHWAYS ROADS AND TRANSPORT,BV12,PARKING SERVICES,BV12D,DEPT OF LEISURE & COMMUNITY,PREMISES RELATED EXPENDITURE,2,Utilities,37,SEWERAGE & ENV. CHARGES (SWS),2410,19/07/2019,648600,-760.06 ,Revenue,SCOTTISH WATER BUSINESS STREAM LIMITED,SC294924
Fareham Borough Council,http://statistics.data.gov.uk/id/local-authority/24UE,HIGHWAYS ROADS AND TRANSPORT,BV12,PARKING SERVICES,BV12D,DEPT OF LEISURE & COMMUNITY,PREMISES RELATED EXPENDITURE,2,Utilities,37,SEWERAGE & ENV. CHARGES (SWS),2410,19/07/2019,648601,-1106.14 ,Revenue,SCOTTISH WATER BUSINESS STREAM LIMITED,SC294924
Fareham Borough Council,http://statistics.data.gov.uk/id/local-authority/24UE,HIGHWAYS ROADS AND TRANSPORT,BV12,PARKING SERVICES,BV12D,DEPT OF LEISURE & COMMUNITY,PREMISES RELATED EXPENDITURE,2,Utilities,37,SEWERAGE & ENV. CHARGES (SWS),2410,19/07/2019,648602,-2919.57 ,Revenue,SCOTTISH WATER BUSINESS STREAM LIMITED,SC294924
Fareham Borough Council,http://statistics.data.gov.uk/id/local-authority/24UE,CORPORATE & DEMOCRATIC CORE,BV07A,CORPORATE MANAGEMENT,BV07AB,DEPT OF LEISURE & COMMUNITY,SUPPLIES & SERVICES,4,Information Communication Technology,27,GRANTS AND SUBSCRIPTIONS,4700,05/07/2019,649647,1194.00 ,Revenue,SNAP SURVEYS LTD,01672722
Fareham Borough Council,http://statistics.data.gov.uk/id/local-authority/24UE,CULTURAL AND RELATED SERVICES,BV09,CULTURE AND HERITAGE,BV09A,DEPT OF LEISURE & COMMUNITY,SUPPLIES & SERVICES,4,Catering,11,BAR PROVISIONS,4106,05/07/2019,650202,514.86 ,Revenue,MOLSON COORS BREWING COMPANY (UK) LTD,26018
Fareham Borough Council,http://statistics.data.gov.uk/id/local-authority/24UE,ENVIRONMENT AND REGULATORY SER,BV03,WASTE COLLECTION,BV03G,STREETSCENE,TRANSPORT RELATED EXPENDITURE,3,Vehicle Management,38,ROUTINE REPAIRS VEHICLES/PLANT,3010,05/07/2019,650249,676.83 ,Revenue,DENNIS EAGLE LIMITED,03794455
Fareham Borough Council,http://statistics.data.gov.uk/id/local-authority/24UE,PLANNING SERVICES,BV13,DEVELOPMENT CONTROL,BV13B,DEPT of STRATEGIC PLANNING and ENVIRONMENT,EMPLOYEES RELATED EXPENDITURE,1,Human Resources,26,AGENCY WORKERS,1050,05/07/2019,650260,519.11 ,Revenue,OFFICE ANGELS LTD,1985032
Fareham Borough Council,http://statistics.data.gov.uk/id/local-authority/24UE,CENTRAL SERVICES,BV07,CENTRAL SERVICES TO THE PUBLIC,BV07B,DEPT OF DEPUTY CHIEF EXECUTIVE,SUPPLIES & SERVICES,4,Mail Services�,30,POSTAGES,4500,12/07/2019,650265,15.48 ,Revenue,ROYAL MAIL,04138203
Fareham Borough Council,http://statistics.data.gov.uk/id/local-authority/24UE,CENTRAL SERVICES,BV07,CENTRAL SERVICES TO THE PUBLIC,BV07B,DEPT OF DEPUTY CHIEF EXECUTIVE,SUPPLIES & SERVICES,4,Mail Services�,30,POSTAGES,4500,12/07/2019,650265,334.03 ,Revenue,ROYAL MAIL,04138203
Fareham Borough Council,http://statistics.data.gov.uk/id/local-authority/24UE,OTHER REVENUE ACCOUNTS,RV,NON WORK GROUP HOLDING ACCOUNT,RV18,DEPT OF LEISURE & COMMUNITY,SUPPLIES & SERVICES,4,Mail Services�,30,POSTAGES,4500,12/07/2019,650265,4457.27 ,Revenue,ROYAL MAIL,04138203
Fareham Borough Council,http://statistics.data.gov.uk/id/local-authority/24UE,ENVIRONMENT AND REGULATORY SER,BV03,WASTE COLLECTION,BV03G,STREETSCENE,TRANSPORT RELATED EXPENDITURE,3,Vehicle Management,38,ROUTINE REPAIRS VEHICLES/PLANT,3010,12/07/2019,650272,1343.20 ,Revenue,DENNIS EAGLE LIMITED,03794455
Fareham Borough Council,http://statistics.data.gov.uk/id/local-authority/24UE,OTHER REVENUE ACCOUNTS,RV,NON WORK GROUP HOLDING ACCOUNT,RV18,DEPT OF SUPPORT SERVICES,SUPPLIES & SERVICES,4,Information Communication Technology,27,ICT PRINTING,4534,12/07/2019,650418,1829.25 ,Revenue,ANNODATA LTD,2246366
Fareham Borough Council,http://statistics.data.gov.uk/id/local-authority/24UE,ENVIRONMENT AND REGULATORY SER,BV03,WASTE COLLECTION,BV03G,STREETSCENE,TRANSPORT RELATED EXPENDITURE,3,Vehicle Management,38,ROUTINE REPAIRS VEHICLES/PLANT,3010,05/07/2019,650425,3107.08 ,Revenue,DENNIS EAGLE LIMITED,03794455
Fareham Borough Council,http://statistics.data.gov.uk/id/local-authority/24UE,ENVIRONMENT AND REGULATORY SER,BV03,WASTE COLLECTION,BV03G,STREETSCENE,TRANSPORT RELATED EXPENDITURE,3,Vehicle Management,38,ROUTINE REPAIRS VEHICLES/PLANT,3010,12/07/2019,650431,838.46 ,Revenue,DENNIS EAGLE LIMITED,03794455
Fareham Borough Council,http://statistics.data.gov.uk/id/local-authority/24UE,OTHER REVENUE ACCOUNTS,RV,NON WORK GROUP HOLDING ACCOUNT,RV18,DEPT OF SUPPORT SERVICES,SUPPLIES & SERVICES,4,Information Communication Technology,27,ICT HARDWARE,4532,12/07/2019,650436,2427.44 ,Revenue,KHIPU NETWORKS LIMITED,5218573
Fareham Borough Council,http://statistics.data.gov.uk/id/local-authority/24UE,OTHER REVENUE ACCOUNTS,RV,NON WORK GROUP HOLDING ACCOUNT,RV18,DEPT OF SUPPORT SERVICES,SUPPLIES & SERVICES,4,Information Communication Technology,27,ICT HARDWARE,4532,12/07/2019,650436,1133.94 ,Revenue,KHIPU NETWORKS LIMITED,5218573
Fareham Borough Council,http://statistics.data.gov.uk/id/local-authority/24UE,OTHER REVENUE ACCOUNTS,RV,NON WORK GROUP HOLDING ACCOUNT,RV18,DEPT OF SUPPORT SERVICES,SUPPLIES & SERVICES,4,Information Communication Technology,27,ICT HARDWARE,4532,12/07/2019,650436,994.94 ,Revenue,KHIPU NETWORKS LIMITED,5218573
Fareham Borough Council,http://statistics.data.gov.uk/id/local-authority/24UE,OTHER REVENUE ACCOUNTS,RV,NON WORK GROUP HOLDING ACCOUNT,RV18,DEPT OF SUPPORT SERVICES,SUPPLIES & SERVICES,4,Information Communication Technology,27,ICT HARDWARE,4532,12/07/2019,650436,1989.88 ,Revenue,KHIPU NETWORKS LIMITED,5218573
Fareham Borough Council,http://statistics.data.gov.uk/id/local-authority/24UE,ENVIRONMENT AND REGULATORY SER,BV03,WASTE COLLECTION,BV03G,STREETSCENE,EMPLOYEES RELATED EXPENDITURE,1,Human Resources,26,AGENCY WORKERS,1050,05/07/2019,650438,471.95 ,Revenue,THE BEST CONNECTION GROUP LTD,2600534
Fareham Borough Council,http://statistics.data.gov.uk/id/local-authority/24UE,ENVIRONMENT AND REGULATORY SER,BV03,WASTE COLLECTION,BV03G,STREETSCENE,EMPLOYEES RELATED EXPENDITURE,1,Human Resources,26,AGENCY WORKERS,1050,05/07/2019,650438,96.97 ,Revenue,THE BEST CONNECTION GROUP LTD,2600534
Fareham Borough Council,http://statistics.data.gov.uk/id/local-authority/24UE,ENVIRONMENT AND REGULATORY SER,BV03,WASTE COLLECTION,BV03G,STREETSCENE,EMPLOYEES RELATED EXPENDITURE,1,Human Resources,26,AGENCY WORKERS,1050,05/07/2019,650438,96.98 ,Revenue,THE BEST CONNECTION GROUP LTD,2600534
Fareham Borough Council,http://statistics.data.gov.uk/id/local-authority/24UE,CAPITAL PROGRAMME - OTHER SERVICES,CP,CAPITAL PROPERTY SERVICES,CP23,CAPITAL - FINANCE & RESOURCES CAPITAL,SUPPLIES & SERVICES,4,Utilities,37,CONSULTANTS FEES,4401,19/07/2019,650447,1722.50 ,Capital,ENERGY CONNECTION SERVICES LTD,10548097
Fareham Borough Council,http://statistics.data.gov.uk/id/local-authority/24UE,CAPITAL PROGRAMME - OTHER SERVICES,CP,CAPITAL PROPERTY SERVICES,CP23,CAPITAL - FINANCE & RESOURCES CAPITAL,SUPPLIES & SERVICES,4,Utilities,37,CONSULTANTS FEES,4401,19/07/2019,650448,1720.00 ,Capital,ENERGY CONNECTION SERVICES LTD,10548097
Fareham Borough Council,http://statistics.data.gov.uk/id/local-authority/24UE,CAPITAL PROGRAMME - OTHER SERVICES,CP,CAPITAL PROPERTY SERVICES,CP23,CAPITAL - FINANCE & RESOURCES CAPITAL,SUPPLIES & SERVICES,4,Utilities,37,CONSULTANTS FEES,4401,19/07/2019,650449,750.00 ,Capital,ENERGY CONNECTION SERVICES LTD,10548097
Fareham Borough Council,http://statistics.data.gov.uk/id/local-authority/24UE,CULTURAL AND RELATED SERVICES,BV09,CULTURE AND HERITAGE,BV09A,DEPT OF LEISURE & COMMUNITY,PREMISES RELATED EXPENDITURE,2,Facilities & Management Services,19,R & M OF BUILDINGS,2000,05/07/2019,650709,507.00 ,Revenue,CHRISTIE INTRUDER ALARMS LTD,01036542
Fareham Borough Council,http://statistics.data.gov.uk/id/local-authority/24UE,CAPITAL PROGRAMME - HOUSING SERVICES,CP,NEW HOUSE BUILDING,CP10,CAPITAL - FAREHAM HOUSING CAPITAL,PREMISES RELATED EXPENDITURE,2,Environmental Services,18,BUILDING CONSTRUCTION,2602,05/07/2019,650784,13886.00 ,Capital,PORTSMOUTH DEMOLITION & SALVAGE LTD,7073246
Fareham Borough Council,http://statistics.data.gov.uk/id/local-authority/24UE,ENVIRONMENT AND REGULATORY SER,BV03,ENVIRONMENTAL HEALTH,BV03C,DEPT OF LEISURE & COMMUNITY,SUPPLIES & SERVICES,4,Consultancy,15,CONSULTANTS FEES,4401,05/07/2019,650795,4420.00 ,Revenue,ATKINS LIMITED,00688424
Fareham Borough Council,http://statistics.data.gov.uk/id/local-authority/24UE,OTHER REVENUE ACCOUNTS,RV,NON WORK GROUP HOLDING ACCOUNT,RV18,DEPT OF SUPPORT SERVICES,SUPPLIES & SERVICES,4,Information Communication Technology,27,ICT SOFTWARE LICENCES,4530,19/07/2019,650796,2685.14 ,Revenue,BYTES SOFTWARE SERVICES LTD,1616977
Fareham Borough Council,http://statistics.data.gov.uk/id/local-authority/24UE,HOUSING REVENUE ACCOUNT,BV06,GENERAL ADMINISTRATION EXPENSE,5021,DEPT OF DEPUTY CHIEF EXECUTIVE,EMPLOYEES RELATED EXPENDITURE,1,Human Resources,26,AGENCY WORKERS,1050,05/07/2019,650798,1042.40 ,Revenue,JAMES ANDREWS RECRUITMENT SOLUTIONS LTD,06834852
Fareham Borough Council,http://statistics.data.gov.uk/id/local-authority/24UE,ENVIRONMENT AND REGULATORY SER,BV03,WASTE COLLECTION,BV03G,STREETSCENE,EMPLOYEES RELATED EXPENDITURE,1,Human Resources,26,AGENCY WORKERS,1050,12/07/2019,650805,284.46 ,Revenue,THE BEST CONNECTION GROUP LTD,2600534
Fareham Borough Council,http://statistics.data.gov.uk/id/local-authority/24UE,ENVIRONMENT AND REGULATORY SER,BV03,WASTE COLLECTION,BV03G,STREETSCENE,EMPLOYEES RELATED EXPENDITURE,1,Human Resources,26,AGENCY WORKERS,1050,12/07/2019,650805,284.46 ,Revenue,THE BEST CONNECTION GROUP LTD,2600534
Fareham Borough Council,http://statistics.data.gov.uk/id/local-authority/24UE,ENVIRONMENT AND REGULATORY SER,BV03,WASTE COLLECTION,BV03G,STREETSCENE,EMPLOYEES RELATED EXPENDITURE,1,Human Resources,26,AGENCY WORKERS,1050,12/07/2019,650805,96.98 ,Revenue,THE BEST CONNECTION GROUP LTD,2600534
Fareham Borough Council,http://statistics.data.gov.uk/id/local-authority/24UE,ENVIRONMENT AND REGULATORY SER,BV03,FLOOD DEFENCE & LAND DRAINAGE,BV03D,DEPT of STRATEGIC PLANNING and ENVIRONMENT,PREMISES RELATED EXPENDITURE,2,"Works - Construction, Repair & Maintenance",39,R&M OF GROUNDS,2060,05/07/2019,650814,19646.45 ,Revenue,EARLCOATE CONSTRUCTION AND PLANT HIRE,4196599
Fareham Borough Council,http://statistics.data.gov.uk/id/local-authority/24UE,CAPITAL PROGRAMME - OTHER SERVICES,CP,CAPITAL PROPERTY SERVICES,CP23,CAPITAL - FINANCE & RESOURCES CAPITAL,PREMISES RELATED EXPENDITURE,2,"Works - Construction, Repair & Maintenance",39,R & M OF BUILDINGS,2000,05/07/2019,650847,32371.03 ,Capital,PT CONTRACTORS LTD,01785514
Fareham Borough Council,http://statistics.data.gov.uk/id/local-authority/24UE,PLANNING SERVICES,BV13,COMMUNITY DEVELOPMENT,BV13H,DEPT OF LEISURE & COMMUNITY,SUPPLIES & SERVICES,4,Art & Leisure Services,29,COMMUNITY EVENTS,4986,05/07/2019,650853,6300.00 ,Revenue,COLES VENTURES,
Fareham Borough Council,http://statistics.data.gov.uk/id/local-authority/24UE,HOUSING REVENUE ACCOUNT,BV06,RESPONSIVE & VOID MAINTENANCE,5901,DEPT OF DEPUTY CHIEF EXECUTIVE,PREMISES RELATED EXPENDITURE,2,Consultancy,15,GENERAL REPAIRS,2018,19/07/2019,650882,608.00 ,Revenue,GAS CONTRACT SERVICES LIMITED,3400365
Fareham Borough Council,http://statistics.data.gov.uk/id/local-authority/24UE,CULTURAL AND RELATED SERVICES,BV09,CULTURE AND HERITAGE,BV09A,DEPT OF LEISURE & COMMUNITY,SUPPLIES & SERVICES,4,Catering,11,BAR PROVISIONS,4106,12/07/2019,650883,894.06 ,Revenue,MOLSON COORS BREWING COMPANY (UK) LTD,26018
Fareham Borough Council,http://statistics.data.gov.uk/id/local-authority/24UE,OTHER REVENUE ACCOUNTS,RV,NON WORK GROUP HOLDING ACCOUNT,RV18,STREETSCENE,TRANSPORT RELATED EXPENDITURE,3,Vehicle Management,38,HIRE OF VEHICLES,3210,19/07/2019,650885,961.98 ,Revenue,TOYOTA MATERIAL HANDLING UK,06265172
Fareham Borough Council,http://statistics.data.gov.uk/id/local-authority/24UE,PLANNING SERVICES,BV13,COMMUNITY DEVELOPMENT,BV13H,DEPT OF LEISURE & COMMUNITY,SUPPLIES & SERVICES,4,Information Communication Technology,27,COMMUNITY EVENTS,4986,05/07/2019,650937,2510.00 ,Revenue,PROFILE PRODUCTIONS,
Fareham Borough Council,http://statistics.data.gov.uk/id/local-authority/24UE,CENTRAL SERVICES,BV07,CENTRAL SERVICES TO THE PUBLIC,BV07B,DEPT OF SUPPORT SERVICES,SUPPLIES & SERVICES,4,Mail Services�,30,POSTAGES,4500,12/07/2019,650939,775.25 ,Revenue,ROYAL MAIL,04138203
Fareham Borough Council,http://statistics.data.gov.uk/id/local-authority/24UE,ENVIRONMENT AND REGULATORY SER,BV03,FLOOD DEFENCE & LAND DRAINAGE,BV03D,DEPT of STRATEGIC PLANNING and ENVIRONMENT,PREMISES RELATED EXPENDITURE,2,"Works - Construction, Repair & Maintenance",39,R&M OF GROUNDS,2060,05/07/2019,651154,-19646.45 ,Revenue,EARLCOATE CONSTRUCTION AND PLANT HIRE,4196599
Fareham Borough Council,http://statistics.data.gov.uk/id/local-authority/24UE,PLANNING SERVICES,BV13,ECONOMIC DEVELOPMENT,BV13E,DEPT OF LEISURE & COMMUNITY,SUPPLIES & SERVICES,4,Environmental Services,18,OTHER SERVICES,4499,05/07/2019,651162,465.00 ,Revenue,RITAGATE LTD,1562914
Fareham Borough Council,http://statistics.data.gov.uk/id/local-authority/24UE,PLANNING SERVICES,BV13,ECONOMIC DEVELOPMENT,BV13E,DEPT OF LEISURE & COMMUNITY,SUPPLIES & SERVICES,4,Environmental Services,18,OTHER SERVICES,4499,05/07/2019,651162,1243.40 ,Revenue,RITAGATE LTD,1562914
Fareham Borough Council,http://statistics.data.gov.uk/id/local-authority/24UE,ENVIRONMENT AND REGULATORY SER,BV03,WASTE COLLECTION,BV03G,STREETSCENE,EMPLOYEES RELATED EXPENDITURE,1,Human Resources,26,AGENCY WORKERS,1050,19/07/2019,651166,381.44 ,Revenue,THE BEST CONNECTION GROUP LTD,2600534
Fareham Borough Council,http://statistics.data.gov.uk/id/local-authority/24UE,ENVIRONMENT AND REGULATORY SER,BV03,WASTE COLLECTION,BV03G,STREETSCENE,EMPLOYEES RELATED EXPENDITURE,1,Human Resources,26,AGENCY WORKERS,1050,19/07/2019,651166,187.48 ,Revenue,THE BEST CONNECTION GROUP LTD,2600534
Fareham Borough Council,http://statistics.data.gov.uk/id/local-authority/24UE,ENVIRONMENT AND REGULATORY SER,BV03,WASTE COLLECTION,BV03G,STREETSCENE,EMPLOYEES RELATED EXPENDITURE,1,Human Resources,26,AGENCY WORKERS,1050,19/07/2019,651166,193.95 ,Revenue,THE BEST CONNECTION GROUP LTD,2600534
Fareham Borough Council,http://statistics.data.gov.uk/id/local-authority/24UE,OTHER REVENUE ACCOUNTS,RV,G.F. EXPENDITURE ON SERVICES,RV10,STREETSCENE,SUPPLIES & SERVICES,4,Building Construction Materials,10,TOOLS & EQUIPMENT,4002,05/07/2019,651169,641.97 ,Revenue,LANDSCAPE SUPPLY COMPANY,
Fareham Borough Council,http://statistics.data.gov.uk/id/local-authority/24UE,OTHER REVENUE ACCOUNTS,RV,G.F. EXPENDITURE ON SERVICES,RV10,STREETSCENE,SUPPLIES & SERVICES,4,Building Construction Materials,10,TOOLS & EQUIPMENT,4002,05/07/2019,651169,895.50 ,Revenue,LANDSCAPE SUPPLY COMPANY,
Fareham Borough Council,http://statistics.data.gov.uk/id/local-authority/24UE,OTHER REVENUE ACCOUNTS,RV,NON WORK GROUP HOLDING ACCOUNT,RV18,DEPT OF SUPPORT SERVICES,EMPLOYEES RELATED EXPENDITURE,1,Healthcare,31,MEDICAL EXPENSES,1907,05/07/2019,651172,660.00 ,Revenue,CHARTERHOUSE COUNSELLING,
Fareham Borough Council,http://statistics.data.gov.uk/id/local-authority/24UE,PLANNING SERVICES,BV13,DEVELOPMENT CONTROL,BV13B,DEPT of STRATEGIC PLANNING and ENVIRONMENT,SUPPLIES & SERVICES,4,Environmental Services,18,CONSULTANTS FEES,4401,19/07/2019,651173,18826.00 ,Revenue,RICARDO-ENERGY & ENVIRONMENT,8229264
Fareham Borough Council,http://statistics.data.gov.uk/id/local-authority/24UE,CULTURAL AND RELATED SERVICES,BV09,RECREATION AND SPORT,BV09B,STREETSCENE,PREMISES RELATED EXPENDITURE,2,Building Construction Materials,10,R & M OF FENCING,2061,12/07/2019,651176,841.00 ,Revenue,J D C OUTDOOR SERVICES,05941402
Fareham Borough Council,http://statistics.data.gov.uk/id/local-authority/24UE,FINANCING & INVESTMENT I&E,BVB02,INVESTMENT PROPERTIES,BVB170,DEPT of STRATEGIC PLANNING and ENVIRONMENT,SUPPLIES & SERVICES,4,Consultancy,15,CONSULTANTS FEES,4401,19/07/2019,651183,2581.50 ,Revenue,MACE LIMITED,2410626
Fareham Borough Council,http://statistics.data.gov.uk/id/local-authority/24UE,BALANCE SHEET,BS,BAL. SHEET - D.S.O.,BS1,BAL. SHEET - D.S.O.,TOTAL ASSETS LESS LIABILITIES,BS100,Vehicle Management,38,MATERIALS SUSPENSE ACCOUNT (VE,A016,12/07/2019,651186,18367.50 ,Balance Sheet,WESSEX PETROLEUM LTD,01024472
Fareham Borough Council,http://statistics.data.gov.uk/id/local-authority/24UE,ENVIRONMENT AND REGULATORY SER,BV03,WASTE COLLECTION,BV03G,STREETSCENE,TRANSPORT RELATED EXPENDITURE,3,Vehicle Management,38,ROUTINE REPAIRS VEHICLES/PLANT,3010,19/07/2019,651204,2309.35 ,Revenue,MC TRUCK & BUS LTD,01241061
Fareham Borough Council,http://statistics.data.gov.uk/id/local-authority/24UE,GENERAL FUND HOUSING,BV05,HOUSING ADVICE,BV05C,DEPT OF DEPUTY CHIEF EXECUTIVE,SUPPLIES & SERVICES,4,Information Communication Technology,27,MOBILE TELEPHONES,4514,19/07/2019,651209,10.67 ,Revenue,VODAFONE LIMITED,01471587
Fareham Borough Council,http://statistics.data.gov.uk/id/local-authority/24UE,OTHER REVENUE ACCOUNTS,RV,NON WORK GROUP HOLDING ACCOUNT,RV18,DEPT OF SUPPORT SERVICES,SUPPLIES & SERVICES,4,Information Communication Technology,27,MOBILE TELEPHONES,4514,19/07/2019,651209,2566.72 ,Revenue,VODAFONE LIMITED,01471587
Fareham Borough Council,http://statistics.data.gov.uk/id/local-authority/24UE,HOUSING REVENUE ACCOUNT,BV06,RESPONSIVE & VOID MAINTENANCE,5901,DEPT OF DEPUTY CHIEF EXECUTIVE,PREMISES RELATED EXPENDITURE,2,Cleaning & Janitorial,13,GENERAL REPAIRS,2018,05/07/2019,651211,910.00 ,Revenue,PURE SHORE LTD,8353234
Fareham Borough Council,http://statistics.data.gov.uk/id/local-authority/24UE,CAPITAL PROGRAMME - OTHER SERVICES,CP,CAPITAL PROPERTY SERVICES,CP23,CAPITAL - FINANCE & RESOURCES CAPITAL,PREMISES RELATED EXPENDITURE,2,"Works - Construction, Repair & Maintenance",39,R & M OF BUILDINGS,2000,05/07/2019,651218,10643.75 ,Capital,MOUNTJOY LTD,06009150
Fareham Borough Council,http://statistics.data.gov.uk/id/local-authority/24UE,CULTURAL AND RELATED SERVICES,BV09,CULTURE AND HERITAGE,BV09A,DEPT OF LEISURE & COMMUNITY,PREMISES RELATED EXPENDITURE,2,"Works - Construction, Repair & Maintenance",39,R & M OF BUILDINGS,2000,05/07/2019,651219,230.47 ,Revenue,BCG ELECTRICAL SERVICES LIMITED,5097428
Fareham Borough Council,http://statistics.data.gov.uk/id/local-authority/24UE,CULTURAL AND RELATED SERVICES,BV09,RECREATION AND SPORT,BV09B,DEPT OF LEISURE & COMMUNITY,PREMISES RELATED EXPENDITURE,2,"Works - Construction, Repair & Maintenance",39,R & M OF BUILDINGS,2000,05/07/2019,651219,839.60 ,Revenue,BCG ELECTRICAL SERVICES LIMITED,5097428
Fareham Borough Council,http://statistics.data.gov.uk/id/local-authority/24UE,HIGHWAYS ROADS AND TRANSPORT,BV12,PARKING SERVICES,BV12D,DEPT OF LEISURE & COMMUNITY,PREMISES RELATED EXPENDITURE,2,"Works - Construction, Repair & Maintenance",39,R & M OF BUILDINGS,2000,05/07/2019,651219,456.18 ,Revenue,BCG ELECTRICAL SERVICES LIMITED,5097428
Fareham Borough Council,http://statistics.data.gov.uk/id/local-authority/24UE,ENVIRONMENT AND REGULATORY SER,BV03,ENVIRONMENTAL HEALTH,BV03C,STREETSCENE,PREMISES RELATED EXPENDITURE,2,"Works - Construction, Repair & Maintenance",39,R & M OF BUILDINGS,2000,05/07/2019,651219,131.43 ,Revenue,BCG ELECTRICAL SERVICES LIMITED,5097428
Fareham Borough Council,http://statistics.data.gov.uk/id/local-authority/24UE,OTHER REVENUE ACCOUNTS,RV,NON WORK GROUP HOLDING ACCOUNT,RV18,DEPT of STRATEGIC PLANNING and ENVIRONMENT,PREMISES RELATED EXPENDITURE,2,"Works - Construction, Repair & Maintenance",39,R & M OF BUILDINGS,2000,05/07/2019,651219,1117.70 ,Revenue,BCG ELECTRICAL SERVICES LIMITED,5097428
Fareham Borough Council,http://statistics.data.gov.uk/id/local-authority/24UE,OTHER REVENUE ACCOUNTS,RV,NON WORK GROUP HOLDING ACCOUNT,RV18,DEPT of STRATEGIC PLANNING and ENVIRONMENT,PREMISES RELATED EXPENDITURE,2,"Works - Construction, Repair & Maintenance",39,R & M OF BUILDINGS,2000,05/07/2019,651219,79.20 ,Revenue,BCG ELECTRICAL SERVICES LIMITED,5097428
Fareham Borough Council,http://statistics.data.gov.uk/id/local-authority/24UE,ENVIRONMENT AND REGULATORY SER,BV03,CEMETERIES CREM & MORTUARY,BV03A,STREETSCENE,PREMISES RELATED EXPENDITURE,2,Utilities,37,ELECTRICITY,2120,05/07/2019,651220,28.11 ,Revenue,BRITISH GAS BUSINESS,03078711
Fareham Borough Council,http://statistics.data.gov.uk/id/local-authority/24UE,FINANCING & INVESTMENT I&E,BVB02,INVESTMENT PROPERTIES,BVB170,DEPT of STRATEGIC PLANNING and ENVIRONMENT,PREMISES RELATED EXPENDITURE,2,Utilities,37,ELECTRICITY,2120,05/07/2019,651220,407.30 ,Revenue,BRITISH GAS BUSINESS,03078711
Fareham Borough Council,http://statistics.data.gov.uk/id/local-authority/24UE,CULTURAL AND RELATED SERVICES,BV09,RECREATION AND SPORT,BV09B,STREETSCENE,PREMISES RELATED EXPENDITURE,2,Utilities,37,ELECTRICITY,2120,05/07/2019,651220,814.16 ,Revenue,BRITISH GAS BUSINESS,03078711
Fareham Borough Council,http://statistics.data.gov.uk/id/local-authority/24UE,CULTURAL AND RELATED SERVICES,BV09,RECREATION AND SPORT,BV09B,STREETSCENE,PREMISES RELATED EXPENDITURE,2,Utilities,37,ELECTRICITY,2120,05/07/2019,651220,381.20 ,Revenue,BRITISH GAS BUSINESS,03078711
Fareham Borough Council,http://statistics.data.gov.uk/id/local-authority/24UE,CULTURAL AND RELATED SERVICES,BV09,RECREATION AND SPORT,BV09B,DEPT OF LEISURE & COMMUNITY,PREMISES RELATED EXPENDITURE,2,Utilities,37,ELECTRICITY,2120,05/07/2019,651220,145.20 ,Revenue,BRITISH GAS BUSINESS,03078711
Fareham Borough Council,http://statistics.data.gov.uk/id/local-authority/24UE,HIGHWAYS ROADS AND TRANSPORT,BV12,PARKING SERVICES,BV12D,DEPT OF LEISURE & COMMUNITY,PREMISES RELATED EXPENDITURE,2,Utilities,37,ELECTRICITY,2120,05/07/2019,651220,5297.88 ,Revenue,BRITISH GAS BUSINESS,03078711
Fareham Borough Council,http://statistics.data.gov.uk/id/local-authority/24UE,ENVIRONMENT AND REGULATORY SER,BV03,ENVIRONMENTAL HEALTH,BV03C,STREETSCENE,PREMISES RELATED EXPENDITURE,2,Utilities,37,ELECTRICITY,2120,05/07/2019,651220,274.65 ,Revenue,BRITISH GAS BUSINESS,03078711
Fareham Borough Council,http://statistics.data.gov.uk/id/local-authority/24UE,HOUSING REVENUE ACCOUNT,BV06,COMMUNAL HEATING SERVICES,5025,DEPT OF DEPUTY CHIEF EXECUTIVE,PREMISES RELATED EXPENDITURE,2,Utilities,37,ELECTRICITY,2120,05/07/2019,651220,8.08 ,Revenue,BRITISH GAS BUSINESS,03078711
Fareham Borough Council,http://statistics.data.gov.uk/id/local-authority/24UE,HOUSING REVENUE ACCOUNT,BV06,COMMUNAL HEATING SERVICES,5025,DEPT OF DEPUTY CHIEF EXECUTIVE,PREMISES RELATED EXPENDITURE,2,Utilities,37,ELECTRICITY,2120,05/07/2019,651220,2856.64 ,Revenue,BRITISH GAS BUSINESS,03078711
Fareham Borough Council,http://statistics.data.gov.uk/id/local-authority/24UE,HOUSING REVENUE ACCOUNT,BV06,COMMUNAL LIGHTING,5026,DEPT OF DEPUTY CHIEF EXECUTIVE,PREMISES RELATED EXPENDITURE,2,Utilities,37,ELECTRICITY,2120,05/07/2019,651220,562.40 ,Revenue,BRITISH GAS BUSINESS,03078711
Fareham Borough Council,http://statistics.data.gov.uk/id/local-authority/24UE,HOUSING REVENUE ACCOUNT,BV06,COMMUNAL LIGHTING,5026,DEPT OF DEPUTY CHIEF EXECUTIVE,PREMISES RELATED EXPENDITURE,2,Utilities,37,ELECTRICITY,2120,05/07/2019,651220,257.34 ,Revenue,BRITISH GAS BUSINESS,03078711
Fareham Borough Council,http://statistics.data.gov.uk/id/local-authority/24UE,HOUSING REVENUE ACCOUNT,BV06,OTHER COMMUNAL SERVICES,5034,DEPT OF DEPUTY CHIEF EXECUTIVE,PREMISES RELATED EXPENDITURE,2,Utilities,37,AERIALS & TV OUTLETS,2540,05/07/2019,651220,23.86 ,Revenue,BRITISH GAS BUSINESS,03078711
Fareham Borough Council,http://statistics.data.gov.uk/id/local-authority/24UE,OTHER REVENUE ACCOUNTS,RV,NON WORK GROUP HOLDING ACCOUNT,RV18,DEPT of STRATEGIC PLANNING and ENVIRONMENT,PREMISES RELATED EXPENDITURE,2,Utilities,37,ELECTRICITY,2120,05/07/2019,651220,1033.84 ,Revenue,BRITISH GAS BUSINESS,03078711
Fareham Borough Council,http://statistics.data.gov.uk/id/local-authority/24UE,OTHER REVENUE ACCOUNTS,RV,CONTRACT SERVICES D.S.O.,RV14,DEPT of STRATEGIC PLANNING and ENVIRONMENT,SUPPLIES & SERVICES,4,Local/Central Government,,SUB-CONTRACTORS CHARGES,4432,05/07/2019,651223,1882.00 ,Revenue,BASINGSTOKE and DEANE BOROUGH COUNCIL,
Fareham Borough Council,http://statistics.data.gov.uk/id/local-authority/24UE,HOUSING REVENUE ACCOUNT,BV06,OTHER COMMUNAL SERVICES,5034,DEPT OF DEPUTY CHIEF EXECUTIVE,PREMISES RELATED EXPENDITURE,2,Utilities,37,SEWERAGE & ENV. CHARGES (SWS),2410,05/07/2019,651227,1932.62 ,Revenue,SOUTHERN WATER SERVICES PLC,02366670
Fareham Borough Council,http://statistics.data.gov.uk/id/local-authority/24UE,GENERAL FUND HOUSING,BV05,HOMELESSNESS,BV05F,DEPT OF DEPUTY CHIEF EXECUTIVE,SUPPLIES & SERVICES,4,Social Community Care Supplies & Services,32,BED & BREAKFAST EXPENSES,4943,05/07/2019,651230,560.00 ,Revenue,WESTCOTE BED AND BREAKFAST,
Fareham Borough Council,http://statistics.data.gov.uk/id/local-authority/24UE,GENERAL FUND HOUSING,BV05,HOMELESSNESS,BV05F,DEPT OF DEPUTY CHIEF EXECUTIVE,SUPPLIES & SERVICES,4,Social Community Care Supplies & Services,32,BED & BREAKFAST EXPENSES,4943,05/07/2019,651231,560.00 ,Revenue,WESTCOTE BED AND BREAKFAST,
Fareham Borough Council,http://statistics.data.gov.uk/id/local-authority/24UE,BALANCE SHEET,BS,BAL. SHEET - GENERAL FUND,BS1,BAL. SHEET - GENERAL FUND,TOTAL ASSETS LESS LIABILITIES,BS100,Local/Central Government,98,SRMP RESERVE FUND,L116,05/07/2019,651237,7275.00 ,Balance Sheet,CHICHESTER DISTRICT COUNCIL,
Fareham Borough Council,http://statistics.data.gov.uk/id/local-authority/24UE,ENVIRONMENT AND REGULATORY SER,BV03,CEMETERIES CREM & MORTUARY,BV03A,STREETSCENE,PREMISES RELATED EXPENDITURE,2,Utilities,37,R & M OF BUILDINGS,2000,19/07/2019,651238,19.08 ,Revenue,LIBERTY GAS GROUP LTD,04242416
Fareham Borough Council,http://statistics.data.gov.uk/id/local-authority/24UE,FINANCING & INVESTMENT I&E,BVB02,INVESTMENT PROPERTIES,BVB170,DEPT of STRATEGIC PLANNING and ENVIRONMENT,PREMISES RELATED EXPENDITURE,2,Utilities,37,R & M OF BUILDINGS,2000,19/07/2019,651238,103.59 ,Revenue,LIBERTY GAS GROUP LTD,04242416
Fareham Borough Council,http://statistics.data.gov.uk/id/local-authority/24UE,CULTURAL AND RELATED SERVICES,BV09,RECREATION AND SPORT,BV09B,STREETSCENE,PREMISES RELATED EXPENDITURE,2,Utilities,37,R & M OF BUILDINGS,2000,19/07/2019,651238,133.58 ,Revenue,LIBERTY GAS GROUP LTD,04242416
Fareham Borough Council,http://statistics.data.gov.uk/id/local-authority/24UE,CULTURAL AND RELATED SERVICES,BV09,CULTURE AND HERITAGE,BV09A,DEPT OF LEISURE & COMMUNITY,PREMISES RELATED EXPENDITURE,2,Utilities,37,R & M OF BUILDINGS,2000,19/07/2019,651238,65.42 ,Revenue,LIBERTY GAS GROUP LTD,04242416
Fareham Borough Council,http://statistics.data.gov.uk/id/local-authority/24UE,CULTURAL AND RELATED SERVICES,BV09,RECREATION AND SPORT,BV09B,DEPT OF LEISURE & COMMUNITY,PREMISES RELATED EXPENDITURE,2,Utilities,37,R & M OF BUILDINGS,2000,19/07/2019,651238,38.17 ,Revenue,LIBERTY GAS GROUP LTD,04242416
Fareham Borough Council,http://statistics.data.gov.uk/id/local-authority/24UE,FINANCING & INVESTMENT I&E,BVB02,INVESTMENT PROPERTIES,BVB170,DEPT OF LEISURE & COMMUNITY,PREMISES RELATED EXPENDITURE,2,Utilities,37,R & M OF BUILDINGS,2000,19/07/2019,651238,38.17 ,Revenue,LIBERTY GAS GROUP LTD,04242416
Fareham Borough Council,http://statistics.data.gov.uk/id/local-authority/24UE,CAPITAL PROGRAMME - HOUSING SERVICES,CP,RENOVATION OF L.A. DWELLINGS,CP10,CAPITAL - FAREHAM HOUSING CAPITAL,PREMISES RELATED EXPENDITURE,2,Utilities,37,R & M OF BUILDINGS,2000,19/07/2019,651238,7872.18 ,Capital,LIBERTY GAS GROUP LTD,04242416
Fareham Borough Council,http://statistics.data.gov.uk/id/local-authority/24UE,HOUSING REVENUE ACCOUNT,BV06,RESPONSIVE & VOID MAINTENANCE,5901,DEPT OF DEPUTY CHIEF EXECUTIVE,PREMISES RELATED EXPENDITURE,2,Utilities,37,GAS SERVICING & ASSOC REPAIRS,2029,19/07/2019,651238,16456.91 ,Revenue,LIBERTY GAS GROUP LTD,04242416
Fareham Borough Council,http://statistics.data.gov.uk/id/local-authority/24UE,OTHER REVENUE ACCOUNTS,RV,NON WORK GROUP HOLDING ACCOUNT,RV18,DEPT of STRATEGIC PLANNING and ENVIRONMENT,PREMISES RELATED EXPENDITURE,2,Utilities,37,R & M OF FIXED PLANT,2040,19/07/2019,651238,65.42 ,Revenue,LIBERTY GAS GROUP LTD,04242416
Fareham Borough Council,http://statistics.data.gov.uk/id/local-authority/24UE,OTHER REVENUE ACCOUNTS,RV,NON WORK GROUP HOLDING ACCOUNT,RV18,DEPT of STRATEGIC PLANNING and ENVIRONMENT,PREMISES RELATED EXPENDITURE,2,Utilities,37,R & M OF FIXED PLANT,2040,19/07/2019,651238,65.42 ,Revenue,LIBERTY GAS GROUP LTD,04242416
Fareham Borough Council,http://statistics.data.gov.uk/id/local-authority/24UE,ENVIRONMENT AND REGULATORY SER,BV03,COAST PROTECTION,BV03B,DEPT of STRATEGIC PLANNING and ENVIRONMENT,PREMISES RELATED EXPENDITURE,2,"Works - Construction, Repair & Maintenance",39,R&M OF GROUNDS,2060,05/07/2019,651240,19155.29 ,Revenue,EARLCOATE CONSTRUCTION AND PLANT HIRE,4196599
Fareham Borough Council,http://statistics.data.gov.uk/id/local-authority/24UE,HOUSING REVENUE ACCOUNT,BV06,OTHER COMMUNAL SERVICES,5034,DEPT OF DEPUTY CHIEF EXECUTIVE,PREMISES RELATED EXPENDITURE,2,Utilities,37,WATER CHARGES - SUPPLY (PWC),2400,05/07/2019,651241,681.91 ,Revenue,PORTSMOUTH WATER LTD,02536455
Fareham Borough Council,http://statistics.data.gov.uk/id/local-authority/24UE,HOUSING REVENUE ACCOUNT,BV06,OTHER COMMUNAL SERVICES,5034,DEPT OF DEPUTY CHIEF EXECUTIVE,PREMISES RELATED EXPENDITURE,2,Utilities,37,SEWERAGE & ENV. CHARGES (SWS),2410,05/07/2019,651245,8239.58 ,Revenue,SOUTHERN WATER SERVICES PLC,02366670
Fareham Borough Council,http://statistics.data.gov.uk/id/local-authority/24UE,HOUSING REVENUE ACCOUNT,BV06,OTHER COMMUNAL SERVICES,5034,DEPT OF DEPUTY CHIEF EXECUTIVE,PREMISES RELATED EXPENDITURE,2,Utilities,37,SEWERAGE & ENV. CHARGES (SWS),2410,05/07/2019,651246,1838.72 ,Revenue,SOUTHERN WATER SERVICES PLC,02366670
Fareham Borough Council,http://statistics.data.gov.uk/id/local-authority/24UE,CULTURAL AND RELATED SERVICES,BV09,RECREATION AND SPORT,BV09B,STREETSCENE,TRANSPORT RELATED EXPENDITURE,3,Unclassified,,VEHICLE LICENCES,3023,05/07/2019,651252,260.00 ,Revenue,DVLA SWANSEA,
Fareham Borough Council,http://statistics.data.gov.uk/id/local-authority/24UE,OTHER REVENUE ACCOUNTS,RV,G.F. EXPENDITURE ON SERVICES,RV10,STREETSCENE,TRANSPORT RELATED EXPENDITURE,3,Unclassified,,VEHICLE LICENCES,3023,05/07/2019,651252,260.00 ,Revenue,DVLA SWANSEA,
Fareham Borough Council,http://statistics.data.gov.uk/id/local-authority/24UE,ENVIRONMENT AND REGULATORY SER,BV03,STREET CLEANSING,BV03F,STREETSCENE,TRANSPORT RELATED EXPENDITURE,3,Unclassified,,VEHICLE LICENCES,3023,05/07/2019,651253,260.00 ,Revenue,DVLA SWANSEA,
Fareham Borough Council,http://statistics.data.gov.uk/id/local-authority/24UE,ENVIRONMENT AND REGULATORY SER,BV03,STREET CLEANSING,BV03F,STREETSCENE,TRANSPORT RELATED EXPENDITURE,3,Unclassified,,VEHICLE LICENCES,3023,05/07/2019,651253,260.00 ,Revenue,DVLA SWANSEA,
Fareham Borough Council,http://statistics.data.gov.uk/id/local-authority/24UE,OTHER REVENUE ACCOUNTS,RV,CONTRACT SERVICES D.S.O.,RV14,DEPT OF DEPUTY CHIEF EXECUTIVE,TRANSPORT RELATED EXPENDITURE,3,Unclassified,,VEHICLE LICENCES,3023,05/07/2019,651253,260.00 ,Revenue,DVLA SWANSEA,
Fareham Borough Council,http://statistics.data.gov.uk/id/local-authority/24UE,OTHER REVENUE ACCOUNTS,RV,G.F. EXPENDITURE ON SERVICES,RV10,STREETSCENE,TRANSPORT RELATED EXPENDITURE,3,Unclassified,,VEHICLE LICENCES,3023,05/07/2019,651253,260.00 ,Revenue,DVLA SWANSEA,
Fareham Borough Council,http://statistics.data.gov.uk/id/local-authority/24UE,ENVIRONMENT AND REGULATORY SER,BV03,STREET CLEANSING,BV03F,STREETSCENE,TRANSPORT RELATED EXPENDITURE,3,Unclassified,,VEHICLE LICENCES,3023,05/07/2019,651254,165.00 ,Revenue,DVLA SWANSEA,
Fareham Borough Council,http://statistics.data.gov.uk/id/local-authority/24UE,ENVIRONMENT AND REGULATORY SER,BV03,STREET CLEANSING,BV03F,STREETSCENE,TRANSPORT RELATED EXPENDITURE,3,Unclassified,,VEHICLE LICENCES,3023,05/07/2019,651254,260.00 ,Revenue,DVLA SWANSEA,
Fareham Borough Council,http://statistics.data.gov.uk/id/local-authority/24UE,OTHER REVENUE ACCOUNTS,RV,G.F. EXPENDITURE ON SERVICES,RV10,STREETSCENE,TRANSPORT RELATED EXPENDITURE,3,Unclassified,,VEHICLE LICENCES,3023,05/07/2019,651254,260.00 ,Revenue,DVLA SWANSEA,
Fareham Borough Council,http://statistics.data.gov.uk/id/local-authority/24UE,OTHER REVENUE ACCOUNTS,RV,G.F. EXPENDITURE ON SERVICES,RV10,STREETSCENE,TRANSPORT RELATED EXPENDITURE,3,Unclassified,,VEHICLE LICENCES,3023,05/07/2019,651254,260.00 ,Revenue,DVLA SWANSEA,
Fareham Borough Council,http://statistics.data.gov.uk/id/local-authority/24UE,CORPORATE & DEMOCRATIC CORE,BV07A,DEMOCRATIC REP.& MANAGEMENT,BV07AA,DEPT OF SUPPORT SERVICES,SUPPLIES & SERVICES,4,Information Communication Technology,27,TELEPHONES,4510,05/07/2019,651258,122.61 ,Revenue,BT PLC,1800000
Fareham Borough Council,http://statistics.data.gov.uk/id/local-authority/24UE,FINANCING & INVESTMENT I&E,BVB02,INVESTMENT PROPERTIES,BVB170,DEPT of STRATEGIC PLANNING and ENVIRONMENT,SUPPLIES & SERVICES,4,Information Communication Technology,27,TELEPHONES,4510,05/07/2019,651258,25.90 ,Revenue,BT PLC,1800000
Fareham Borough Council,http://statistics.data.gov.uk/id/local-authority/24UE,CENTRAL SERVICES,BV07,CENTRAL SERVICES TO THE PUBLIC,BV07B,DEPT OF DEPUTY CHIEF EXECUTIVE,SUPPLIES & SERVICES,4,Information Communication Technology,27,TELEPHONES,4510,05/07/2019,651258,41.28 ,Revenue,BT PLC,1800000
Fareham Borough Council,http://statistics.data.gov.uk/id/local-authority/24UE,CULTURAL AND RELATED SERVICES,BV09,RECREATION AND SPORT,BV09B,STREETSCENE,SUPPLIES & SERVICES,4,Information Communication Technology,27,TELEPHONES,4510,05/07/2019,651258,11.98 ,Revenue,BT PLC,1800000
Fareham Borough Council,http://statistics.data.gov.uk/id/local-authority/24UE,HIGHWAYS ROADS AND TRANSPORT,BV12,PARKING SERVICES,BV12D,DEPT OF LEISURE & COMMUNITY,SUPPLIES & SERVICES,4,Information Communication Technology,27,TELEPHONES,4510,05/07/2019,651258,69.47 ,Revenue,BT PLC,1800000
Fareham Borough Council,http://statistics.data.gov.uk/id/local-authority/24UE,HOUSING REVENUE ACCOUNT,BV06,SHELTERED HOUSING SERVICE,5031,DEPT OF DEPUTY CHIEF EXECUTIVE,SUPPLIES & SERVICES,4,Information Communication Technology,27,TELEPHONES,4510,05/07/2019,651258,148.80 ,Revenue,BT PLC,1800000
Fareham Borough Council,http://statistics.data.gov.uk/id/local-authority/24UE,HOUSING REVENUE ACCOUNT,BV06,SHELTERED HOUSING SERVICE,5031,DEPT OF DEPUTY CHIEF EXECUTIVE,PREMISES RELATED EXPENDITURE,2,Information Communication Technology,27,R & M ALARM SPEECH SYSTEMS,2027,05/07/2019,651258,81.82 ,Revenue,BT PLC,1800000
Fareham Borough Council,http://statistics.data.gov.uk/id/local-authority/24UE,CAPITAL PROGRAMME - HOUSING SERVICES,CP,RENOVATION OF L.A. DWELLINGS,CP10,CAPITAL - FAREHAM HOUSING CAPITAL,SUPPLIES & SERVICES,4,Information Communication Technology,27,TELEPHONES,4510,05/07/2019,651258,83.30 ,Capital,BT PLC,1800000
Fareham Borough Council,http://statistics.data.gov.uk/id/local-authority/24UE,OTHER REVENUE ACCOUNTS,RV,NON WORK GROUP HOLDING ACCOUNT,RV18,DEPT OF SUPPORT SERVICES,SUPPLIES & SERVICES,4,Information Communication Technology,27,TELEPHONES,4510,05/07/2019,651258,186.83 ,Revenue,BT PLC,1800000
Fareham Borough Council,http://statistics.data.gov.uk/id/local-authority/24UE,OTHER REVENUE ACCOUNTS,RV,NON WORK GROUP HOLDING ACCOUNT,RV18,DEPT of STRATEGIC PLANNING and ENVIRONMENT,SUPPLIES & SERVICES,4,Catering,11,VENDING M/C PROVISIONS,4105,05/07/2019,651263,867.03 ,Revenue,LAVAZZA PROFESSIONAL UK LTD,06649987
Fareham Borough Council,http://statistics.data.gov.uk/id/local-authority/24UE,OTHER REVENUE ACCOUNTS,RV,NON WORK GROUP HOLDING ACCOUNT,RV18,DEPT of STRATEGIC PLANNING and ENVIRONMENT,SUPPLIES & SERVICES,4,Catering,11,VENDING M/C PROVISIONS,4105,05/07/2019,651263,54.75 ,Revenue,LAVAZZA PROFESSIONAL UK LTD,06649987
Fareham Borough Council,http://statistics.data.gov.uk/id/local-authority/24UE,GENERAL FUND HOUSING,BV05,HOUSING ADVICE,BV05C,DEPT OF DEPUTY CHIEF EXECUTIVE,SUPPLIES & SERVICES,4,Unclassified,,LOCAL ASSISTANCE PAYMENT,4727,05/07/2019,651267,500.00 ,Revenue,redacted personal data,
Fareham Borough Council,http://statistics.data.gov.uk/id/local-authority/24UE,GENERAL FUND HOUSING,BV05,HOUSING ADVICE,BV05C,DEPT OF DEPUTY CHIEF EXECUTIVE,SUPPLIES & SERVICES,4,Unclassified,,LOCAL ASSISTANCE PAYMENT,4727,05/07/2019,651268,950.00 ,Revenue,redacted personal data,
Fareham Borough Council,http://statistics.data.gov.uk/id/local-authority/24UE,HOUSING REVENUE ACCOUNT,BV06,GENERAL ADMINISTRATION EXPENSE,5021,DEPT OF DEPUTY CHIEF EXECUTIVE,EMPLOYEES RELATED EXPENDITURE,1,Human Resources,26,AGENCY WORKERS,1050,05/07/2019,651271,1042.40 ,Revenue,JAMES ANDREWS RECRUITMENT SOLUTIONS LTD,06834852
Fareham Borough Council,http://statistics.data.gov.uk/id/local-authority/24UE,PLANNING SERVICES,BV13,DEVELOPMENT CONTROL,BV13B,DEPT of STRATEGIC PLANNING and ENVIRONMENT,SUPPLIES & SERVICES,4,Consultancy,15,CONSULTANTS FEES,4401,12/07/2019,651272,4814.00 ,Revenue,LDA DESIGN CONSULTING LTD,OC307725
Fareham Borough Council,http://statistics.data.gov.uk/id/local-authority/24UE,OTHER REVENUE ACCOUNTS,RV,NON WORK GROUP HOLDING ACCOUNT,RV18,DEPT OF SUPPORT SERVICES,SUPPLIES & SERVICES,4,Information Communication Technology,27,ICT SOFTWARE LICENCES,4530,19/07/2019,651273,3000.00 ,Revenue,CIVICA UK LIMITED,01628868
Fareham Borough Council,http://statistics.data.gov.uk/id/local-authority/24UE,PLANNING SERVICES,BV13,COMMUNITY DEVELOPMENT,BV13H,DEPT OF LEISURE & COMMUNITY,SUPPLIES & SERVICES,4,Facilities & Management Services,19,EXTERNAL PRINTING,4310,05/07/2019,651275,1349.00 ,Revenue,SDPUK LTD - T/A SIGN DESIGN PRINT,10467333
Fareham Borough Council,http://statistics.data.gov.uk/id/local-authority/24UE,ENVIRONMENT AND REGULATORY SER,BV03,WASTE COLLECTION,BV03G,STREETSCENE,TRANSPORT RELATED EXPENDITURE,3,Vehicle Management,38,ROUTINE REPAIRS VEHICLES/PLANT,3010,25/07/2019,651283,554.26 ,Revenue,DENNIS EAGLE LIMITED,03794455
Fareham Borough Council,http://statistics.data.gov.uk/id/local-authority/24UE,OTHER REVENUE ACCOUNTS,RV,NON WORK GROUP HOLDING ACCOUNT,RV18,STREETSCENE,SUPPLIES & SERVICES,4,Clothing,14,PROTECTIVE CLOTHING & UNIFORMS,4200,19/07/2019,651291,772.64 ,Revenue,JOHNSONS APPARELMASTER,00464645
Fareham Borough Council,http://statistics.data.gov.uk/id/local-authority/24UE,OTHER REVENUE ACCOUNTS,RV,NON WORK GROUP HOLDING ACCOUNT,RV18,STREETSCENE,SUPPLIES & SERVICES,4,Clothing,14,PROTECTIVE CLOTHING & UNIFORMS,4200,19/07/2019,651291,420.33 ,Revenue,JOHNSONS APPARELMASTER,00464645
Fareham Borough Council,http://statistics.data.gov.uk/id/local-authority/24UE,CULTURAL AND RELATED SERVICES,BV09,CULTURE AND HERITAGE,BV09A,DEPT OF LEISURE & COMMUNITY,SUPPLIES & SERVICES,4,Catering,11,BAR PROVISIONS,4106,19/07/2019,651305,889.41 ,Revenue,MOLSON COORS BREWING COMPANY (UK) LTD,26018
Fareham Borough Council,http://statistics.data.gov.uk/id/local-authority/24UE,HOUSING REVENUE ACCOUNT,BV06,RESPONSIVE & VOID MAINTENANCE,5901,DEPT OF DEPUTY CHIEF EXECUTIVE,PREMISES RELATED EXPENDITURE,2,Facilities & Management Services,19,GENERAL REPAIRS,2018,05/07/2019,651309,11194.07 ,Revenue,S A C LTD,01566628
Fareham Borough Council,http://statistics.data.gov.uk/id/local-authority/24UE,OTHER REVENUE ACCOUNTS,RV,NON WORK GROUP HOLDING ACCOUNT,RV18,DEPT of STRATEGIC PLANNING and ENVIRONMENT,PREMISES RELATED EXPENDITURE,2,Facilities & Management Services,19,GENERAL REPAIRS,2018,05/07/2019,651309,59.12 ,Revenue,S A C LTD,01566628
Fareham Borough Council,http://statistics.data.gov.uk/id/local-authority/24UE,HOUSING REVENUE ACCOUNT,BV06,RESPONSIVE & VOID MAINTENANCE,5901,DEPT OF DEPUTY CHIEF EXECUTIVE,PREMISES RELATED EXPENDITURE,2,Building Construction Materials,10,GENERAL REPAIRS,2018,05/07/2019,651310,1350.00 ,Revenue,MEDWAY MECHANICAL SERVICES LIMITED,6205314
Fareham Borough Council,http://statistics.data.gov.uk/id/local-authority/24UE,FINANCING & INVESTMENT I&E,BVB02,INVESTMENT PROPERTIES,BVB170,DEPT of STRATEGIC PLANNING and ENVIRONMENT,PREMISES RELATED EXPENDITURE,2,"Works - Construction, Repair & Maintenance",39,R & M OF BUILDINGS,2000,05/07/2019,651311,40.00 ,Revenue,M & B DRAIN SERVICES,
Fareham Borough Council,http://statistics.data.gov.uk/id/local-authority/24UE,ENVIRONMENT AND REGULATORY SER,BV03,ENVIRONMENTAL HEALTH,BV03C,STREETSCENE,PREMISES RELATED EXPENDITURE,2,"Works - Construction, Repair & Maintenance",39,GENERAL REPAIRS,2018,05/07/2019,651311,40.00 ,Revenue,M & B DRAIN SERVICES,
Fareham Borough Council,http://statistics.data.gov.uk/id/local-authority/24UE,HOUSING REVENUE ACCOUNT,BV06,RESPONSIVE & VOID MAINTENANCE,5901,DEPT OF DEPUTY CHIEF EXECUTIVE,PREMISES RELATED EXPENDITURE,2,"Works - Construction, Repair & Maintenance",39,GENERAL REPAIRS,2018,05/07/2019,651311,2245.00 ,Revenue,M & B DRAIN SERVICES,
Fareham Borough Council,http://statistics.data.gov.uk/id/local-authority/24UE,OTHER REVENUE ACCOUNTS,RV,NON WORK GROUP HOLDING ACCOUNT,RV18,DEPT of STRATEGIC PLANNING and ENVIRONMENT,PREMISES RELATED EXPENDITURE,2,"Works - Construction, Repair & Maintenance",39,GENERAL REPAIRS,2018,05/07/2019,651311,40.00 ,Revenue,M & B DRAIN SERVICES,
Fareham Borough Council,http://statistics.data.gov.uk/id/local-authority/24UE,OTHER REVENUE ACCOUNTS,RV,G.F. EXPENDITURE ON SERVICES,RV10,STREETSCENE,SUPPLIES & SERVICES,4,Horticultural,24,TOOLS & EQUIPMENT,4002,05/07/2019,651312,1950.00 ,Revenue,KINGSWORTHY GARDEN MACHINERY LTD,5321124
Fareham Borough Council,http://statistics.data.gov.uk/id/local-authority/24UE,CAPITAL PROGRAMME - OTHER SERVICES,CP,CAPITAL VEHICLE & PLANT,CP23,CAPITAL - STREETSCENE CAPITAL,TRANSPORT RELATED EXPENDITURE,3,Horticultural,24,PURCHASE OF VEHICLES,3000,05/07/2019,651313,41500.00 ,Capital,KINGSWORTHY GARDEN MACHINERY LTD,5321124
Fareham Borough Council,http://statistics.data.gov.uk/id/local-authority/24UE,PLANNING SERVICES,BV13,DEVELOPMENT CONTROL,BV13B,DEPT of STRATEGIC PLANNING and ENVIRONMENT,SUPPLIES & SERVICES,4,Consultancy,15,CONSULTANTS FEES,4401,12/07/2019,651324,920.00 ,Revenue,ASPINALL VERDI LTD,6908655
Fareham Borough Council,http://statistics.data.gov.uk/id/local-authority/24UE,PLANNING SERVICES,BV13,DEVELOPMENT CONTROL,BV13B,DEPT of STRATEGIC PLANNING and ENVIRONMENT,SUPPLIES & SERVICES,4,Consultancy,15,CONSULTANTS FEES,4401,12/07/2019,651324,825.00 ,Revenue,ASPINALL VERDI LTD,6908655
Fareham Borough Council,http://statistics.data.gov.uk/id/local-authority/24UE,PLANNING SERVICES,BV13,DEVELOPMENT CONTROL,BV13B,DEPT of STRATEGIC PLANNING and ENVIRONMENT,SUPPLIES & SERVICES,4,Consultancy,15,CONSULTANTS FEES,4401,12/07/2019,651324,82.60 ,Revenue,ASPINALL VERDI LTD,6908655
Fareham Borough Council,http://statistics.data.gov.uk/id/local-authority/24UE,PLANNING SERVICES,BV13,DEVELOPMENT CONTROL,BV13B,DEPT of STRATEGIC PLANNING and ENVIRONMENT,SUPPLIES & SERVICES,4,Consultancy,15,CONSULTANTS FEES,4401,12/07/2019,651324,2400.00 ,Revenue,ASPINALL VERDI LTD,6908655
Fareham Borough Council,http://statistics.data.gov.uk/id/local-authority/24UE,PLANNING SERVICES,BV13,DEVELOPMENT CONTROL,BV13B,DEPT of STRATEGIC PLANNING and ENVIRONMENT,SUPPLIES & SERVICES,4,Consultancy,15,CONSULTANTS FEES,4401,12/07/2019,651324,825.00 ,Revenue,ASPINALL VERDI LTD,6908655
Fareham Borough Council,http://statistics.data.gov.uk/id/local-authority/24UE,CULTURAL AND RELATED SERVICES,BV09,RECREATION AND SPORT,BV09B,STREETSCENE,PREMISES RELATED EXPENDITURE,2,Horticultural,24,R&M OF TREE PRESERVATION,2063,05/07/2019,651325,140.00 ,Revenue,TITCHFIELD TREE SERVICES LTD,9011233
Fareham Borough Council,http://statistics.data.gov.uk/id/local-authority/24UE,CULTURAL AND RELATED SERVICES,BV09,RECREATION AND SPORT,BV09B,STREETSCENE,PREMISES RELATED EXPENDITURE,2,Horticultural,24,R&M OF TREE PRESERVATION,2063,05/07/2019,651325,420.00 ,Revenue,TITCHFIELD TREE SERVICES LTD,9011233
Fareham Borough Council,http://statistics.data.gov.uk/id/local-authority/24UE,CULTURAL AND RELATED SERVICES,BV09,RECREATION AND SPORT,BV09B,STREETSCENE,PREMISES RELATED EXPENDITURE,2,Horticultural,24,R&M OF TREE PRESERVATION,2063,05/07/2019,651325,140.00 ,Revenue,TITCHFIELD TREE SERVICES LTD,9011233
Fareham Borough Council,http://statistics.data.gov.uk/id/local-authority/24UE,CULTURAL AND RELATED SERVICES,BV09,RECREATION AND SPORT,BV09B,STREETSCENE,PREMISES RELATED EXPENDITURE,2,Horticultural,24,R&M OF TREE PRESERVATION,2063,05/07/2019,651325,140.00 ,Revenue,TITCHFIELD TREE SERVICES LTD,9011233
Fareham Borough Council,http://statistics.data.gov.uk/id/local-authority/24UE,CULTURAL AND RELATED SERVICES,BV09,RECREATION AND SPORT,BV09B,STREETSCENE,PREMISES RELATED EXPENDITURE,2,Horticultural,24,R&M OF TREE PRESERVATION,2063,05/07/2019,651325,280.00 ,Revenue,TITCHFIELD TREE SERVICES LTD,9011233
Fareham Borough Council,http://statistics.data.gov.uk/id/local-authority/24UE,CULTURAL AND RELATED SERVICES,BV09,RECREATION AND SPORT,BV09B,STREETSCENE,PREMISES RELATED EXPENDITURE,2,Horticultural,24,R&M OF TREE PRESERVATION,2063,05/07/2019,651325,140.00 ,Revenue,TITCHFIELD TREE SERVICES LTD,9011233
Fareham Borough Council,http://statistics.data.gov.uk/id/local-authority/24UE,HOUSING REVENUE ACCOUNT,BV06,RESPONSIVE & VOID MAINTENANCE,5901,DEPT OF DEPUTY CHIEF EXECUTIVE,PREMISES RELATED EXPENDITURE,2,"Works - Construction, Repair & Maintenance",39,FIRE PRECAUTION APPLIANCES,2550,05/07/2019,651380,643.19 ,Revenue,JPC PROPERTY SERVICES LTD,4704385
Fareham Borough Council,http://statistics.data.gov.uk/id/local-authority/24UE,HOUSING REVENUE ACCOUNT,BV06,RESPONSIVE & VOID MAINTENANCE,5901,DEPT OF DEPUTY CHIEF EXECUTIVE,SUPPLIES & SERVICES,4,Building Construction Materials,10,MATERIALS (OPERATIONAL),4007,05/07/2019,651381,608.33 ,Revenue,ELLIOTT BROTHERS LIMITED,02511005
Fareham Borough Council,http://statistics.data.gov.uk/id/local-authority/24UE,HOUSING REVENUE ACCOUNT,BV06,RESPONSIVE & VOID MAINTENANCE,5901,DEPT OF DEPUTY CHIEF EXECUTIVE,SUPPLIES & SERVICES,4,Building Construction Materials,10,MATERIALS (OPERATIONAL),4007,12/07/2019,651387,760.00 ,Revenue,SYDENHAMS LTD,00168966
Fareham Borough Council,http://statistics.data.gov.uk/id/local-authority/24UE,HIGHWAYS ROADS AND TRANSPORT,BV12,PARKING SERVICES,BV12D,DEPT OF LEISURE & COMMUNITY,PREMISES RELATED EXPENDITURE,2,Building Construction Materials,10,R & M OF BUILDINGS,2000,05/07/2019,651397,3374.00 ,Revenue,BI-FOLD ROLFE LTD,02516031
Fareham Borough Council,http://statistics.data.gov.uk/id/local-authority/24UE,CULTURAL AND RELATED SERVICES,BV09,CULTURE AND HERITAGE,BV09A,DEPT OF LEISURE & COMMUNITY,PREMISES RELATED EXPENDITURE,2,Building Construction Materials,10,R & M OF FIXED PLANT,2040,05/07/2019,651402,1119.55 ,Revenue,CLOSEWOOD AIR CONDITIONING LTD,3200910
Fareham Borough Council,http://statistics.data.gov.uk/id/local-authority/24UE,FINANCING & INVESTMENT I&E,BVB02,INVESTMENT PROPERTIES,BVB170,DEPT of STRATEGIC PLANNING and ENVIRONMENT,EMPLOYEES RELATED EXPENDITURE,1,"Works - Construction, Repair & Maintenance",39,AGENCY WORKERS,1050,05/07/2019,651406,1400.00 ,Revenue,MGW SURVEYORS LTD,11766387
Fareham Borough Council,http://statistics.data.gov.uk/id/local-authority/24UE,OTHER REVENUE ACCOUNTS,RV,NON WORK GROUP HOLDING ACCOUNT,RV18,DEPT OF SUPPORT SERVICES,SUPPLIES & SERVICES,4,Information Communication Technology,27,ICT SOFTWARE LICENCES,4530,05/07/2019,651411,670.00 ,Revenue,THE TECHNOLOGY FORGE,02293004
Fareham Borough Council,http://statistics.data.gov.uk/id/local-authority/24UE,HOUSING REVENUE ACCOUNT,BV06,RESPONSIVE & VOID MAINTENANCE,5901,DEPT OF DEPUTY CHIEF EXECUTIVE,SUPPLIES & SERVICES,4,Building Construction Materials,10,MATERIALS (OPERATIONAL),4007,05/07/2019,651424,506.40 ,Revenue,WILLIAMS TRADE SUPPLIES LTD,1864711
Fareham Borough Council,http://statistics.data.gov.uk/id/local-authority/24UE,HOUSING REVENUE ACCOUNT,BV06,RESPONSIVE & VOID MAINTENANCE,5901,DEPT OF DEPUTY CHIEF EXECUTIVE,PREMISES RELATED EXPENDITURE,2,Information Communication Technology,27,GENERAL REPAIRS,2018,05/07/2019,651455,1187.66 ,Revenue,TUNSTALL HEALTHCARE (UK) LTD,01332249
Fareham Borough Council,http://statistics.data.gov.uk/id/local-authority/24UE,CAPITAL PROGRAMME - HOUSING SERVICES,CP,RENOVATION OF L.A. DWELLINGS,CP10,CAPITAL - FAREHAM HOUSING CAPITAL,PREMISES RELATED EXPENDITURE,2,"Works - Construction, Repair & Maintenance",39,GENERAL REPAIRS,2018,05/07/2019,651457,19694.00 ,Capital,L DEVINE & CO LTD,4213581
Fareham Borough Council,http://statistics.data.gov.uk/id/local-authority/24UE,CULTURAL AND RELATED SERVICES,BV09,RECREATION AND SPORT,BV09B,STREETSCENE,PREMISES RELATED EXPENDITURE,2,Human Resources,26,R&M OF TREE PRESERVATION,2063,05/07/2019,651458,2238.57 ,Revenue,GLENDALE COUNTRYSIDE LTD,2121098
Fareham Borough Council,http://statistics.data.gov.uk/id/local-authority/24UE,CULTURAL AND RELATED SERVICES,BV09,RECREATION AND SPORT,BV09B,STREETSCENE,PREMISES RELATED EXPENDITURE,2,Human Resources,26,R&M OF TREE PRESERVATION,2063,05/07/2019,651458,139.97 ,Revenue,GLENDALE COUNTRYSIDE LTD,2121098
Fareham Borough Council,http://statistics.data.gov.uk/id/local-authority/24UE,CULTURAL AND RELATED SERVICES,BV09,RECREATION AND SPORT,BV09B,STREETSCENE,PREMISES RELATED EXPENDITURE,2,Human Resources,26,R&M OF TREE PRESERVATION,2063,05/07/2019,651458,85.52 ,Revenue,GLENDALE COUNTRYSIDE LTD,2121098
Fareham Borough Council,http://statistics.data.gov.uk/id/local-authority/24UE,CULTURAL AND RELATED SERVICES,BV09,RECREATION AND SPORT,BV09B,STREETSCENE,PREMISES RELATED EXPENDITURE,2,Human Resources,26,R&M OF TREE PRESERVATION,2063,05/07/2019,651458,1195.58 ,Revenue,GLENDALE COUNTRYSIDE LTD,2121098
Fareham Borough Council,http://statistics.data.gov.uk/id/local-authority/24UE,CULTURAL AND RELATED SERVICES,BV09,RECREATION AND SPORT,BV09B,STREETSCENE,PREMISES RELATED EXPENDITURE,2,Human Resources,26,R&M OF TREE PRESERVATION,2063,05/07/2019,651458,107.07 ,Revenue,GLENDALE COUNTRYSIDE LTD,2121098
Fareham Borough Council,http://statistics.data.gov.uk/id/local-authority/24UE,CULTURAL AND RELATED SERVICES,BV09,RECREATION AND SPORT,BV09B,STREETSCENE,PREMISES RELATED EXPENDITURE,2,Human Resources,26,R&M OF TREE PRESERVATION,2063,05/07/2019,651458,62.04 ,Revenue,GLENDALE COUNTRYSIDE LTD,2121098
Fareham Borough Council,http://statistics.data.gov.uk/id/local-authority/24UE,CULTURAL AND RELATED SERVICES,BV09,RECREATION AND SPORT,BV09B,STREETSCENE,PREMISES RELATED EXPENDITURE,2,Human Resources,26,R&M OF TREE PRESERVATION,2063,05/07/2019,651458,169.67 ,Revenue,GLENDALE COUNTRYSIDE LTD,2121098
Fareham Borough Council,http://statistics.data.gov.uk/id/local-authority/24UE,CULTURAL AND RELATED SERVICES,BV09,RECREATION AND SPORT,BV09B,STREETSCENE,PREMISES RELATED EXPENDITURE,2,Human Resources,26,R&M OF TREE PRESERVATION,2063,05/07/2019,651458,126.92 ,Revenue,GLENDALE COUNTRYSIDE LTD,2121098
Fareham Borough Council,http://statistics.data.gov.uk/id/local-authority/24UE,CULTURAL AND RELATED SERVICES,BV09,RECREATION AND SPORT,BV09B,STREETSCENE,PREMISES RELATED EXPENDITURE,2,Horticultural,24,R&M OF TREE PRESERVATION,2063,19/07/2019,651460,1836.50 ,Revenue,GRISTWOOD AND TOMS LIMITED,2665293
Fareham Borough Council,http://statistics.data.gov.uk/id/local-authority/24UE,HOUSING REVENUE ACCOUNT,BV06,RESPONSIVE & VOID MAINTENANCE,5901,DEPT OF DEPUTY CHIEF EXECUTIVE,PREMISES RELATED EXPENDITURE,2,Health & Safety�,22,GENERAL REPAIRS,2018,12/07/2019,651461,2479.00 ,Revenue,AXIS FIRE & SECURITY SERVICES,03185513
Fareham Borough Council,http://statistics.data.gov.uk/id/local-authority/24UE,CULTURAL AND RELATED SERVICES,BV09,RECREATION AND SPORT,BV09B,STREETSCENE,PREMISES RELATED EXPENDITURE,2,Horticultural,24,R&M OF TREE PRESERVATION,2063,12/07/2019,651462,10.00 ,Revenue,CEDAR TREE SURGEONS,
Fareham Borough Council,http://statistics.data.gov.uk/id/local-authority/24UE,CULTURAL AND RELATED SERVICES,BV09,RECREATION AND SPORT,BV09B,STREETSCENE,PREMISES RELATED EXPENDITURE,2,Horticultural,24,R&M OF TREE PRESERVATION,2063,12/07/2019,651462,445.00 ,Revenue,CEDAR TREE SURGEONS,
Fareham Borough Council,http://statistics.data.gov.uk/id/local-authority/24UE,CULTURAL AND RELATED SERVICES,BV09,RECREATION AND SPORT,BV09B,STREETSCENE,PREMISES RELATED EXPENDITURE,2,Horticultural,24,R&M OF TREE PRESERVATION,2063,12/07/2019,651462,370.00 ,Revenue,CEDAR TREE SURGEONS,
Fareham Borough Council,http://statistics.data.gov.uk/id/local-authority/24UE,CULTURAL AND RELATED SERVICES,BV09,RECREATION AND SPORT,BV09B,STREETSCENE,PREMISES RELATED EXPENDITURE,2,Horticultural,24,R&M OF TREE PRESERVATION,2063,12/07/2019,651462,852.50 ,Revenue,CEDAR TREE SURGEONS,
Fareham Borough Council,http://statistics.data.gov.uk/id/local-authority/24UE,CULTURAL AND RELATED SERVICES,BV09,RECREATION AND SPORT,BV09B,STREETSCENE,PREMISES RELATED EXPENDITURE,2,Horticultural,24,R&M OF TREE PRESERVATION,2063,12/07/2019,651462,241.00 ,Revenue,CEDAR TREE SURGEONS,
Fareham Borough Council,http://statistics.data.gov.uk/id/local-authority/24UE,CULTURAL AND RELATED SERVICES,BV09,RECREATION AND SPORT,BV09B,STREETSCENE,PREMISES RELATED EXPENDITURE,2,Horticultural,24,R&M OF TREE PRESERVATION,2063,12/07/2019,651462,215.00 ,Revenue,CEDAR TREE SURGEONS,
Fareham Borough Council,http://statistics.data.gov.uk/id/local-authority/24UE,CULTURAL AND RELATED SERVICES,BV09,RECREATION AND SPORT,BV09B,STREETSCENE,PREMISES RELATED EXPENDITURE,2,Horticultural,24,R&M OF TREE PRESERVATION,2063,12/07/2019,651463,129.50 ,Revenue,CEDAR TREE SURGEONS,
Fareham Borough Council,http://statistics.data.gov.uk/id/local-authority/24UE,CULTURAL AND RELATED SERVICES,BV09,RECREATION AND SPORT,BV09B,STREETSCENE,PREMISES RELATED EXPENDITURE,2,Horticultural,24,R&M OF TREE PRESERVATION,2063,12/07/2019,651463,1240.50 ,Revenue,CEDAR TREE SURGEONS,
Fareham Borough Council,http://statistics.data.gov.uk/id/local-authority/24UE,CULTURAL AND RELATED SERVICES,BV09,RECREATION AND SPORT,BV09B,STREETSCENE,PREMISES RELATED EXPENDITURE,2,Horticultural,24,R&M OF TREE PRESERVATION,2063,12/07/2019,651463,1618.50 ,Revenue,CEDAR TREE SURGEONS,
Fareham Borough Council,http://statistics.data.gov.uk/id/local-authority/24UE,ENVIRONMENT AND REGULATORY SER,BV03,CEMETERIES CREM & MORTUARY,BV03A,STREETSCENE,PREMISES RELATED EXPENDITURE,2,Horticultural,24,R&M OF TREE PRESERVATION,2063,12/07/2019,651464,267.00 ,Revenue,CEDAR TREE SURGEONS,
Fareham Borough Council,http://statistics.data.gov.uk/id/local-authority/24UE,CULTURAL AND RELATED SERVICES,BV09,RECREATION AND SPORT,BV09B,STREETSCENE,PREMISES RELATED EXPENDITURE,2,Horticultural,24,R&M OF TREE PRESERVATION,2063,12/07/2019,651464,780.00 ,Revenue,CEDAR TREE SURGEONS,
Fareham Borough Council,http://statistics.data.gov.uk/id/local-authority/24UE,CULTURAL AND RELATED SERVICES,BV09,RECREATION AND SPORT,BV09B,STREETSCENE,PREMISES RELATED EXPENDITURE,2,Horticultural,24,R&M OF TREE PRESERVATION,2063,12/07/2019,651464,222.50 ,Revenue,CEDAR TREE SURGEONS,
Fareham Borough Council,http://statistics.data.gov.uk/id/local-authority/24UE,CULTURAL AND RELATED SERVICES,BV09,RECREATION AND SPORT,BV09B,STREETSCENE,PREMISES RELATED EXPENDITURE,2,Horticultural,24,R&M OF TREE PRESERVATION,2063,12/07/2019,651464,843.00 ,Revenue,CEDAR TREE SURGEONS,
Fareham Borough Council,http://statistics.data.gov.uk/id/local-authority/24UE,HIGHWAYS ROADS AND TRANSPORT,BV12,PARKING SERVICES,BV12D,DEPT OF LEISURE & COMMUNITY,PREMISES RELATED EXPENDITURE,2,Horticultural,24,R&M OF TREE PRESERVATION,2063,12/07/2019,651464,89.00 ,Revenue,CEDAR TREE SURGEONS,
Fareham Borough Council,http://statistics.data.gov.uk/id/local-authority/24UE,HOUSING REVENUE ACCOUNT,BV06,MAINT OF LAWNS VERGES ETC,5030,DEPT OF DEPUTY CHIEF EXECUTIVE,PREMISES RELATED EXPENDITURE,2,Horticultural,24,R&M OF TREE PRESERVATION,2063,12/07/2019,651464,23.50 ,Revenue,CEDAR TREE SURGEONS,
Fareham Borough Council,http://statistics.data.gov.uk/id/local-authority/24UE,HOUSING REVENUE ACCOUNT,BV06,RESPONSIVE & VOID MAINTENANCE,5901,DEPT OF DEPUTY CHIEF EXECUTIVE,SUPPLIES & SERVICES,4,Building Construction Materials,10,MATERIALS (OPERATIONAL),4007,05/07/2019,651467,511.35 ,Revenue,BORDERLAND FENCING CENTRE LTD,3123722
Fareham Borough Council,http://statistics.data.gov.uk/id/local-authority/24UE,HOUSING REVENUE ACCOUNT,BV06,RESPONSIVE & VOID MAINTENANCE,5901,DEPT OF DEPUTY CHIEF EXECUTIVE,PREMISES RELATED EXPENDITURE,2,Environmental Services,18,GENERAL REPAIRS,2018,05/07/2019,651478,735.00 ,Revenue,R H INSULATION SERVICES LIMITED,02062526
Fareham Borough Council,http://statistics.data.gov.uk/id/local-authority/24UE,HOUSING REVENUE ACCOUNT,BV06,RESPONSIVE & VOID MAINTENANCE,5901,DEPT OF DEPUTY CHIEF EXECUTIVE,PREMISES RELATED EXPENDITURE,2,Environmental Services,18,GENERAL REPAIRS,2018,05/07/2019,651479,735.00 ,Revenue,R H INSULATION SERVICES LIMITED,02062526
Fareham Borough Council,http://statistics.data.gov.uk/id/local-authority/24UE,HOUSING REVENUE ACCOUNT,BV06,RESPONSIVE & VOID MAINTENANCE,5901,DEPT OF DEPUTY CHIEF EXECUTIVE,PREMISES RELATED EXPENDITURE,2,Facilities & Management Services,19,GENERAL REPAIRS,2018,05/07/2019,651480,758.00 ,Revenue,RAINER SECURITY PRODUCTS LTD,02240635
Fareham Borough Council,http://statistics.data.gov.uk/id/local-authority/24UE,HOUSING REVENUE ACCOUNT,BV06,RESPONSIVE & VOID MAINTENANCE,5901,DEPT OF DEPUTY CHIEF EXECUTIVE,PREMISES RELATED EXPENDITURE,2,"Works - Construction, Repair & Maintenance",39,VOID COSTS - NOT RECHARGEABLE,2011,05/07/2019,651481,709.99 ,Revenue,A PURKISS BUILDING & DECORATING LTD,3561215
Fareham Borough Council,http://statistics.data.gov.uk/id/local-authority/24UE,HOUSING REVENUE ACCOUNT,BV06,RESPONSIVE & VOID MAINTENANCE,5901,DEPT OF DEPUTY CHIEF EXECUTIVE,PREMISES RELATED EXPENDITURE,2,"Works - Construction, Repair & Maintenance",39,GENERAL REPAIRS,2018,05/07/2019,651481,19620.26 ,Revenue,A PURKISS BUILDING & DECORATING LTD,3561215
Fareham Borough Council,http://statistics.data.gov.uk/id/local-authority/24UE,OTHER REVENUE ACCOUNTS,RV,NON WORK GROUP HOLDING ACCOUNT,RV18,DEPT OF SUPPORT SERVICES,SUPPLIES & SERVICES,4,Information Communication Technology,27,ICT SOFTWARE LICENCES,4530,05/07/2019,651485,2351.42 ,Revenue,TIMICO LTD,04841830
Fareham Borough Council,http://statistics.data.gov.uk/id/local-authority/24UE,PLANNING SERVICES,BV13,PLANNING POLICY,BV13C,DEPT of STRATEGIC PLANNING and ENVIRONMENT,SUPPLIES & SERVICES,4,Facilities & Management Services,19,PUBLICITY AND PROMOTION,4912,12/07/2019,651486,7260.00 ,Revenue,HOLBROOKS PRINTERS LTD,02826031
Fareham Borough Council,http://statistics.data.gov.uk/id/local-authority/24UE,HOUSING REVENUE ACCOUNT,BV06,RESPONSIVE & VOID MAINTENANCE,5901,DEPT OF DEPUTY CHIEF EXECUTIVE,PREMISES RELATED EXPENDITURE,2,"Works - Construction, Repair & Maintenance",39,GENERAL REPAIRS,2018,05/07/2019,651490,3513.93 ,Revenue,BCG ELECTRICAL SERVICES LIMITED,5097428
Fareham Borough Council,http://statistics.data.gov.uk/id/local-authority/24UE,HOUSING REVENUE ACCOUNT,BV06,GENERAL ADMINISTRATION EXPENSE,5021,DEPT OF DEPUTY CHIEF EXECUTIVE,SUPPLIES & SERVICES,4,Financial Services,20,PAYMENT CARD CHARGES,4411,05/07/2019,651497,963.65 ,Revenue,ALLPAY LIMITED ** DIRECT DEBIT **,02933191
Fareham Borough Council,http://statistics.data.gov.uk/id/local-authority/24UE,CAPITAL PROGRAMME - HOUSING SERVICES,CP,RENOVATION OF L.A. DWELLINGS,CP10,CAPITAL - FAREHAM HOUSING CAPITAL,PREMISES RELATED EXPENDITURE,2,Information Communication Technology,27,R & M ALARM SPEECH SYSTEMS,2027,12/07/2019,651499,3960.00 ,Capital,TUNSTALL HEALTHCARE (UK) LTD,01332249
Fareham Borough Council,http://statistics.data.gov.uk/id/local-authority/24UE,GENERAL FUND HOUSING,BV05,WELFARE SERVICES,BV05L,DEPT OF DEPUTY CHIEF EXECUTIVE,SUPPLIES & SERVICES,4,Information Communication Technology,27,FURNITURE & EQUIPT. PURCHASES,4000,05/07/2019,651500,1980.00 ,Revenue,TUNSTALL HEALTHCARE (UK) LTD,01332249
Fareham Borough Council,http://statistics.data.gov.uk/id/local-authority/24UE,CENTRAL SERVICES,BV07,CENTRAL SERVICES TO THE PUBLIC,BV07B,DEPT OF DEPUTY CHIEF EXECUTIVE,SUPPLIES & SERVICES,4,Financial Services,20,SPECIAL EXPENDITURE,4999,05/07/2019,651503,403.19 ,Revenue,ALLPAY LIMITED ** DIRECT DEBIT **,02933191
Fareham Borough Council,http://statistics.data.gov.uk/id/local-authority/24UE,CENTRAL SERVICES,BV07,CENTRAL SERVICES TO THE PUBLIC,BV07B,DEPT OF DEPUTY CHIEF EXECUTIVE,SUPPLIES & SERVICES,4,Financial Services,20,BANK CHARGES,4954,05/07/2019,651503,907.98 ,Revenue,ALLPAY LIMITED ** DIRECT DEBIT **,02933191
Fareham Borough Council,http://statistics.data.gov.uk/id/local-authority/24UE,OTHER REVENUE ACCOUNTS,RV,NON WORK GROUP HOLDING ACCOUNT,RV18,DEPT OF SUPPORT SERVICES,SUPPLIES & SERVICES,4,Consultancy,15,ICT CLOUD,4536,05/07/2019,651505,785.26 ,Revenue,BOTTOMLINE TECHNOLOGIES LTD,03693514
Fareham Borough Council,http://statistics.data.gov.uk/id/local-authority/24UE,ENVIRONMENT AND REGULATORY SER,BV03,WASTE COLLECTION,BV03G,STREETSCENE,TRANSPORT RELATED EXPENDITURE,3,Vehicle Management,38,ROUTINE REPAIRS VEHICLES/PLANT,3010,19/07/2019,651508,-1182.00 ,Revenue,MC TRUCK & BUS LTD,01241061
Fareham Borough Council,http://statistics.data.gov.uk/id/local-authority/24UE,PLANNING SERVICES,BV13,COMMUNITY DEVELOPMENT,BV13H,DEPT OF LEISURE & COMMUNITY,SUPPLIES & SERVICES,4,Unclassified,,COMMUNITY EVENTS,4986,05/07/2019,651518,2033.33 ,Revenue,ROYAL NAVY RAIDERS PARACHUTE DISPLAY TEAM,
Fareham Borough Council,http://statistics.data.gov.uk/id/local-authority/24UE,OTHER REVENUE ACCOUNTS,RV,CONTRACT SERVICES D.S.O.,RV14,DEPT of STRATEGIC PLANNING and ENVIRONMENT,SUPPLIES & SERVICES,4,Financial Services,20,ICT SOFTWARE LICENCES,4530,05/07/2019,651519,13190.00 ,Revenue,IHS GLOBAL LIMITED,GB788737
Fareham Borough Council,http://statistics.data.gov.uk/id/local-authority/24UE,OTHER REVENUE ACCOUNTS,RV,CONTRACT SERVICES D.S.O.,RV14,DEPT of STRATEGIC PLANNING and ENVIRONMENT,EMPLOYEES RELATED EXPENDITURE,1,Human Resources,26,AGENCY WORKERS,1050,05/07/2019,651520,953.36 ,Revenue,HAYS SPECIALIST RECRUITMENT LTD,975677
Fareham Borough Council,http://statistics.data.gov.uk/id/local-authority/24UE,CAPITAL PROGRAMME - HOUSING SERVICES,CP,RENOVATION OF L.A. DWELLINGS,CP10,CAPITAL - FAREHAM HOUSING CAPITAL,PREMISES RELATED EXPENDITURE,2,"Works - Construction, Repair & Maintenance",39,VOID COSTS - NOT RECHARGEABLE,2011,05/07/2019,651525,947.15 ,Capital,JPC PROPERTY SERVICES LTD,4704385
Fareham Borough Council,http://statistics.data.gov.uk/id/local-authority/24UE,CAPITAL PROGRAMME - HOUSING SERVICES,CP,RENOVATION OF L.A. DWELLINGS,CP10,CAPITAL - FAREHAM HOUSING CAPITAL,PREMISES RELATED EXPENDITURE,2,"Works - Construction, Repair & Maintenance",39,VOID COSTS - NOT RECHARGEABLE,2011,05/07/2019,651525,3490.00 ,Capital,JPC PROPERTY SERVICES LTD,4704385
Fareham Borough Council,http://statistics.data.gov.uk/id/local-authority/24UE,CAPITAL PROGRAMME - HOUSING SERVICES,CP,RENOVATION OF L.A. DWELLINGS,CP10,CAPITAL - FAREHAM HOUSING CAPITAL,PREMISES RELATED EXPENDITURE,2,"Works - Construction, Repair & Maintenance",39,VOID COSTS - NOT RECHARGEABLE,2011,05/07/2019,651525,3900.00 ,Capital,JPC PROPERTY SERVICES LTD,4704385
Fareham Borough Council,http://statistics.data.gov.uk/id/local-authority/24UE,HOUSING REVENUE ACCOUNT,BV06,RESPONSIVE & VOID MAINTENANCE,5901,DEPT OF DEPUTY CHIEF EXECUTIVE,PREMISES RELATED EXPENDITURE,2,"Works - Construction, Repair & Maintenance",39,VOID COSTS - NOT RECHARGEABLE,2011,05/07/2019,651525,5053.05 ,Revenue,JPC PROPERTY SERVICES LTD,4704385
Fareham Borough Council,http://statistics.data.gov.uk/id/local-authority/24UE,HOUSING REVENUE ACCOUNT,BV06,RESPONSIVE & VOID MAINTENANCE,5901,DEPT OF DEPUTY CHIEF EXECUTIVE,SUPPLIES & SERVICES,4,Environmental Services,18,PEST CONTROL,4424,05/07/2019,651526,1850.00 ,Revenue,WHELAN PEST PREVENTION LIMITED,6786700
Fareham Borough Council,http://statistics.data.gov.uk/id/local-authority/24UE,CAPITAL PROGRAMME - HOUSING SERVICES,CP,RENOVATION OF L.A. DWELLINGS,CP10,CAPITAL - FAREHAM HOUSING CAPITAL,PREMISES RELATED EXPENDITURE,2,Building Construction Materials,10,R & M OF BUILDINGS,2000,05/07/2019,651527,7331.04 ,Capital,SOUTH COAST WINDOW SOLUTIONS LTD,9553687
Fareham Borough Council,http://statistics.data.gov.uk/id/local-authority/24UE,ENVIRONMENT AND REGULATORY SER,BV03,CEMETERIES CREM & MORTUARY,BV03A,STREETSCENE,PREMISES RELATED EXPENDITURE,2,"Works - Construction, Repair & Maintenance",39,R & M OF BUILDINGS,2000,05/07/2019,651530,1150.44 ,Revenue,BEAVEN GROUNDWORKS,
Fareham Borough Council,http://statistics.data.gov.uk/id/local-authority/24UE,FINANCING & INVESTMENT I&E,BVB02,INVESTMENT PROPERTIES,BVB170,DEPT of STRATEGIC PLANNING and ENVIRONMENT,PREMISES RELATED EXPENDITURE,2,"Works - Construction, Repair & Maintenance",39,R & M OF BUILDINGS,2000,05/07/2019,651530,244.99 ,Revenue,BEAVEN GROUNDWORKS,
Fareham Borough Council,http://statistics.data.gov.uk/id/local-authority/24UE,CULTURAL AND RELATED SERVICES,BV09,RECREATION AND SPORT,BV09B,STREETSCENE,PREMISES RELATED EXPENDITURE,2,"Works - Construction, Repair & Maintenance",39,R & M OF FENCING,2061,05/07/2019,651530,341.70 ,Revenue,BEAVEN GROUNDWORKS,
Fareham Borough Council,http://statistics.data.gov.uk/id/local-authority/24UE,CULTURAL AND RELATED SERVICES,BV09,RECREATION AND SPORT,BV09B,DEPT OF LEISURE & COMMUNITY,PREMISES RELATED EXPENDITURE,2,"Works - Construction, Repair & Maintenance",39,R & M OF BUILDINGS,2000,05/07/2019,651530,1291.43 ,Revenue,BEAVEN GROUNDWORKS,
Fareham Borough Council,http://statistics.data.gov.uk/id/local-authority/24UE,HIGHWAYS ROADS AND TRANSPORT,BV12,PARKING SERVICES,BV12D,DEPT OF LEISURE & COMMUNITY,PREMISES RELATED EXPENDITURE,2,"Works - Construction, Repair & Maintenance",39,R & M OF FENCING,2061,05/07/2019,651530,192.16 ,Revenue,BEAVEN GROUNDWORKS,
Fareham Borough Council,http://statistics.data.gov.uk/id/local-authority/24UE,HOUSING REVENUE ACCOUNT,BV06,RESPONSIVE & VOID MAINTENANCE,5901,DEPT OF DEPUTY CHIEF EXECUTIVE,PREMISES RELATED EXPENDITURE,2,"Works - Construction, Repair & Maintenance",39,GENERAL REPAIRS,2018,05/07/2019,651530,13683.51 ,Revenue,BEAVEN GROUNDWORKS,
Fareham Borough Council,http://statistics.data.gov.uk/id/local-authority/24UE,HOUSING REVENUE ACCOUNT,BV06,RESPONSIVE & VOID MAINTENANCE,5901,DEPT OF DEPUTY CHIEF EXECUTIVE,PREMISES RELATED EXPENDITURE,2,"Works - Construction, Repair & Maintenance",39,GENERAL REPAIRS,2018,05/07/2019,651530,9691.09 ,Revenue,BEAVEN GROUNDWORKS,
Fareham Borough Council,http://statistics.data.gov.uk/id/local-authority/24UE,HOUSING REVENUE ACCOUNT,BV06,RESPONSIVE & VOID MAINTENANCE,5901,DEPT OF DEPUTY CHIEF EXECUTIVE,PREMISES RELATED EXPENDITURE,2,"Works - Construction, Repair & Maintenance",39,GENERAL REPAIRS,2018,05/07/2019,651530,-23374.60 ,Revenue,BEAVEN GROUNDWORKS,
Fareham Borough Council,http://statistics.data.gov.uk/id/local-authority/24UE,HOUSING REVENUE ACCOUNT,BV06,RESPONSIVE & VOID MAINTENANCE,5901,DEPT OF DEPUTY CHIEF EXECUTIVE,PREMISES RELATED EXPENDITURE,2,"Works - Construction, Repair & Maintenance",39,GENERAL REPAIRS,2018,05/07/2019,651530,23374.60 ,Revenue,BEAVEN GROUNDWORKS,
Fareham Borough Council,http://statistics.data.gov.uk/id/local-authority/24UE,CAPITAL PROGRAMME - HOUSING SERVICES,CP,RENOVATION OF L.A. DWELLINGS,CP10,CAPITAL - FAREHAM HOUSING CAPITAL,PREMISES RELATED EXPENDITURE,2,Building Construction Materials,10,R & M OF BUILDINGS,2000,05/07/2019,651533,760.00 ,Capital,SOUTH COAST INSULATION SERVICES LTD,07210512
Fareham Borough Council,http://statistics.data.gov.uk/id/local-authority/24UE,CAPITAL PROGRAMME - HOUSING SERVICES,CP,RENOVATION OF L.A. DWELLINGS,CP10,CAPITAL - FAREHAM HOUSING CAPITAL,PREMISES RELATED EXPENDITURE,2,Building Construction Materials,10,R & M OF BUILDINGS,2000,05/07/2019,651533,2375.00 ,Capital,SOUTH COAST INSULATION SERVICES LTD,07210512
Fareham Borough Council,http://statistics.data.gov.uk/id/local-authority/24UE,HOUSING REVENUE ACCOUNT,BV06,RESPONSIVE & VOID MAINTENANCE,5901,DEPT OF DEPUTY CHIEF EXECUTIVE,PREMISES RELATED EXPENDITURE,2,"Works - Construction, Repair & Maintenance",39,GENERAL REPAIRS,2018,05/07/2019,651542,665.00 ,Revenue,FREEFLOW DRAINS LTD,6213235
Fareham Borough Council,http://statistics.data.gov.uk/id/local-authority/24UE,OTHER REVENUE ACCOUNTS,RV,CONTRACT SERVICES D.S.O.,RV14,DEPT OF DEPUTY CHIEF EXECUTIVE,SUPPLIES & SERVICES,4,Building Construction Materials,10,MATERIALS (OPERATIONAL),4007,05/07/2019,651560,1049.22 ,Revenue,ELLIOTT BROTHERS LIMITED,02511005
Fareham Borough Council,http://statistics.data.gov.uk/id/local-authority/24UE,ENVIRONMENT AND REGULATORY SER,BV03,WASTE COLLECTION,BV03G,STREETSCENE,EMPLOYEES RELATED EXPENDITURE,1,Human Resources,26,AGENCY WORKERS,1050,05/07/2019,651571,5.72 ,Revenue,BUZZ PEOPLE RECRUITMENT LTD,07908887
Fareham Borough Council,http://statistics.data.gov.uk/id/local-authority/24UE,ENVIRONMENT AND REGULATORY SER,BV03,WASTE COLLECTION,BV03G,STREETSCENE,EMPLOYEES RELATED EXPENDITURE,1,Human Resources,26,AGENCY WORKERS,1050,05/07/2019,651571,11694.32 ,Revenue,BUZZ PEOPLE RECRUITMENT LTD,07908887
Fareham Borough Council,http://statistics.data.gov.uk/id/local-authority/24UE,ENVIRONMENT AND REGULATORY SER,BV03,WASTE COLLECTION,BV03G,STREETSCENE,EMPLOYEES RELATED EXPENDITURE,1,Human Resources,26,AGENCY WORKERS,1050,05/07/2019,651571,4979.79 ,Revenue,BUZZ PEOPLE RECRUITMENT LTD,07908887
Fareham Borough Council,http://statistics.data.gov.uk/id/local-authority/24UE,ENVIRONMENT AND REGULATORY SER,BV03,WASTE COLLECTION,BV03G,STREETSCENE,EMPLOYEES RELATED EXPENDITURE,1,Human Resources,26,AGENCY WORKERS,1050,05/07/2019,651571,9895.79 ,Revenue,BUZZ PEOPLE RECRUITMENT LTD,07908887
Fareham Borough Council,http://statistics.data.gov.uk/id/local-authority/24UE,ENVIRONMENT AND REGULATORY SER,BV03,WASTE COLLECTION,BV03G,STREETSCENE,EMPLOYEES RELATED EXPENDITURE,1,Human Resources,26,AGENCY WORKERS,1050,05/07/2019,651571,7071.51 ,Revenue,BUZZ PEOPLE RECRUITMENT LTD,07908887
Fareham Borough Council,http://statistics.data.gov.uk/id/local-authority/24UE,OTHER REVENUE ACCOUNTS,RV,NON WORK GROUP HOLDING ACCOUNT,RV18,DEPT OF DEPUTY CHIEF EXECUTIVE,SUPPLIES & SERVICES,4,Information Communication Technology,27,MOBILE TELEPHONES,4514,19/07/2019,651573,725.00 ,Revenue,VODAFONE LIMITED,01471587
Fareham Borough Council,http://statistics.data.gov.uk/id/local-authority/24UE,OTHER REVENUE ACCOUNTS,RV,NON WORK GROUP HOLDING ACCOUNT,RV18,DEPT OF SUPPORT SERVICES,SUPPLIES & SERVICES,4,Information Communication Technology,27,CONSULTANTS FEES,4401,12/07/2019,651574,7500.00 ,Revenue,ACARDIA LIMITED,3663304
Fareham Borough Council,http://statistics.data.gov.uk/id/local-authority/24UE,HOUSING REVENUE ACCOUNT,BV06,GENERAL ADMINISTRATION EXPENSE,5021,DEPT OF DEPUTY CHIEF EXECUTIVE,EMPLOYEES RELATED EXPENDITURE,1,Human Resources,26,AGENCY WORKERS,1050,05/07/2019,651575,1822.59 ,Revenue,AATOM RECRUITMENT LIMITED,07007858
Fareham Borough Council,http://statistics.data.gov.uk/id/local-authority/24UE,BALANCE SHEET,BS,BAL. SHEET - GENERAL FUND,BS1,BAL. SHEET - GENERAL FUND,PERSONAL ACCOUNTS,BS210,Vehicle Management,38,CAR LEASING ACCOUNT,P253,25/07/2019,651833,810.11 ,Balance Sheet,HITACHI CAPITAL VEHICLE SOLUTIONS,1630491
Fareham Borough Council,http://statistics.data.gov.uk/id/local-authority/24UE,BALANCE SHEET,BS,BAL. SHEET - GENERAL FUND,BS1,BAL. SHEET - GENERAL FUND,PERSONAL ACCOUNTS,BS210,Vehicle Management,38,CAR LEASING ACCOUNT,P253,25/07/2019,651833,1629.11 ,Balance Sheet,HITACHI CAPITAL VEHICLE SOLUTIONS,1630491
Fareham Borough Council,http://statistics.data.gov.uk/id/local-authority/24UE,OTHER REVENUE ACCOUNTS,RV,CONTRACT SERVICES D.S.O.,RV14,DEPT of STRATEGIC PLANNING and ENVIRONMENT,THIRD PARTY PAYMENTS,5,Local/Central Government,98,GBC - B C PARTNERSHIP,5150,12/07/2019,651837,6.94 ,Revenue,GOSPORT BOROUGH COUNCIL,
Fareham Borough Council,http://statistics.data.gov.uk/id/local-authority/24UE,OTHER REVENUE ACCOUNTS,RV,CONTRACT SERVICES D.S.O.,RV14,DEPT of STRATEGIC PLANNING and ENVIRONMENT,THIRD PARTY PAYMENTS,5,Local/Central Government,98,GBC - B C PARTNERSHIP,5150,12/07/2019,651837,2541.67 ,Revenue,GOSPORT BOROUGH COUNCIL,
Fareham Borough Council,http://statistics.data.gov.uk/id/local-authority/24UE,OTHER REVENUE ACCOUNTS,RV,CONTRACT SERVICES D.S.O.,RV14,DEPT of STRATEGIC PLANNING and ENVIRONMENT,SUPPLIES & SERVICES,4,Local/Central Government,98,TELEPHONES,4510,12/07/2019,651837,41.88 ,Revenue,GOSPORT BOROUGH COUNCIL,
Fareham Borough Council,http://statistics.data.gov.uk/id/local-authority/24UE,OTHER REVENUE ACCOUNTS,RV,CONTRACT SERVICES D.S.O.,RV14,DEPT of STRATEGIC PLANNING and ENVIRONMENT,TRANSPORT RELATED EXPENDITURE,3,Local/Central Government,98,GBC - CAR ALLOWANCES,3432,12/07/2019,651837,361.03 ,Revenue,GOSPORT BOROUGH COUNCIL,
Fareham Borough Council,http://statistics.data.gov.uk/id/local-authority/24UE,OTHER REVENUE ACCOUNTS,RV,CONTRACT SERVICES D.S.O.,RV14,DEPT of STRATEGIC PLANNING and ENVIRONMENT,EMPLOYEES RELATED EXPENDITURE,1,Local/Central Government,98,GBC - EMPLOYEE COSTS,1048,12/07/2019,651837,11992.99 ,Revenue,GOSPORT BOROUGH COUNCIL,
Fareham Borough Council,http://statistics.data.gov.uk/id/local-authority/24UE,CULTURAL AND RELATED SERVICES,BV09,CULTURE AND HERITAGE,BV09A,DEPT OF LEISURE & COMMUNITY,SUPPLIES & SERVICES,4,Art & Leisure Services,29,PERFORMING RIGHTS SOCIETY,4717,12/07/2019,651838,3261.35 ,Revenue,PPL PRS LTD,10376001
Fareham Borough Council,http://statistics.data.gov.uk/id/local-authority/24UE,CULTURAL AND RELATED SERVICES,BV09,CULTURE AND HERITAGE,BV09A,DEPT OF LEISURE & COMMUNITY,SUPPLIES & SERVICES,4,Information Communication Technology,27,FURNITURE & EQUIP-SERV. AGRMT.,4042,12/07/2019,651840,1622.55 ,Revenue,ARTIFAX SOFTWARE LTD,02007321
Fareham Borough Council,http://statistics.data.gov.uk/id/local-authority/24UE,CULTURAL AND RELATED SERVICES,BV09,CULTURE AND HERITAGE,BV09A,DEPT OF LEISURE & COMMUNITY,SUPPLIES & SERVICES,4,Information Communication Technology,27,FURNITURE & EQUIP-SERV. AGRMT.,4042,12/07/2019,651842,6291.76 ,Revenue,TICKETS.COM LTD,02309315
Fareham Borough Council,http://statistics.data.gov.uk/id/local-authority/24UE,CENTRAL SERVICES,BV07,CENTRAL SERVICES TO THE PUBLIC,BV07B,DEPT OF DEPUTY CHIEF EXECUTIVE,SUPPLIES & SERVICES,4,Local/Central Government,,LEGAL FEES,4400,25/07/2019,651845,110.00 ,Revenue,SOUTHAMPTON CITY COUNCIL,
Fareham Borough Council,http://statistics.data.gov.uk/id/local-authority/24UE,PLANNING SERVICES,BV13,DEVELOPMENT CONTROL,BV13B,DEPT of STRATEGIC PLANNING and ENVIRONMENT,SUPPLIES & SERVICES,4,Local/Central Government,,LEGAL FEES,4400,25/07/2019,651845,-3551.20 ,Revenue,SOUTHAMPTON CITY COUNCIL,
Fareham Borough Council,http://statistics.data.gov.uk/id/local-authority/24UE,HOUSING REVENUE ACCOUNT,BV06,GENERAL ADMINISTRATION EXPENSE,5021,DEPT OF DEPUTY CHIEF EXECUTIVE,SUPPLIES & SERVICES,4,Local/Central Government,,LEGAL FEES,4400,25/07/2019,651845,1548.00 ,Revenue,SOUTHAMPTON CITY COUNCIL,
Fareham Borough Council,http://statistics.data.gov.uk/id/local-authority/24UE,HOUSING REVENUE ACCOUNT,BV06,GENERAL ADMINISTRATION EXPENSE,5021,DEPT OF DEPUTY CHIEF EXECUTIVE,SUPPLIES & SERVICES,4,Local/Central Government,,LEGAL FEES,4400,25/07/2019,651845,540.00 ,Revenue,SOUTHAMPTON CITY COUNCIL,
Fareham Borough Council,http://statistics.data.gov.uk/id/local-authority/24UE,OTHER REVENUE ACCOUNTS,RV,NON WORK GROUP HOLDING ACCOUNT,RV18,DEPT OF SUPPORT SERVICES,THIRD PARTY PAYMENTS,5,Local/Central Government,,SOUTHAMPTON-LEGAL SERVICES,5160,25/07/2019,651845,150.00 ,Revenue,SOUTHAMPTON CITY COUNCIL,
Fareham Borough Council,http://statistics.data.gov.uk/id/local-authority/24UE,OTHER REVENUE ACCOUNTS,RV,NON WORK GROUP HOLDING ACCOUNT,RV18,DEPT OF SUPPORT SERVICES,THIRD PARTY PAYMENTS,5,Local/Central Government,,SOUTHAMPTON-LEGAL SERVICES,5160,25/07/2019,651845,1498.00 ,Revenue,SOUTHAMPTON CITY COUNCIL,
Fareham Borough Council,http://statistics.data.gov.uk/id/local-authority/24UE,OTHER REVENUE ACCOUNTS,RV,NON WORK GROUP HOLDING ACCOUNT,RV18,DEPT OF SUPPORT SERVICES,THIRD PARTY PAYMENTS,5,Local/Central Government,,SOUTHAMPTON-LEGAL SERVICES,5160,25/07/2019,651845,151.80 ,Revenue,SOUTHAMPTON CITY COUNCIL,
Fareham Borough Council,http://statistics.data.gov.uk/id/local-authority/24UE,OTHER REVENUE ACCOUNTS,RV,NON WORK GROUP HOLDING ACCOUNT,RV18,DEPT OF SUPPORT SERVICES,THIRD PARTY PAYMENTS,5,Local/Central Government,,SOUTHAMPTON-LEGAL SERVICES,5160,25/07/2019,651845,759.10 ,Revenue,SOUTHAMPTON CITY COUNCIL,
Fareham Borough Council,http://statistics.data.gov.uk/id/local-authority/24UE,OTHER REVENUE ACCOUNTS,RV,NON WORK GROUP HOLDING ACCOUNT,RV18,DEPT OF SUPPORT SERVICES,THIRD PARTY PAYMENTS,5,Local/Central Government,,SOUTHAMPTON-LEGAL SERVICES,5160,25/07/2019,651845,86355.50 ,Revenue,SOUTHAMPTON CITY COUNCIL,
Fareham Borough Council,http://statistics.data.gov.uk/id/local-authority/24UE,OTHER REVENUE ACCOUNTS,RV,NON WORK GROUP HOLDING ACCOUNT,RV18,DEPT OF DEPUTY CHIEF EXECUTIVE,SUPPLIES & SERVICES,4,Human Resources,26,BOOKS AND PUBLICATIONS,4300,12/07/2019,651850,500.00 ,Revenue,CIPFA BUSINESS LTD,02447542
Fareham Borough Council,http://statistics.data.gov.uk/id/local-authority/24UE,CULTURAL AND RELATED SERVICES,BV09,RECREATION AND SPORT,BV09B,STREETSCENE,PREMISES RELATED EXPENDITURE,2,Utilities,37,GAS,2130,12/07/2019,651852,59.08 ,Revenue,CORONA ENERGY RETAIL 1 LIMITED,02798334
Fareham Borough Council,http://statistics.data.gov.uk/id/local-authority/24UE,CULTURAL AND RELATED SERVICES,BV09,CULTURE AND HERITAGE,BV09A,DEPT OF LEISURE & COMMUNITY,PREMISES RELATED EXPENDITURE,2,Utilities,37,GAS,2130,12/07/2019,651852,544.44 ,Revenue,CORONA ENERGY RETAIL 1 LIMITED,02798334
Fareham Borough Council,http://statistics.data.gov.uk/id/local-authority/24UE,HOUSING REVENUE ACCOUNT,BV06,COMMUNAL HEATING SERVICES,5025,DEPT OF DEPUTY CHIEF EXECUTIVE,PREMISES RELATED EXPENDITURE,2,Utilities,37,GAS,2130,12/07/2019,651852,947.32 ,Revenue,CORONA ENERGY RETAIL 1 LIMITED,02798334
Fareham Borough Council,http://statistics.data.gov.uk/id/local-authority/24UE,HOUSING REVENUE ACCOUNT,BV06,COMMUNAL HEATING SERVICES,5025,DEPT OF DEPUTY CHIEF EXECUTIVE,PREMISES RELATED EXPENDITURE,2,Utilities,37,GAS,2130,12/07/2019,651852,1767.10 ,Revenue,CORONA ENERGY RETAIL 1 LIMITED,02798334
Fareham Borough Council,http://statistics.data.gov.uk/id/local-authority/24UE,OTHER REVENUE ACCOUNTS,RV,NON WORK GROUP HOLDING ACCOUNT,RV18,DEPT of STRATEGIC PLANNING and ENVIRONMENT,PREMISES RELATED EXPENDITURE,2,Utilities,37,GAS,2130,12/07/2019,651852,1516.98 ,Revenue,CORONA ENERGY RETAIL 1 LIMITED,02798334
Fareham Borough Council,http://statistics.data.gov.uk/id/local-authority/24UE,OTHER REVENUE ACCOUNTS,RV,NON WORK GROUP HOLDING ACCOUNT,RV18,DEPT of STRATEGIC PLANNING and ENVIRONMENT,PREMISES RELATED EXPENDITURE,2,Utilities,37,GAS,2130,12/07/2019,651852,320.11 ,Revenue,CORONA ENERGY RETAIL 1 LIMITED,02798334
Fareham Borough Council,http://statistics.data.gov.uk/id/local-authority/24UE,FINANCING & INVESTMENT I&E,BVB02,INVESTMENT PROPERTIES,BVB170,DEPT of STRATEGIC PLANNING and ENVIRONMENT,EMPLOYEES RELATED EXPENDITURE,1,"Works - Construction, Repair & Maintenance",39,AGENCY WORKERS,1050,12/07/2019,651855,1400.00 ,Revenue,MGW SURVEYORS LTD,11766387
Fareham Borough Council,http://statistics.data.gov.uk/id/local-authority/24UE,FINANCING & INVESTMENT I&E,BVB02,INVESTMENT PROPERTIES,BVB170,DEPT of STRATEGIC PLANNING and ENVIRONMENT,SUPPLIES & SERVICES,4,Facilities & Management Services,19,CONSULTANTS FEES,4401,19/07/2019,651856,605.00 ,Revenue,VAIL WILLIAMS LLP,OC319702
Fareham Borough Council,http://statistics.data.gov.uk/id/local-authority/24UE,PLANNING SERVICES,BV13,ECONOMIC DEVELOPMENT,BV13E,DEPT OF LEISURE & COMMUNITY,SUPPLIES & SERVICES,4,Environmental Services,18,FURNITURE & EQUIPT. PURCHASES,4000,19/07/2019,651859,695.00 ,Revenue,KIWA LTD T/A KIWA CMT TESTING,3473056
Fareham Borough Council,http://statistics.data.gov.uk/id/local-authority/24UE,CULTURAL AND RELATED SERVICES,BV09,RECREATION AND SPORT,BV09B,STREETSCENE,SUPPLIES & SERVICES,4,Environmental Services,18,FURNITURE & EQUIPT. PURCHASES,4000,19/07/2019,651859,595.00 ,Revenue,KIWA LTD T/A KIWA CMT TESTING,3473056
Fareham Borough Council,http://statistics.data.gov.uk/id/local-authority/24UE,CENTRAL SERVICES,BV07,CENTRAL SERVICES TO THE PUBLIC,BV07B,DEPT OF DEPUTY CHIEF EXECUTIVE,SUPPLIES & SERVICES,4,Local/Central Government,98,LEGAL FEES,4400,12/07/2019,651862,2496.00 ,Revenue,HAMPSHIRE COUNTY COUNCIL,
Fareham Borough Council,http://statistics.data.gov.uk/id/local-authority/24UE,CORPORATE & DEMOCRATIC CORE,BV07A,CORPORATE MANAGEMENT,BV07AB,DEPT OF DEPUTY CHIEF EXECUTIVE,SUPPLIES & SERVICES,4,Consultancy,15,CONSULTANTS FEES,4401,12/07/2019,651866,1520.00 ,Revenue,VANGUARD CONSULTING LTD,2207133
Fareham Borough Council,http://statistics.data.gov.uk/id/local-authority/24UE,OTHER REVENUE ACCOUNTS,RV,CONTRACT SERVICES D.S.O.,RV14,DEPT of STRATEGIC PLANNING and ENVIRONMENT,SUPPLIES & SERVICES,4,Consultancy,15,CONSULTANTS FEES,4401,12/07/2019,651866,800.00 ,Revenue,VANGUARD CONSULTING LTD,2207133
Fareham Borough Council,http://statistics.data.gov.uk/id/local-authority/24UE,CULTURAL AND RELATED SERVICES,BV09,CULTURE AND HERITAGE,BV09A,DEPT OF LEISURE & COMMUNITY,SUPPLIES & SERVICES,4,Art & Leisure Services,29,PROMOTER,4916,12/07/2019,651867,2430.12 ,Revenue,BARRY COLLINGS ENTERTAINMENTS,
Fareham Borough Council,http://statistics.data.gov.uk/id/local-authority/24UE,CULTURAL AND RELATED SERVICES,BV09,CULTURE AND HERITAGE,BV09A,DEPT OF LEISURE & COMMUNITY,SUPPLIES & SERVICES,4,Art & Leisure Services,29,PROMOTER,4916,12/07/2019,651869,2873.42 ,Revenue,ENTERTAINMENT TRADE MGT (AGENCIES) LTD,05124512
Fareham Borough Council,http://statistics.data.gov.uk/id/local-authority/24UE,CULTURAL AND RELATED SERVICES,BV09,CULTURE AND HERITAGE,BV09A,DEPT OF LEISURE & COMMUNITY,SUPPLIES & SERVICES,4,Art & Leisure Services,29,PROMOTER,4916,12/07/2019,651870,2644.59 ,Revenue,BILLY FURY STORY LTD,5145068
Fareham Borough Council,http://statistics.data.gov.uk/id/local-authority/24UE,CULTURAL AND RELATED SERVICES,BV09,CULTURE AND HERITAGE,BV09A,DEPT OF LEISURE & COMMUNITY,SUPPLIES & SERVICES,4,Art & Leisure Services,29,PROMOTER,4916,12/07/2019,651871,6547.33 ,Revenue,LMS WORLDWIDE LTD,07748891
Fareham Borough Council,http://statistics.data.gov.uk/id/local-authority/24UE,CULTURAL AND RELATED SERVICES,BV09,CULTURE AND HERITAGE,BV09A,DEPT OF LEISURE & COMMUNITY,SUPPLIES & SERVICES,4,Art & Leisure Services,29,PROMOTER,4916,12/07/2019,651872,4912.66 ,Revenue,PRESTIGE PRODUCTIONS LTD,7993168
Fareham Borough Council,http://statistics.data.gov.uk/id/local-authority/24UE,ENVIRONMENT AND REGULATORY SER,BV03,WASTE COLLECTION,BV03G,STREETSCENE,EMPLOYEES RELATED EXPENDITURE,1,Human Resources,26,AGENCY WORKERS,1050,19/07/2019,651874,6252.22 ,Revenue,BUZZ PEOPLE RECRUITMENT LTD,07908887
Fareham Borough Council,http://statistics.data.gov.uk/id/local-authority/24UE,ENVIRONMENT AND REGULATORY SER,BV03,WASTE COLLECTION,BV03G,STREETSCENE,EMPLOYEES RELATED EXPENDITURE,1,Human Resources,26,AGENCY WORKERS,1050,19/07/2019,651874,2879.49 ,Revenue,BUZZ PEOPLE RECRUITMENT LTD,07908887
Fareham Borough Council,http://statistics.data.gov.uk/id/local-authority/24UE,ENVIRONMENT AND REGULATORY SER,BV03,WASTE COLLECTION,BV03G,STREETSCENE,EMPLOYEES RELATED EXPENDITURE,1,Human Resources,26,AGENCY WORKERS,1050,19/07/2019,651874,6322.11 ,Revenue,BUZZ PEOPLE RECRUITMENT LTD,07908887
Fareham Borough Council,http://statistics.data.gov.uk/id/local-authority/24UE,ENVIRONMENT AND REGULATORY SER,BV03,WASTE COLLECTION,BV03G,STREETSCENE,EMPLOYEES RELATED EXPENDITURE,1,Human Resources,26,AGENCY WORKERS,1050,19/07/2019,651874,5767.05 ,Revenue,BUZZ PEOPLE RECRUITMENT LTD,07908887
Fareham Borough Council,http://statistics.data.gov.uk/id/local-authority/24UE,HOUSING REVENUE ACCOUNT,BV06,GENERAL ADMINISTRATION EXPENSE,5021,DEPT OF DEPUTY CHIEF EXECUTIVE,EMPLOYEES RELATED EXPENDITURE,1,Human Resources,26,AGENCY WORKERS,1050,12/07/2019,651877,697.11 ,Revenue,JAMES ANDREWS RECRUITMENT SOLUTIONS LTD,06834852
Fareham Borough Council,http://statistics.data.gov.uk/id/local-authority/24UE,PLANNING SERVICES,BV13,DEVELOPMENT CONTROL,BV13B,DEPT of STRATEGIC PLANNING and ENVIRONMENT,SUPPLIES & SERVICES,4,Consultancy,15,CONSULTANTS FEES,4401,12/07/2019,651878,1000.00 ,Revenue,redacted personal data,
Fareham Borough Council,http://statistics.data.gov.uk/id/local-authority/24UE,HIGHWAYS ROADS AND TRANSPORT,BV12,PARKING SERVICES,BV12D,DEPT OF LEISURE & COMMUNITY,SUPPLIES & SERVICES,4,Facilities & Management Services,19,SECURITY SERVICES,4409,12/07/2019,651879,-23.04 ,Revenue,VENTURE SECURITY MANAGEMENT LTD,06000601
Fareham Borough Council,http://statistics.data.gov.uk/id/local-authority/24UE,HIGHWAYS ROADS AND TRANSPORT,BV12,PARKING SERVICES,BV12D,DEPT OF LEISURE & COMMUNITY,SUPPLIES & SERVICES,4,Facilities & Management Services,19,SECURITY SERVICES,4409,12/07/2019,651879,2443.50 ,Revenue,VENTURE SECURITY MANAGEMENT LTD,06000601
Fareham Borough Council,http://statistics.data.gov.uk/id/local-authority/24UE,CENTRAL SERVICES,BV07,CENTRAL SERVICES TO THE PUBLIC,BV07B,DEPT OF SUPPORT SERVICES,SUPPLIES & SERVICES,4,Mail Services�,30,POSTAGES,4500,19/07/2019,651880,798.50 ,Revenue,ROYAL MAIL,04138203
Fareham Borough Council,http://statistics.data.gov.uk/id/local-authority/24UE,CULTURAL AND RELATED SERVICES,BV09,CULTURE AND HERITAGE,BV09A,DEPT OF LEISURE & COMMUNITY,SUPPLIES & SERVICES,4,Financial Services,20,SECURITY SERVICES,4409,19/07/2019,651885,119.60 ,Revenue,JADE SECURITY SERVICES LTD,3549438
Fareham Borough Council,http://statistics.data.gov.uk/id/local-authority/24UE,HIGHWAYS ROADS AND TRANSPORT,BV12,PARKING SERVICES,BV12D,DEPT OF LEISURE & COMMUNITY,SUPPLIES & SERVICES,4,Financial Services,20,SECURITY SERVICES,4409,19/07/2019,651885,2330.82 ,Revenue,JADE SECURITY SERVICES LTD,3549438
Fareham Borough Council,http://statistics.data.gov.uk/id/local-authority/24UE,OTHER REVENUE ACCOUNTS,RV,NON WORK GROUP HOLDING ACCOUNT,RV18,DEPT OF LEISURE & COMMUNITY,SUPPLIES & SERVICES,4,Financial Services,20,SECURITY SERVICES,4409,19/07/2019,651885,119.60 ,Revenue,JADE SECURITY SERVICES LTD,3549438
Fareham Borough Council,http://statistics.data.gov.uk/id/local-authority/24UE,CENTRAL SERVICES,BV07,CENTRAL SERVICES TO THE PUBLIC,BV07B,DEPT OF SUPPORT SERVICES,SUPPLIES & SERVICES,4,Facilities & Management Services,19,POSTAGES,4500,12/07/2019,651886,507.05 ,Revenue,FINANCIAL DATA MANAGEMENT LTD,2827644
Fareham Borough Council,http://statistics.data.gov.uk/id/local-authority/24UE,HOUSING REVENUE ACCOUNT,BV06,RESPONSIVE & VOID MAINTENANCE,5901,DEPT OF DEPUTY CHIEF EXECUTIVE,PREMISES RELATED EXPENDITURE,2,"Works - Construction, Repair & Maintenance",39,GENERAL REPAIRS,2018,12/07/2019,651887,775.00 ,Revenue,QST CONSTRUCTION SERVICES LIMITED,5270580
Fareham Borough Council,http://statistics.data.gov.uk/id/local-authority/24UE,HOUSING REVENUE ACCOUNT,BV06,RESPONSIVE & VOID MAINTENANCE,5901,DEPT OF DEPUTY CHIEF EXECUTIVE,PREMISES RELATED EXPENDITURE,2,"Works - Construction, Repair & Maintenance",39,ELEC SERVICING & ASSOC REPAIRS,2025,12/07/2019,651888,2265.32 ,Revenue,BCG ELECTRICAL SERVICES LIMITED,5097428
Fareham Borough Council,http://statistics.data.gov.uk/id/local-authority/24UE,HOUSING REVENUE ACCOUNT,BV06,RESPONSIVE & VOID MAINTENANCE,5901,DEPT OF DEPUTY CHIEF EXECUTIVE,PREMISES RELATED EXPENDITURE,2,Information Communication Technology,27,GENERAL REPAIRS,2018,25/07/2019,651892,2177.94 ,Revenue,TUNSTALL HEALTHCARE (UK) LTD,01332249
Fareham Borough Council,http://statistics.data.gov.uk/id/local-authority/24UE,CAPITAL PROGRAMME - HOUSING SERVICES,CP,RENOVATION OF L.A. DWELLINGS,CP10,CAPITAL - FAREHAM HOUSING CAPITAL,PREMISES RELATED EXPENDITURE,2,Social Community Care Supplies & Services,32,R & M OF BUILDINGS,2000,12/07/2019,651896,1490.50 ,Capital,LIFTABILITY LIMITED,03782380
Fareham Borough Council,http://statistics.data.gov.uk/id/local-authority/24UE,HOUSING REVENUE ACCOUNT,BV06,OTHER COMMUNAL SERVICES,5034,DEPT OF DEPUTY CHIEF EXECUTIVE,SUPPLIES & SERVICES,4,Housing Management,25,FURNITURE & EQUIPT.-RENTS/LSES,4040,12/07/2019,651898,1282.00 ,Revenue,JLA TOTAL CARE LTD,02951461
Fareham Borough Council,http://statistics.data.gov.uk/id/local-authority/24UE,CORPORATE & DEMOCRATIC CORE,BV07A,CORPORATE MANAGEMENT,BV07AB,DEPT OF LEISURE & COMMUNITY,SUPPLIES & SERVICES,4,Facilities & Management Services,19,GRAPHIC DESIGN SERVICE,4445,12/07/2019,651899,700.00 ,Revenue,BUTTERCROSS CREATIVE *USE B8105*,
Fareham Borough Council,http://statistics.data.gov.uk/id/local-authority/24UE,BALANCE SHEET,BS,FMS BAL.SHEET & CONTROL ACCT.,BS1,FMS BAL.SHEET & CONTROL ACCT.,CONTROL ACCOUNTS,C001,Financial Services,20,GOVT PROCURE CARD-CASH CONTROL,C114,12/07/2019,651959,2369.89 ,Balance Sheet,NATWEST COMMERCIAL CARDS,929027
Fareham Borough Council,http://statistics.data.gov.uk/id/local-authority/24UE,BALANCE SHEET,BS,FMS BAL.SHEET & CONTROL ACCT.,BS1,FMS BAL.SHEET & CONTROL ACCT.,CONTROL ACCOUNTS,C001,Financial Services,20,GOVT PROCURE CARD-CASH CONTROL,C114,12/07/2019,651960,29879.44 ,Balance Sheet,NATWEST COMMERCIAL CARDS,929027
Fareham Borough Council,http://statistics.data.gov.uk/id/local-authority/24UE,CORPORATE & DEMOCRATIC CORE,BV07A,CORPORATE MANAGEMENT,BV07AB,DEPT OF DEPUTY CHIEF EXECUTIVE,SUPPLIES & SERVICES,4,Financial Services,20,BANK CHARGES,4954,12/07/2019,651961,2861.76 ,Revenue,CAPITA BUSINESS SERVICES LTD,02299747
Fareham Borough Council,http://statistics.data.gov.uk/id/local-authority/24UE,CULTURAL AND RELATED SERVICES,BV09,CULTURE AND HERITAGE,BV09A,DEPT OF LEISURE & COMMUNITY,PREMISES RELATED EXPENDITURE,2,Utilities,37,ELECTRICITY,2120,12/07/2019,651962,2774.67 ,Revenue,EDF ENERGY,02366852
Fareham Borough Council,http://statistics.data.gov.uk/id/local-authority/24UE,OTHER REVENUE ACCOUNTS,RV,NON WORK GROUP HOLDING ACCOUNT,RV18,DEPT of STRATEGIC PLANNING and ENVIRONMENT,PREMISES RELATED EXPENDITURE,2,Utilities,37,ELECTRICITY,2120,12/07/2019,651962,12614.41 ,Revenue,EDF ENERGY,02366852
Fareham Borough Council,http://statistics.data.gov.uk/id/local-authority/24UE,CULTURAL AND RELATED SERVICES,BV09,CULTURE AND HERITAGE,BV09A,STREETSCENE,PREMISES RELATED EXPENDITURE,2,Utilities,37,ELECTRICITY,2120,12/07/2019,651966,51.02 ,Revenue,EDF ENERGY,02366852
Fareham Borough Council,http://statistics.data.gov.uk/id/local-authority/24UE,CENTRAL SERVICES,BV07,CENTRAL SERVICES TO THE PUBLIC,BV07B,DEPT OF DEPUTY CHIEF EXECUTIVE,PREMISES RELATED EXPENDITURE,2,Utilities,37,ELECTRICITY,2120,12/07/2019,651966,199.14 ,Revenue,EDF ENERGY,02366852
Fareham Borough Council,http://statistics.data.gov.uk/id/local-authority/24UE,HIGHWAYS ROADS AND TRANSPORT,BV12,PARKING SERVICES,BV12D,DEPT OF LEISURE & COMMUNITY,PREMISES RELATED EXPENDITURE,2,Utilities,37,ELECTRICITY,2120,12/07/2019,651966,76.30 ,Revenue,EDF ENERGY,02366852
Fareham Borough Council,http://statistics.data.gov.uk/id/local-authority/24UE,HOUSING REVENUE ACCOUNT,BV06,COMMUNAL LIGHTING,5026,DEPT OF DEPUTY CHIEF EXECUTIVE,PREMISES RELATED EXPENDITURE,2,Utilities,37,ELECTRICITY,2120,12/07/2019,651966,555.39 ,Revenue,EDF ENERGY,02366852
Fareham Borough Council,http://statistics.data.gov.uk/id/local-authority/24UE,CULTURAL AND RELATED SERVICES,BV09,CULTURE AND HERITAGE,BV09A,DEPT OF LEISURE & COMMUNITY,SUPPLIES & SERVICES,4,Financial Services,20,CREDIT CARD CHARGES,4957,12/07/2019,651971,126.91 ,Revenue,WORLDPAY,07316500
Fareham Borough Council,http://statistics.data.gov.uk/id/local-authority/24UE,CULTURAL AND RELATED SERVICES,BV09,CULTURE AND HERITAGE,BV09A,DEPT OF LEISURE & COMMUNITY,SUPPLIES & SERVICES,4,Financial Services,20,CREDIT CARD CHARGES,4957,12/07/2019,651971,559.19 ,Revenue,WORLDPAY,07316500
Fareham Borough Council,http://statistics.data.gov.uk/id/local-authority/24UE,GENERAL FUND HOUSING,BV05,HOUSING ADVICE,BV05C,DEPT OF DEPUTY CHIEF EXECUTIVE,SUPPLIES & SERVICES,4,Unclassified,,LOCAL ASSISTANCE PAYMENT,4727,12/07/2019,651974,938.00 ,Revenue,redacted personal data,
Fareham Borough Council,http://statistics.data.gov.uk/id/local-authority/24UE,GENERAL FUND HOUSING,BV05,HOMELESSNESS,BV05F,DEPT OF DEPUTY CHIEF EXECUTIVE,SUPPLIES & SERVICES,4,Social Community Care Supplies & Services,32,BED & BREAKFAST EXPENSES,4943,12/07/2019,651980,540.00 ,Revenue,WESTCOTE BED AND BREAKFAST,
Fareham Borough Council,http://statistics.data.gov.uk/id/local-authority/24UE,GENERAL FUND HOUSING,BV05,HOMELESSNESS,BV05F,DEPT OF DEPUTY CHIEF EXECUTIVE,SUPPLIES & SERVICES,4,Social Community Care Supplies & Services,32,BED & BREAKFAST EXPENSES,4943,12/07/2019,651981,560.00 ,Revenue,WESTCOTE BED AND BREAKFAST,
Fareham Borough Council,http://statistics.data.gov.uk/id/local-authority/24UE,GENERAL FUND HOUSING,BV05,HOMELESSNESS,BV05F,DEPT OF DEPUTY CHIEF EXECUTIVE,SUPPLIES & SERVICES,4,Social Community Care Supplies & Services,32,BED & BREAKFAST EXPENSES,4943,12/07/2019,651982,700.00 ,Revenue,WESTCOTE BED AND BREAKFAST,
Fareham Borough Council,http://statistics.data.gov.uk/id/local-authority/24UE,GENERAL FUND HOUSING,BV05,HOMELESSNESS,BV05F,DEPT OF DEPUTY CHIEF EXECUTIVE,SUPPLIES & SERVICES,4,Social Community Care Supplies & Services,32,BED & BREAKFAST EXPENSES,4943,12/07/2019,651983,700.00 ,Revenue,WESTCOTE BED AND BREAKFAST,
Fareham Borough Council,http://statistics.data.gov.uk/id/local-authority/24UE,HOUSING REVENUE ACCOUNT,BV06,COMMUNAL LIGHTING,5026,DEPT OF DEPUTY CHIEF EXECUTIVE,PREMISES RELATED EXPENDITURE,2,Utilities,37,GAS,2130,12/07/2019,651986,3667.43 ,Revenue,BRITISH GAS BUSINESS,03078711
Fareham Borough Council,http://statistics.data.gov.uk/id/local-authority/24UE,OTHER REVENUE ACCOUNTS,RV,CONTRACT SERVICES D.S.O.,RV14,DEPT of STRATEGIC PLANNING and ENVIRONMENT,SUPPLIES & SERVICES,4,Human Resources,26,GRANTS AND SUBSCRIPTIONS,4700,12/07/2019,651989,3532.11 ,Revenue,DISTRICT SURVEYORS ASSOCIATION LTD,5531889
Fareham Borough Council,http://statistics.data.gov.uk/id/local-authority/24UE,OTHER REVENUE ACCOUNTS,RV,NON WORK GROUP HOLDING ACCOUNT,RV18,DEPT OF LEISURE & COMMUNITY,SUPPLIES & SERVICES,4,Mail Services�,30,POSTAGES,4500,12/07/2019,651993,4000.00 ,Revenue,NEOPOST LIMITED,02658324
Fareham Borough Council,http://statistics.data.gov.uk/id/local-authority/24UE,OTHER REVENUE ACCOUNTS,RV,NON WORK GROUP HOLDING ACCOUNT,RV18,DEPT OF SUPPORT SERVICES,SUPPLIES & SERVICES,4,Human Resources,26,TRAINING FOR EMPLOYEES,4612,12/07/2019,651996,1300.00 ,Revenue,THE PEOPLE ACADEMY LTD,9213953
Fareham Borough Council,http://statistics.data.gov.uk/id/local-authority/24UE,OTHER REVENUE ACCOUNTS,RV,NON WORK GROUP HOLDING ACCOUNT,RV18,DEPT OF SUPPORT SERVICES,SUPPLIES & SERVICES,4,Human Resources,26,TRAINING FOR EMPLOYEES,4612,12/07/2019,651997,6500.00 ,Revenue,THE PEOPLE ACADEMY LTD,9213953
Fareham Borough Council,http://statistics.data.gov.uk/id/local-authority/24UE,CULTURAL AND RELATED SERVICES,BV09,RECREATION AND SPORT,BV09B,STREETSCENE,PREMISES RELATED EXPENDITURE,2,Environmental Services,18,R & M OF BUILDINGS,2000,12/07/2019,652005,349.17 ,Revenue,CLEARWATER TECHNOLOGY LTD,03659610
Fareham Borough Council,http://statistics.data.gov.uk/id/local-authority/24UE,CULTURAL AND RELATED SERVICES,BV09,CULTURE AND HERITAGE,BV09A,DEPT OF LEISURE & COMMUNITY,PREMISES RELATED EXPENDITURE,2,Environmental Services,18,R & M OF BUILDINGS,2000,12/07/2019,652005,52.37 ,Revenue,CLEARWATER TECHNOLOGY LTD,03659610
Fareham Borough Council,http://statistics.data.gov.uk/id/local-authority/24UE,CULTURAL AND RELATED SERVICES,BV09,RECREATION AND SPORT,BV09B,DEPT OF LEISURE & COMMUNITY,PREMISES RELATED EXPENDITURE,2,Environmental Services,18,R & M OF BUILDINGS,2000,12/07/2019,652005,104.75 ,Revenue,CLEARWATER TECHNOLOGY LTD,03659610
Fareham Borough Council,http://statistics.data.gov.uk/id/local-authority/24UE,ENVIRONMENT AND REGULATORY SER,BV03,ENVIRONMENTAL HEALTH,BV03C,STREETSCENE,PREMISES RELATED EXPENDITURE,2,Environmental Services,18,R & M OF BUILDINGS,2000,12/07/2019,652005,52.37 ,Revenue,CLEARWATER TECHNOLOGY LTD,03659610
Fareham Borough Council,http://statistics.data.gov.uk/id/local-authority/24UE,HOUSING REVENUE ACCOUNT,BV06,RESPONSIVE & VOID MAINTENANCE,5901,DEPT OF DEPUTY CHIEF EXECUTIVE,PREMISES RELATED EXPENDITURE,2,Environmental Services,18,R & M OF BUILDINGS,2000,12/07/2019,652005,174.58 ,Revenue,CLEARWATER TECHNOLOGY LTD,03659610
Fareham Borough Council,http://statistics.data.gov.uk/id/local-authority/24UE,OTHER REVENUE ACCOUNTS,RV,NON WORK GROUP HOLDING ACCOUNT,RV18,DEPT of STRATEGIC PLANNING and ENVIRONMENT,PREMISES RELATED EXPENDITURE,2,Environmental Services,18,R & M OF BUILDINGS,2000,12/07/2019,652005,925.30 ,Revenue,CLEARWATER TECHNOLOGY LTD,03659610
Fareham Borough Council,http://statistics.data.gov.uk/id/local-authority/24UE,OTHER REVENUE ACCOUNTS,RV,NON WORK GROUP HOLDING ACCOUNT,RV18,DEPT of STRATEGIC PLANNING and ENVIRONMENT,PREMISES RELATED EXPENDITURE,2,Environmental Services,18,R & M OF BUILDINGS,2000,12/07/2019,652005,34.92 ,Revenue,CLEARWATER TECHNOLOGY LTD,03659610
Fareham Borough Council,http://statistics.data.gov.uk/id/local-authority/24UE,BALANCE SHEET,BS,BAL. SHEET - COLLECTION FUND,BS1,BAL. SHEET - COLLECTION FUND,PERSONAL ACCOUNTS,BS210,Local/Central Government,,HAMPSHIRE FIRE/RESCUE PRECEPT,P161,12/07/2019,652007,276409.00 ,Balance Sheet,HAMPSHIRE FIRE & RESCUE AUTHORITY,
Fareham Borough Council,http://statistics.data.gov.uk/id/local-authority/24UE,BALANCE SHEET,BS,BAL. SHEET - COLLECTION FUND,BS1,BAL. SHEET - COLLECTION FUND,PERSONAL ACCOUNTS,BS210,Local/Central Government,,HAMPSHIRE POLICE PRECEPT,P159,12/07/2019,652008,710257.00 ,Balance Sheet,POLICE & CRIME COMMISSIONER HAMPSHIRE,
Fareham Borough Council,http://statistics.data.gov.uk/id/local-authority/24UE,BALANCE SHEET,BS,BAL. SHEET - COLLECTION FUND,BS1,BAL. SHEET - COLLECTION FUND,PERSONAL ACCOUNTS,BS210,Local/Central Government,98,HAMPSHIRE C.C. PRECEPT ACCOUNT,P157,12/07/2019,652009,4696674.00 ,Balance Sheet,HAMPSHIRE COUNTY COUNCIL,
Fareham Borough Council,http://statistics.data.gov.uk/id/local-authority/24UE,ENVIRONMENT AND REGULATORY SER,BV03,WASTE COLLECTION,BV03G,STREETSCENE,TRANSPORT RELATED EXPENDITURE,3,Vehicle Management,38,TYRES,3022,12/07/2019,652013,938.54 ,Revenue,TRUCTYRE FLEET MANAGEMENT LTD,03999449
Fareham Borough Council,http://statistics.data.gov.uk/id/local-authority/24UE,ENVIRONMENT AND REGULATORY SER,BV03,WASTE COLLECTION,BV03G,STREETSCENE,TRANSPORT RELATED EXPENDITURE,3,Vehicle Management,38,TYRES,3022,12/07/2019,652016,559.29 ,Revenue,TRUCTYRE FLEET MANAGEMENT LTD,03999449
Fareham Borough Council,http://statistics.data.gov.uk/id/local-authority/24UE,ENVIRONMENT AND REGULATORY SER,BV03,WASTE COLLECTION,BV03G,STREETSCENE,TRANSPORT RELATED EXPENDITURE,3,Vehicle Management,38,ROUTINE REPAIRS VEHICLES/PLANT,3010,12/07/2019,652023,520.00 ,Revenue,SOLENT TRUCK PARTS LTD,3726877
Fareham Borough Council,http://statistics.data.gov.uk/id/local-authority/24UE,HOUSING REVENUE ACCOUNT,BV06,RESPONSIVE & VOID MAINTENANCE,5901,DEPT OF DEPUTY CHIEF EXECUTIVE,PREMISES RELATED EXPENDITURE,2,Environmental Services,18,SPECIAL REFUSE COLLECTIONS,2750,12/07/2019,652026,1717.77 ,Revenue,VEOLIA ES HAMPSHIRE LIMITED,02817856
Fareham Borough Council,http://statistics.data.gov.uk/id/local-authority/24UE,OTHER REVENUE ACCOUNTS,RV,G.F. EXPENDITURE ON SERVICES,RV10,STREETSCENE,SUPPLIES & SERVICES,4,Environmental Services,18,TIPPING / INCINERATOR FEES,4425,12/07/2019,652026,1566.88 ,Revenue,VEOLIA ES HAMPSHIRE LIMITED,02817856
Fareham Borough Council,http://statistics.data.gov.uk/id/local-authority/24UE,ENVIRONMENT AND REGULATORY SER,BV03,STREET CLEANSING,BV03F,STREETSCENE,TRANSPORT RELATED EXPENDITURE,3,Vehicle Management,38,ROUTINE REPAIRS VEHICLES/PLANT,3010,12/07/2019,652035,643.00 ,Revenue,TENNANT UK CLEANING SOLUTIONS LTD,SC042491
Fareham Borough Council,http://statistics.data.gov.uk/id/local-authority/24UE,PLANNING SERVICES,BV13,DEVELOPMENT CONTROL,BV13B,DEPT of STRATEGIC PLANNING and ENVIRONMENT,EMPLOYEES RELATED EXPENDITURE,1,Human Resources,26,AGENCY WORKERS,1050,25/07/2019,652037,519.11 ,Revenue,OFFICE ANGELS LTD,1985032
Fareham Borough Council,http://statistics.data.gov.uk/id/local-authority/24UE,OTHER REVENUE ACCOUNTS,RV,G.F. EXPENDITURE ON SERVICES,RV10,STREETSCENE,SUPPLIES & SERVICES,4,Environmental Services,18,SUB-CONTRACTORS CHARGES,4432,12/07/2019,652042,375.00 ,Revenue,L&S WASTE MANAGEMENT LTD,03475329
Fareham Borough Council,http://statistics.data.gov.uk/id/local-authority/24UE,OTHER REVENUE ACCOUNTS,RV,G.F. EXPENDITURE ON SERVICES,RV10,STREETSCENE,SUPPLIES & SERVICES,4,Environmental Services,18,SUB-CONTRACTORS CHARGES,4432,12/07/2019,652042,375.00 ,Revenue,L&S WASTE MANAGEMENT LTD,03475329
Fareham Borough Council,http://statistics.data.gov.uk/id/local-authority/24UE,ENVIRONMENT AND REGULATORY SER,BV03,STREET CLEANSING,BV03F,STREETSCENE,EMPLOYEES RELATED EXPENDITURE,1,Human Resources,26,AGENCY WORKERS,1050,12/07/2019,652043,1656.74 ,Revenue,BUZZ PEOPLE RECRUITMENT LTD,07908887
Fareham Borough Council,http://statistics.data.gov.uk/id/local-authority/24UE,OTHER REVENUE ACCOUNTS,RV,G.F. EXPENDITURE ON SERVICES,RV10,STREETSCENE,EMPLOYEES RELATED EXPENDITURE,1,Human Resources,26,AGENCY WORKERS,1050,12/07/2019,652043,10833.94 ,Revenue,BUZZ PEOPLE RECRUITMENT LTD,07908887
Fareham Borough Council,http://statistics.data.gov.uk/id/local-authority/24UE,ENVIRONMENT AND REGULATORY SER,BV03,WASTE COLLECTION,BV03G,STREETSCENE,SUPPLIES & SERVICES,4,"Works - Construction, Repair & Maintenance",39,FURNITURE & EQUIPT. PURCHASES,4000,19/07/2019,652044,1340.00 ,Revenue,EGBERT H TAYLOR & COMPANY LIMITED,00718441
Fareham Borough Council,http://statistics.data.gov.uk/id/local-authority/24UE,OTHER REVENUE ACCOUNTS,RV,NON WORK GROUP HOLDING ACCOUNT,RV18,STREETSCENE,SUPPLIES & SERVICES,4,Vehicle Management,38,MATERIALS (OPERATIONAL),4007,12/07/2019,652047,1700.00 ,Revenue,SOLENT TRUCK PARTS LTD,3726877
Fareham Borough Council,http://statistics.data.gov.uk/id/local-authority/24UE,OTHER REVENUE ACCOUNTS,RV,G.F. EXPENDITURE ON SERVICES,RV10,STREETSCENE,SUPPLIES & SERVICES,4,Sports & Playground Equipment & Maintenance,33,SUB-CONTRACTORS CHARGES,4432,12/07/2019,652058,1310.00 ,Revenue,G.B. SPORT & LEISURE,07524601
Fareham Borough Council,http://statistics.data.gov.uk/id/local-authority/24UE,OTHER REVENUE ACCOUNTS,RV,G.F. EXPENDITURE ON SERVICES,RV10,STREETSCENE,TRANSPORT RELATED EXPENDITURE,3,Vehicle Management,38,ROUTINE REPAIRS VEHICLES/PLANT,3010,12/07/2019,652064,728.84 ,Revenue,ROD GASKIN LTD,2965774
Fareham Borough Council,http://statistics.data.gov.uk/id/local-authority/24UE,OTHER REVENUE ACCOUNTS,RV,G.F. EXPENDITURE ON SERVICES,RV10,STREETSCENE,TRANSPORT RELATED EXPENDITURE,3,Vehicle Management,38,ROUTINE REPAIRS VEHICLES/PLANT,3010,12/07/2019,652066,986.52 ,Revenue,ROD GASKIN LTD,2965774
Fareham Borough Council,http://statistics.data.gov.uk/id/local-authority/24UE,OTHER REVENUE ACCOUNTS,RV,G.F. EXPENDITURE ON SERVICES,RV10,STREETSCENE,TRANSPORT RELATED EXPENDITURE,3,Horticultural,24,ROUTINE REPAIRS VEHICLES/PLANT,3010,12/07/2019,652067,1421.44 ,Revenue,KINGSWORTHY GARDEN MACHINERY LTD,5321124
Fareham Borough Council,http://statistics.data.gov.uk/id/local-authority/24UE,OTHER REVENUE ACCOUNTS,RV,G.F. EXPENDITURE ON SERVICES,RV10,STREETSCENE,TRANSPORT RELATED EXPENDITURE,3,Horticultural,24,PURCHASE OF VEHICLES,3000,12/07/2019,652068,5014.70 ,Revenue,KINGSWORTHY GARDEN MACHINERY LTD,5321124
Fareham Borough Council,http://statistics.data.gov.uk/id/local-authority/24UE,OTHER REVENUE ACCOUNTS,RV,G.F. EXPENDITURE ON SERVICES,RV10,STREETSCENE,TRANSPORT RELATED EXPENDITURE,3,Horticultural,24,ROUTINE REPAIRS VEHICLES/PLANT,3010,12/07/2019,652070,612.00 ,Revenue,KINGSWORTHY GARDEN MACHINERY LTD,5321124
Fareham Borough Council,http://statistics.data.gov.uk/id/local-authority/24UE,OTHER REVENUE ACCOUNTS,RV,G.F. EXPENDITURE ON SERVICES,RV10,STREETSCENE,TRANSPORT RELATED EXPENDITURE,3,Vehicle Management,38,ROUTINE REPAIRS VEHICLES/PLANT,3010,12/07/2019,652072,58.33 ,Revenue,OAKES BROS LTD,395809
Fareham Borough Council,http://statistics.data.gov.uk/id/local-authority/24UE,OTHER REVENUE ACCOUNTS,RV,G.F. EXPENDITURE ON SERVICES,RV10,STREETSCENE,TRANSPORT RELATED EXPENDITURE,3,Vehicle Management,38,ROUTINE REPAIRS VEHICLES/PLANT,3010,12/07/2019,652072,583.29 ,Revenue,OAKES BROS LTD,395809
Fareham Borough Council,http://statistics.data.gov.uk/id/local-authority/24UE,OTHER REVENUE ACCOUNTS,RV,G.F. EXPENDITURE ON SERVICES,RV10,STREETSCENE,TRANSPORT RELATED EXPENDITURE,3,Vehicle Management,38,ROUTINE REPAIRS VEHICLES/PLANT,3010,12/07/2019,652072,-641.62 ,Revenue,OAKES BROS LTD,395809
Fareham Borough Council,http://statistics.data.gov.uk/id/local-authority/24UE,OTHER REVENUE ACCOUNTS,RV,G.F. EXPENDITURE ON SERVICES,RV10,STREETSCENE,TRANSPORT RELATED EXPENDITURE,3,Vehicle Management,38,ROUTINE REPAIRS VEHICLES/PLANT,3010,12/07/2019,652072,641.62 ,Revenue,OAKES BROS LTD,395809
Fareham Borough Council,http://statistics.data.gov.uk/id/local-authority/24UE,OTHER REVENUE ACCOUNTS,RV,G.F. EXPENDITURE ON SERVICES,RV10,STREETSCENE,TRANSPORT RELATED EXPENDITURE,3,Vehicle Management,38,ROUTINE REPAIRS VEHICLES/PLANT,3010,12/07/2019,652074,54.67 ,Revenue,OAKES BROS LTD,395809
Fareham Borough Council,http://statistics.data.gov.uk/id/local-authority/24UE,OTHER REVENUE ACCOUNTS,RV,G.F. EXPENDITURE ON SERVICES,RV10,STREETSCENE,TRANSPORT RELATED EXPENDITURE,3,Vehicle Management,38,ROUTINE REPAIRS VEHICLES/PLANT,3010,12/07/2019,652074,546.72 ,Revenue,OAKES BROS LTD,395809
Fareham Borough Council,http://statistics.data.gov.uk/id/local-authority/24UE,OTHER REVENUE ACCOUNTS,RV,G.F. EXPENDITURE ON SERVICES,RV10,STREETSCENE,TRANSPORT RELATED EXPENDITURE,3,Vehicle Management,38,ROUTINE REPAIRS VEHICLES/PLANT,3010,12/07/2019,652074,-601.39 ,Revenue,OAKES BROS LTD,395809
Fareham Borough Council,http://statistics.data.gov.uk/id/local-authority/24UE,OTHER REVENUE ACCOUNTS,RV,G.F. EXPENDITURE ON SERVICES,RV10,STREETSCENE,TRANSPORT RELATED EXPENDITURE,3,Vehicle Management,38,ROUTINE REPAIRS VEHICLES/PLANT,3010,12/07/2019,652074,601.39 ,Revenue,OAKES BROS LTD,395809
Fareham Borough Council,http://statistics.data.gov.uk/id/local-authority/24UE,ENVIRONMENT AND REGULATORY SER,BV03,STREET CLEANSING,BV03F,STREETSCENE,SUPPLIES & SERVICES,4,Vehicle Management,38,MATERIALS (OPERATIONAL),4007,12/07/2019,652076,1443.20 ,Revenue,SWEEPER HIRE,
Fareham Borough Council,http://statistics.data.gov.uk/id/local-authority/24UE,OTHER REVENUE ACCOUNTS,RV,NON WORK GROUP HOLDING ACCOUNT,RV18,STREETSCENE,SUPPLIES & SERVICES,4,Vehicle Management,38,MATERIALS (OPERATIONAL),4007,19/07/2019,652082,667.52 ,Revenue,WURTH UK LTD,1124802
Fareham Borough Council,http://statistics.data.gov.uk/id/local-authority/24UE,HOUSING REVENUE ACCOUNT,BV06,RESPONSIVE & VOID MAINTENANCE,5901,DEPT OF DEPUTY CHIEF EXECUTIVE,PREMISES RELATED EXPENDITURE,2,Building Construction Materials,10,GENERAL REPAIRS,2018,12/07/2019,652087,787.83 ,Revenue,BALMORAL FLOORING LTD,5196959
Fareham Borough Council,http://statistics.data.gov.uk/id/local-authority/24UE,HOUSING REVENUE ACCOUNT,BV06,RESPONSIVE & VOID MAINTENANCE,5901,DEPT OF DEPUTY CHIEF EXECUTIVE,PREMISES RELATED EXPENDITURE,2,Building Construction Materials,10,GENERAL REPAIRS,2018,12/07/2019,652087,1313.33 ,Revenue,BALMORAL FLOORING LTD,5196959
Fareham Borough Council,http://statistics.data.gov.uk/id/local-authority/24UE,HOUSING REVENUE ACCOUNT,BV06,RESPONSIVE & VOID MAINTENANCE,5901,DEPT OF DEPUTY CHIEF EXECUTIVE,PREMISES RELATED EXPENDITURE,2,Building Construction Materials,10,GENERAL REPAIRS,2018,12/07/2019,652087,-2101.16 ,Revenue,BALMORAL FLOORING LTD,5196959
Fareham Borough Council,http://statistics.data.gov.uk/id/local-authority/24UE,HOUSING REVENUE ACCOUNT,BV06,RESPONSIVE & VOID MAINTENANCE,5901,DEPT OF DEPUTY CHIEF EXECUTIVE,PREMISES RELATED EXPENDITURE,2,Building Construction Materials,10,GENERAL REPAIRS,2018,12/07/2019,652087,2101.16 ,Revenue,BALMORAL FLOORING LTD,5196959
Fareham Borough Council,http://statistics.data.gov.uk/id/local-authority/24UE,OTHER REVENUE ACCOUNTS,RV,CONTRACT SERVICES D.S.O.,RV14,DEPT OF DEPUTY CHIEF EXECUTIVE,SUPPLIES & SERVICES,4,Building Construction Materials,10,MATERIALS (OPERATIONAL),4007,19/07/2019,652133,920.44 ,Revenue,CITY ELECTRICAL FACTORS LTD,00336408
Fareham Borough Council,http://statistics.data.gov.uk/id/local-authority/24UE,HIGHWAYS ROADS AND TRANSPORT,BV12,PARKING SERVICES,BV12D,DEPT OF LEISURE & COMMUNITY,SUPPLIES & SERVICES,4,Building Construction Materials,10,MATERIALS (OPERATIONAL),4007,12/07/2019,652136,17.95 ,Revenue,CITY ELECTRICAL FACTORS LTD,00336408
Fareham Borough Council,http://statistics.data.gov.uk/id/local-authority/24UE,HOUSING REVENUE ACCOUNT,BV06,RESPONSIVE & VOID MAINTENANCE,5901,DEPT OF DEPUTY CHIEF EXECUTIVE,SUPPLIES & SERVICES,4,Building Construction Materials,10,MATERIALS (OPERATIONAL),4007,12/07/2019,652136,52.56 ,Revenue,CITY ELECTRICAL FACTORS LTD,00336408
Fareham Borough Council,http://statistics.data.gov.uk/id/local-authority/24UE,OTHER REVENUE ACCOUNTS,RV,CONTRACT SERVICES D.S.O.,RV14,DEPT OF DEPUTY CHIEF EXECUTIVE,SUPPLIES & SERVICES,4,Building Construction Materials,10,MATERIALS (OPERATIONAL),4007,12/07/2019,652136,1876.11 ,Revenue,CITY ELECTRICAL FACTORS LTD,00336408
Fareham Borough Council,http://statistics.data.gov.uk/id/local-authority/24UE,OTHER REVENUE ACCOUNTS,RV,NON WORK GROUP HOLDING ACCOUNT,RV18,DEPT of STRATEGIC PLANNING and ENVIRONMENT,SUPPLIES & SERVICES,4,Building Construction Materials,10,MATERIALS (OPERATIONAL),4007,12/07/2019,652136,6.75 ,Revenue,CITY ELECTRICAL FACTORS LTD,00336408
Fareham Borough Council,http://statistics.data.gov.uk/id/local-authority/24UE,CAPITAL PROGRAMME - HOUSING SERVICES,CP,RENOVATION OF L.A. DWELLINGS,CP10,CAPITAL - FAREHAM HOUSING CAPITAL,PREMISES RELATED EXPENDITURE,2,"Works - Construction, Repair & Maintenance",39,GENERAL REPAIRS,2018,12/07/2019,652137,6529.13 ,Capital,FUTUREMOST LTD,2207885
Fareham Borough Council,http://statistics.data.gov.uk/id/local-authority/24UE,CULTURAL AND RELATED SERVICES,BV09,CULTURE AND HERITAGE,BV09A,DEPT OF LEISURE & COMMUNITY,PREMISES RELATED EXPENDITURE,2,"Works - Construction, Repair & Maintenance",39,R & M OF BUILDINGS,2000,12/07/2019,652139,62.78 ,Revenue,P R D ELECTRICAL LTD,9846111
Fareham Borough Council,http://statistics.data.gov.uk/id/local-authority/24UE,HIGHWAYS ROADS AND TRANSPORT,BV12,PARKING SERVICES,BV12D,DEPT OF LEISURE & COMMUNITY,PREMISES RELATED EXPENDITURE,2,"Works - Construction, Repair & Maintenance",39,GENERAL REPAIRS,2018,12/07/2019,652139,48.57 ,Revenue,P R D ELECTRICAL LTD,9846111
Fareham Borough Council,http://statistics.data.gov.uk/id/local-authority/24UE,ENVIRONMENT AND REGULATORY SER,BV03,ENVIRONMENTAL HEALTH,BV03C,STREETSCENE,PREMISES RELATED EXPENDITURE,2,"Works - Construction, Repair & Maintenance",39,R & M OF BUILDINGS,2000,12/07/2019,652139,131.44 ,Revenue,P R D ELECTRICAL LTD,9846111
Fareham Borough Council,http://statistics.data.gov.uk/id/local-authority/24UE,HOUSING REVENUE ACCOUNT,BV06,RESPONSIVE & VOID MAINTENANCE,5901,DEPT OF DEPUTY CHIEF EXECUTIVE,PREMISES RELATED EXPENDITURE,2,"Works - Construction, Repair & Maintenance",39,GENERAL REPAIRS,2018,12/07/2019,652139,3387.26 ,Revenue,P R D ELECTRICAL LTD,9846111
Fareham Borough Council,http://statistics.data.gov.uk/id/local-authority/24UE,OTHER REVENUE ACCOUNTS,RV,CONTRACT SERVICES D.S.O.,RV14,DEPT OF DEPUTY CHIEF EXECUTIVE,EMPLOYEES RELATED EXPENDITURE,1,"Works - Construction, Repair & Maintenance",39,STANDBY ALLOWANCES,1087,12/07/2019,652139,715.00 ,Revenue,P R D ELECTRICAL LTD,9846111
Fareham Borough Council,http://statistics.data.gov.uk/id/local-authority/24UE,OTHER REVENUE ACCOUNTS,RV,G.F. EXPENDITURE ON SERVICES,RV10,STREETSCENE,SUPPLIES & SERVICES,4,Building Construction Materials,10,SUB-CONTRACTORS CHARGES,4432,19/07/2019,652147,775.00 ,Revenue,J D C OUTDOOR SERVICES,05941402
Fareham Borough Council,http://statistics.data.gov.uk/id/local-authority/24UE,CAPITAL PROGRAMME - HOUSING SERVICES,CP,RENOVATION OF L.A. DWELLINGS,CP10,CAPITAL - FAREHAM HOUSING CAPITAL,PREMISES RELATED EXPENDITURE,2,"Works - Construction, Repair & Maintenance",39,VOID COSTS - NOT RECHARGEABLE,2011,12/07/2019,652154,6220.00 ,Capital,JPC PROPERTY SERVICES LTD,4704385
Fareham Borough Council,http://statistics.data.gov.uk/id/local-authority/24UE,CAPITAL PROGRAMME - HOUSING SERVICES,CP,RENOVATION OF L.A. DWELLINGS,CP10,CAPITAL - FAREHAM HOUSING CAPITAL,PREMISES RELATED EXPENDITURE,2,"Works - Construction, Repair & Maintenance",39,VOID COSTS - NOT RECHARGEABLE,2011,12/07/2019,652154,3980.00 ,Capital,JPC PROPERTY SERVICES LTD,4704385
Fareham Borough Council,http://statistics.data.gov.uk/id/local-authority/24UE,HOUSING REVENUE ACCOUNT,BV06,RESPONSIVE & VOID MAINTENANCE,5901,DEPT OF DEPUTY CHIEF EXECUTIVE,PREMISES RELATED EXPENDITURE,2,"Works - Construction, Repair & Maintenance",39,VOID COSTS - NOT RECHARGEABLE,2011,12/07/2019,652154,19872.85 ,Revenue,JPC PROPERTY SERVICES LTD,4704385
Fareham Borough Council,http://statistics.data.gov.uk/id/local-authority/24UE,ENVIRONMENT AND REGULATORY SER,BV03,ENVIRONMENTAL HEALTH,BV03C,DEPT OF LEISURE & COMMUNITY,SUPPLIES & SERVICES,4,Education,17,CRIME & COMMUNITY INITIATIVES,4978,12/07/2019,652164,2500.00 ,Revenue,CAMS HILL SCHOOL,
Fareham Borough Council,http://statistics.data.gov.uk/id/local-authority/24UE,ENVIRONMENT AND REGULATORY SER,BV03,WASTE COLLECTION,BV03G,STREETSCENE,EMPLOYEES RELATED EXPENDITURE,1,Human Resources,26,AGENCY WORKERS,1050,25/07/2019,652166,280.62 ,Revenue,BERRY RECRUITMENT LIMITED,07036111
Fareham Borough Council,http://statistics.data.gov.uk/id/local-authority/24UE,ENVIRONMENT AND REGULATORY SER,BV03,WASTE COLLECTION,BV03G,STREETSCENE,EMPLOYEES RELATED EXPENDITURE,1,Human Resources,26,AGENCY WORKERS,1050,25/07/2019,652166,316.58 ,Revenue,BERRY RECRUITMENT LIMITED,07036111
Fareham Borough Council,http://statistics.data.gov.uk/id/local-authority/24UE,ENVIRONMENT AND REGULATORY SER,BV03,WASTE COLLECTION,BV03G,STREETSCENE,EMPLOYEES RELATED EXPENDITURE,1,Human Resources,26,AGENCY WORKERS,1050,25/07/2019,652168,381.35 ,Revenue,BERRY RECRUITMENT LIMITED,07036111
Fareham Borough Council,http://statistics.data.gov.uk/id/local-authority/24UE,ENVIRONMENT AND REGULATORY SER,BV03,WASTE COLLECTION,BV03G,STREETSCENE,EMPLOYEES RELATED EXPENDITURE,1,Human Resources,26,AGENCY WORKERS,1050,25/07/2019,652168,215.85 ,Revenue,BERRY RECRUITMENT LIMITED,07036111
Fareham Borough Council,http://statistics.data.gov.uk/id/local-authority/24UE,ENVIRONMENT AND REGULATORY SER,BV03,WASTE COLLECTION,BV03G,STREETSCENE,EMPLOYEES RELATED EXPENDITURE,1,Human Resources,26,AGENCY WORKERS,1050,25/07/2019,652169,489.27 ,Revenue,BERRY RECRUITMENT LIMITED,07036111
Fareham Borough Council,http://statistics.data.gov.uk/id/local-authority/24UE,ENVIRONMENT AND REGULATORY SER,BV03,WASTE COLLECTION,BV03G,STREETSCENE,EMPLOYEES RELATED EXPENDITURE,1,Human Resources,26,AGENCY WORKERS,1050,25/07/2019,652169,107.93 ,Revenue,BERRY RECRUITMENT LIMITED,07036111
Fareham Borough Council,http://statistics.data.gov.uk/id/local-authority/24UE,ENVIRONMENT AND REGULATORY SER,BV03,WASTE COLLECTION,BV03G,STREETSCENE,EMPLOYEES RELATED EXPENDITURE,1,Human Resources,26,AGENCY WORKERS,1050,25/07/2019,652170,484.88 ,Revenue,THE BEST CONNECTION GROUP LTD,2600534
Fareham Borough Council,http://statistics.data.gov.uk/id/local-authority/24UE,ENVIRONMENT AND REGULATORY SER,BV03,WASTE COLLECTION,BV03G,STREETSCENE,EMPLOYEES RELATED EXPENDITURE,1,Human Resources,26,AGENCY WORKERS,1050,25/07/2019,652170,284.46 ,Revenue,THE BEST CONNECTION GROUP LTD,2600534
Fareham Borough Council,http://statistics.data.gov.uk/id/local-authority/24UE,CORPORATE & DEMOCRATIC CORE,BV07A,CORPORATE MANAGEMENT,BV07AB,DEPT OF SUPPORT SERVICES,EMPLOYEES RELATED EXPENDITURE,1,Financial Services,20,APPRENTICESHIP LEVY,1912,19/07/2019,652424,4072.00 ,Revenue,INLAND REVENUE,
Fareham Borough Council,http://statistics.data.gov.uk/id/local-authority/24UE,CENTRAL SERVICES,BV07,CENTRAL SERVICES TO THE PUBLIC,BV07B,DEPT OF LEISURE & COMMUNITY,SUPPLIES & SERVICES,4,Unclassified,,FURNITURE & EQUIPT. PURCHASES,4000,19/07/2019,652428,800.00 ,Revenue,WARSASH LOCAL HISTORY SOCIETY,
Fareham Borough Council,http://statistics.data.gov.uk/id/local-authority/24UE,OTHER REVENUE ACCOUNTS,RV,CONTRACT SERVICES D.S.O.,RV14,DEPT of STRATEGIC PLANNING and ENVIRONMENT,SUPPLIES & SERVICES,4,Local/Central Government,,SUB-CONTRACTORS CHARGES,4432,19/07/2019,652430,830.20 ,Revenue,SOUTHAMPTON CITY COUNCIL,
Fareham Borough Council,http://statistics.data.gov.uk/id/local-authority/24UE,PLANNING SERVICES,BV13,ECONOMIC DEVELOPMENT,BV13E,DEPT OF LEISURE & COMMUNITY,SUPPLIES & SERVICES,4,Environmental Services,18,OTHER SERVICES,4499,19/07/2019,652458,1515.80 ,Revenue,RITAGATE LTD,1562914
Fareham Borough Council,http://statistics.data.gov.uk/id/local-authority/24UE,PLANNING SERVICES,BV13,ECONOMIC DEVELOPMENT,BV13E,DEPT OF LEISURE & COMMUNITY,SUPPLIES & SERVICES,4,Environmental Services,18,OTHER SERVICES,4499,19/07/2019,652458,384.00 ,Revenue,RITAGATE LTD,1562914
Fareham Borough Council,http://statistics.data.gov.uk/id/local-authority/24UE,OTHER REVENUE ACCOUNTS,RV,G.F. EXPENDITURE ON SERVICES,RV10,STREETSCENE,TRANSPORT RELATED EXPENDITURE,3,Vehicle Management,38,HIRE OF VEHICLES,3210,19/07/2019,652471,2487.30 ,Revenue,NATIONWIDE PLATFORMS LTD,02268921
Fareham Borough Council,http://statistics.data.gov.uk/id/local-authority/24UE,GENERAL FUND HOUSING,BV05,OTHER COUNCIL PROPERTY,BV05K,DEPT OF DEPUTY CHIEF EXECUTIVE,PREMISES RELATED EXPENDITURE,2,Cleaning & Janitorial,13,R & M OF LEASED PROPERTIES,2001,19/07/2019,652474,120.00 ,Revenue,HI-SPEC FACILITIES SERVICES PLC,4373379
Fareham Borough Council,http://statistics.data.gov.uk/id/local-authority/24UE,CULTURAL AND RELATED SERVICES,BV09,RECREATION AND SPORT,BV09B,STREETSCENE,PREMISES RELATED EXPENDITURE,2,Cleaning & Janitorial,13,CONTRACT CLEANING - GENERAL,2700,19/07/2019,652474,1418.62 ,Revenue,HI-SPEC FACILITIES SERVICES PLC,4373379
Fareham Borough Council,http://statistics.data.gov.uk/id/local-authority/24UE,CULTURAL AND RELATED SERVICES,BV09,CULTURE AND HERITAGE,BV09A,DEPT OF LEISURE & COMMUNITY,PREMISES RELATED EXPENDITURE,2,Cleaning & Janitorial,13,CONTRACT CLEANING - GENERAL,2700,19/07/2019,652474,1474.07 ,Revenue,HI-SPEC FACILITIES SERVICES PLC,4373379
Fareham Borough Council,http://statistics.data.gov.uk/id/local-authority/24UE,HIGHWAYS ROADS AND TRANSPORT,BV12,PARKING SERVICES,BV12D,DEPT OF LEISURE & COMMUNITY,PREMISES RELATED EXPENDITURE,2,Cleaning & Janitorial,13,CONTRACT CLEANING - GENERAL,2700,19/07/2019,652474,1238.05 ,Revenue,HI-SPEC FACILITIES SERVICES PLC,4373379
Fareham Borough Council,http://statistics.data.gov.uk/id/local-authority/24UE,ENVIRONMENT AND REGULATORY SER,BV03,ENVIRONMENTAL HEALTH,BV03C,STREETSCENE,PREMISES RELATED EXPENDITURE,2,Cleaning & Janitorial,13,CONTRACT CLEANING - GENERAL,2700,19/07/2019,652474,9528.89 ,Revenue,HI-SPEC FACILITIES SERVICES PLC,4373379
Fareham Borough Council,http://statistics.data.gov.uk/id/local-authority/24UE,HOUSING REVENUE ACCOUNT,BV06,COMMUNAL CARETAKING & CLEANING,5027,DEPT OF DEPUTY CHIEF EXECUTIVE,PREMISES RELATED EXPENDITURE,2,Cleaning & Janitorial,13,CONTRACT CLEANING - GENERAL,2700,19/07/2019,652474,9933.87 ,Revenue,HI-SPEC FACILITIES SERVICES PLC,4373379
Fareham Borough Council,http://statistics.data.gov.uk/id/local-authority/24UE,HOUSING REVENUE ACCOUNT,BV06,COMMUNAL CARETAKING & CLEANING,5027,DEPT OF DEPUTY CHIEF EXECUTIVE,PREMISES RELATED EXPENDITURE,2,Cleaning & Janitorial,13,CONTRACT CLEANING - GENERAL,2700,19/07/2019,652474,1169.52 ,Revenue,HI-SPEC FACILITIES SERVICES PLC,4373379
Fareham Borough Council,http://statistics.data.gov.uk/id/local-authority/24UE,HOUSING REVENUE ACCOUNT,BV06,COMMUNAL CARETAKING & CLEANING,5027,DEPT OF DEPUTY CHIEF EXECUTIVE,PREMISES RELATED EXPENDITURE,2,Cleaning & Janitorial,13,CONTRACT CLEANING - GENERAL,2700,19/07/2019,652474,1392.13 ,Revenue,HI-SPEC FACILITIES SERVICES PLC,4373379
Fareham Borough Council,http://statistics.data.gov.uk/id/local-authority/24UE,OTHER REVENUE ACCOUNTS,RV,G.F. EXPENDITURE ON SERVICES,RV10,STREETSCENE,PREMISES RELATED EXPENDITURE,2,Cleaning & Janitorial,13,CONTRACT CLEANING - GENERAL,2700,19/07/2019,652474,93.15 ,Revenue,HI-SPEC FACILITIES SERVICES PLC,4373379
Fareham Borough Council,http://statistics.data.gov.uk/id/local-authority/24UE,OTHER REVENUE ACCOUNTS,RV,NON WORK GROUP HOLDING ACCOUNT,RV18,DEPT of STRATEGIC PLANNING and ENVIRONMENT,PREMISES RELATED EXPENDITURE,2,Cleaning & Janitorial,13,WINDOW CLEANING,2760,19/07/2019,652474,201.12 ,Revenue,HI-SPEC FACILITIES SERVICES PLC,4373379
Fareham Borough Council,http://statistics.data.gov.uk/id/local-authority/24UE,OTHER REVENUE ACCOUNTS,RV,NON WORK GROUP HOLDING ACCOUNT,RV18,DEPT of STRATEGIC PLANNING and ENVIRONMENT,PREMISES RELATED EXPENDITURE,2,Cleaning & Janitorial,13,CONTRACT CLEANING - GENERAL,2700,19/07/2019,652474,399.18 ,Revenue,HI-SPEC FACILITIES SERVICES PLC,4373379
Fareham Borough Council,http://statistics.data.gov.uk/id/local-authority/24UE,OTHER REVENUE ACCOUNTS,RV,NON WORK GROUP HOLDING ACCOUNT,RV18,DEPT of STRATEGIC PLANNING and ENVIRONMENT,PREMISES RELATED EXPENDITURE,2,Cleaning & Janitorial,13,CONTRACT CLEANING - GENERAL,2700,19/07/2019,652474,741.33 ,Revenue,HI-SPEC FACILITIES SERVICES PLC,4373379
Fareham Borough Council,http://statistics.data.gov.uk/id/local-authority/24UE,CULTURAL AND RELATED SERVICES,BV09,RECREATION AND SPORT,BV09B,STREETSCENE,SUPPLIES & SERVICES,4,Horticultural,24,MATERIALS (OPERATIONAL),4007,19/07/2019,652478,720.00 ,Revenue,HAMBROOKS HOLDINGS,
Fareham Borough Council,http://statistics.data.gov.uk/id/local-authority/24UE,CULTURAL AND RELATED SERVICES,BV09,RECREATION AND SPORT,BV09B,STREETSCENE,PREMISES RELATED EXPENDITURE,2,Utilities,37,SEWERAGE & ENV. CHARGES (SWS),2410,19/07/2019,652479,657.93 ,Revenue,SCOTTISH WATER BUSINESS STREAM LIMITED,SC294924
Fareham Borough Council,http://statistics.data.gov.uk/id/local-authority/24UE,CULTURAL AND RELATED SERVICES,BV09,RECREATION AND SPORT,BV09B,STREETSCENE,PREMISES RELATED EXPENDITURE,2,Utilities,37,SEWERAGE & ENV. CHARGES (SWS),2410,19/07/2019,652481,1847.34 ,Revenue,SCOTTISH WATER BUSINESS STREAM LIMITED,SC294924
Fareham Borough Council,http://statistics.data.gov.uk/id/local-authority/24UE,HOUSING REVENUE ACCOUNT,BV06,RESPONSIVE & VOID MAINTENANCE,5901,DEPT OF DEPUTY CHIEF EXECUTIVE,PREMISES RELATED EXPENDITURE,2,"Works - Construction, Repair & Maintenance",39,GENERAL REPAIRS,2018,19/07/2019,652488,858.00 ,Revenue,GABLE PROJECTS LIMITED,5718263
Fareham Borough Council,http://statistics.data.gov.uk/id/local-authority/24UE,HOUSING REVENUE ACCOUNT,BV06,RESPONSIVE & VOID MAINTENANCE,5901,DEPT OF DEPUTY CHIEF EXECUTIVE,PREMISES RELATED EXPENDITURE,2,Facilities & Management Services,19,GENERAL REPAIRS,2018,19/07/2019,652498,1147.45 ,Revenue,RAINER SECURITY PRODUCTS LTD,02240635
Fareham Borough Council,http://statistics.data.gov.uk/id/local-authority/24UE,OTHER REVENUE ACCOUNTS,RV,CONTRACT SERVICES D.S.O.,RV14,DEPT of STRATEGIC PLANNING and ENVIRONMENT,SUPPLIES & SERVICES,4,Consultancy,15,STRUCTURAL ENGINEERS FEES,4405,19/07/2019,652500,1595.54 ,Revenue,RUCK CONSULTANCY LIMITED,9335936
Fareham Borough Council,http://statistics.data.gov.uk/id/local-authority/24UE,CORPORATE & DEMOCRATIC CORE,BV07A,DEMOCRATIC REP.& MANAGEMENT,BV07AA,DEPT OF LEISURE & COMMUNITY,SUPPLIES & SERVICES,4,Human Resources,26,GRANTS AND SUBSCRIPTIONS,4700,19/07/2019,652501,795.00 ,Revenue,THE CONSULTATION INSTITUTE,2535318
Fareham Borough Council,http://statistics.data.gov.uk/id/local-authority/24UE,ENVIRONMENT AND REGULATORY SER,BV03,WASTE COLLECTION,BV03G,STREETSCENE,SUPPLIES & SERVICES,4,Environmental Services,18,FURNITURE & EQUIPT. PURCHASES,4000,19/07/2019,652503,2951.10 ,Revenue,ENVIRONMENTAL SOLUTIONS EUROPE (ESE),02327763
Fareham Borough Council,http://statistics.data.gov.uk/id/local-authority/24UE,ENVIRONMENT AND REGULATORY SER,BV03,COAST PROTECTION,BV03B,DEPT of STRATEGIC PLANNING and ENVIRONMENT,SUPPLIES & SERVICES,4,Local/Central Government,98,CONSULTANTS FEES,4401,19/07/2019,652504,802.93 ,Revenue,HAVANT BOROUGH COUNCIL,
Fareham Borough Council,http://statistics.data.gov.uk/id/local-authority/24UE,PLANNING SERVICES,BV13,ECONOMIC DEVELOPMENT,BV13E,DEPT OF LEISURE & COMMUNITY,SUPPLIES & SERVICES,4,Facilities & Management Services,19,FURNITURE & EQUIPT. PURCHASES,4000,19/07/2019,652508,1989.90 ,Revenue,BUYER DIRECT LTD,07978827
Fareham Borough Council,http://statistics.data.gov.uk/id/local-authority/24UE,HOUSING REVENUE ACCOUNT,BV06,GENERAL ADMINISTRATION EXPENSE,5021,DEPT OF DEPUTY CHIEF EXECUTIVE,EMPLOYEES RELATED EXPENDITURE,1,Human Resources,26,AGENCY WORKERS,1050,19/07/2019,652510,1009.83 ,Revenue,JAMES ANDREWS RECRUITMENT SOLUTIONS LTD,06834852
Fareham Borough Council,http://statistics.data.gov.uk/id/local-authority/24UE,CULTURAL AND RELATED SERVICES,BV09,RECREATION AND SPORT,BV09B,STREETSCENE,PREMISES RELATED EXPENDITURE,2,Horticultural,24,R&M OF TREE PRESERVATION,2063,19/07/2019,652513,715.00 ,Revenue,GRISTWOOD AND TOMS LIMITED,2665293
Fareham Borough Council,http://statistics.data.gov.uk/id/local-authority/24UE,CULTURAL AND RELATED SERVICES,BV09,RECREATION AND SPORT,BV09B,STREETSCENE,PREMISES RELATED EXPENDITURE,2,Horticultural,24,R&M OF TREE PRESERVATION,2063,19/07/2019,652513,5540.00 ,Revenue,GRISTWOOD AND TOMS LIMITED,2665293
Fareham Borough Council,http://statistics.data.gov.uk/id/local-authority/24UE,CAPITAL PROGRAMME - HOUSING SERVICES,CP,NEW HOUSE BUILDING,CP10,CAPITAL - FAREHAM HOUSING CAPITAL,SUPPLIES & SERVICES,4,"Works - Construction, Repair & Maintenance",39,CONSULTANTS FEES,4401,19/07/2019,652519,1920.00 ,Capital,24 ACOUSTICS LTD,5256773
Fareham Borough Council,http://statistics.data.gov.uk/id/local-authority/24UE,CULTURAL AND RELATED SERVICES,BV09,CULTURE AND HERITAGE,BV09A,DEPT OF LEISURE & COMMUNITY,PREMISES RELATED EXPENDITURE,2,"Works - Construction, Repair & Maintenance",39,R & M OF FIXED PLANT,2040,19/07/2019,652525,3519.53 ,Revenue,BCG ELECTRICAL SERVICES LIMITED,5097428
Fareham Borough Council,http://statistics.data.gov.uk/id/local-authority/24UE,CAPITAL PROGRAMME - OTHER SERVICES,CP,CAPITAL PROPERTY SERVICES,CP23,CAPITAL - FINANCE & RESOURCES CAPITAL,SUPPLIES & SERVICES,4,Consultancy,15,CONSULTANTS FEES,4401,19/07/2019,652529,3850.00 ,Capital,CONCRETE & CORROSION CONSULTANCY PRACTICE,3590312
Fareham Borough Council,http://statistics.data.gov.uk/id/local-authority/24UE,OTHER REVENUE ACCOUNTS,RV,NON WORK GROUP HOLDING ACCOUNT,RV18,DEPT of STRATEGIC PLANNING and ENVIRONMENT,PREMISES RELATED EXPENDITURE,2,Facilities & Management Services,19,R & M OF FIXED PLANT,2040,25/07/2019,652534,1202.94 ,Revenue,HONEYWELL CONTROL SYSTEMS LTD,00217803
Fareham Borough Council,http://statistics.data.gov.uk/id/local-authority/24UE,OTHER REVENUE ACCOUNTS,RV,NON WORK GROUP HOLDING ACCOUNT,RV18,DEPT of STRATEGIC PLANNING and ENVIRONMENT,PREMISES RELATED EXPENDITURE,2,Unclassified,,R & M OF BUILDINGS,2000,19/07/2019,652535,3318.00 ,Revenue,ICS COOL ENERGY LTD,
Fareham Borough Council,http://statistics.data.gov.uk/id/local-authority/24UE,FINANCING & INVESTMENT I&E,BVB02,INVESTMENT PROPERTIES,BVB170,DEPT of STRATEGIC PLANNING and ENVIRONMENT,EMPLOYEES RELATED EXPENDITURE,1,"Works - Construction, Repair & Maintenance",39,AGENCY WORKERS,1050,19/07/2019,652540,1400.00 ,Revenue,MGW SURVEYORS LTD,11766387
Fareham Borough Council,http://statistics.data.gov.uk/id/local-authority/24UE,CAPITAL PROGRAMME - HOUSING SERVICES,CP,NEW HOUSE BUILDING,CP10,CAPITAL - FAREHAM HOUSING CAPITAL,SUPPLIES & SERVICES,4,"Works - Construction, Repair & Maintenance",39,CONSULTANTS FEES,4401,19/07/2019,652552,1515.85 ,Capital,RGP DESIGN LTD,09674169
Fareham Borough Council,http://statistics.data.gov.uk/id/local-authority/24UE,OTHER REVENUE ACCOUNTS,RV,NON WORK GROUP HOLDING ACCOUNT,RV18,DEPT of STRATEGIC PLANNING and ENVIRONMENT,SUPPLIES & SERVICES,4,Environmental Services,18,TIPPING / INCINERATOR FEES,4425,19/07/2019,652559,701.44 ,Revenue,ZEBRA WASTE SKIP HIRE,01506942
Fareham Borough Council,http://statistics.data.gov.uk/id/local-authority/24UE,ENVIRONMENT AND REGULATORY SER,BV03,ENVIRONMENTAL HEALTH,BV03C,DEPT OF LEISURE & COMMUNITY,TRANSPORT RELATED EXPENDITURE,3,Unclassified,,TRANSPORT INSURANCE - PREMIUM,3500,19/07/2019,652563,750.00 ,Revenue,redacted personal data,
Fareham Borough Council,http://statistics.data.gov.uk/id/local-authority/24UE,CORPORATE & DEMOCRATIC CORE,BV07A,CORPORATE MANAGEMENT,BV07AB,DEPT OF DEPUTY CHIEF EXECUTIVE,SUPPLIES & SERVICES,4,Financial Services,20,CONSULTANTS FEES,4401,19/07/2019,652573,8550.00 ,Revenue,ARLINGCLOSE LIMITED,02853836
Fareham Borough Council,http://statistics.data.gov.uk/id/local-authority/24UE,HOUSING REVENUE ACCOUNT,BV06,RESPONSIVE & VOID MAINTENANCE,5901,DEPT OF DEPUTY CHIEF EXECUTIVE,PREMISES RELATED EXPENDITURE,2,"Works - Construction, Repair & Maintenance",39,GENERAL REPAIRS,2018,19/07/2019,652579,-775.80 ,Revenue,BCG ELECTRICAL SERVICES LIMITED,5097428
Fareham Borough Council,http://statistics.data.gov.uk/id/local-authority/24UE,CULTURAL AND RELATED SERVICES,BV09,CULTURE AND HERITAGE,BV09A,DEPT OF LEISURE & COMMUNITY,PREMISES RELATED EXPENDITURE,2,"Works - Construction, Repair & Maintenance",39,R & M OF BUILDINGS,2000,19/07/2019,652583,58.74 ,Revenue,BCG ELECTRICAL SERVICES LIMITED,5097428
Fareham Borough Council,http://statistics.data.gov.uk/id/local-authority/24UE,CULTURAL AND RELATED SERVICES,BV09,RECREATION AND SPORT,BV09B,DEPT OF LEISURE & COMMUNITY,PREMISES RELATED EXPENDITURE,2,"Works - Construction, Repair & Maintenance",39,R & M OF BUILDINGS,2000,19/07/2019,652583,294.28 ,Revenue,BCG ELECTRICAL SERVICES LIMITED,5097428
Fareham Borough Council,http://statistics.data.gov.uk/id/local-authority/24UE,HIGHWAYS ROADS AND TRANSPORT,BV12,PARKING SERVICES,BV12D,DEPT OF LEISURE & COMMUNITY,PREMISES RELATED EXPENDITURE,2,"Works - Construction, Repair & Maintenance",39,R & M OF BUILDINGS,2000,19/07/2019,652583,2243.18 ,Revenue,BCG ELECTRICAL SERVICES LIMITED,5097428
Fareham Borough Council,http://statistics.data.gov.uk/id/local-authority/24UE,ENVIRONMENT AND REGULATORY SER,BV03,ENVIRONMENTAL HEALTH,BV03C,STREETSCENE,PREMISES RELATED EXPENDITURE,2,"Works - Construction, Repair & Maintenance",39,R & M OF BUILDINGS,2000,19/07/2019,652583,219.59 ,Revenue,BCG ELECTRICAL SERVICES LIMITED,5097428
Fareham Borough Council,http://statistics.data.gov.uk/id/local-authority/24UE,OTHER REVENUE ACCOUNTS,RV,NON WORK GROUP HOLDING ACCOUNT,RV18,DEPT of STRATEGIC PLANNING and ENVIRONMENT,PREMISES RELATED EXPENDITURE,2,"Works - Construction, Repair & Maintenance",39,R & M OF BUILDINGS,2000,19/07/2019,652583,415.69 ,Revenue,BCG ELECTRICAL SERVICES LIMITED,5097428
Fareham Borough Council,http://statistics.data.gov.uk/id/local-authority/24UE,OTHER REVENUE ACCOUNTS,RV,NON WORK GROUP HOLDING ACCOUNT,RV18,DEPT of STRATEGIC PLANNING and ENVIRONMENT,PREMISES RELATED EXPENDITURE,2,"Works - Construction, Repair & Maintenance",39,R & M OF BUILDINGS,2000,19/07/2019,652583,134.73 ,Revenue,BCG ELECTRICAL SERVICES LIMITED,5097428
Fareham Borough Council,http://statistics.data.gov.uk/id/local-authority/24UE,CAPITAL PROGRAMME - HOUSING SERVICES,CP,RENOVATION OF L.A. DWELLINGS,CP10,CAPITAL - FAREHAM HOUSING CAPITAL,PREMISES RELATED EXPENDITURE,2,Social Community Care Supplies & Services,32,R & M OF BUILDINGS,2000,19/07/2019,652644,1880.86 ,Capital,LIFTABILITY LIMITED,03782380
Fareham Borough Council,http://statistics.data.gov.uk/id/local-authority/24UE,CAPITAL PROGRAMME - HOUSING SERVICES,CP,RENOVATION OF L.A. DWELLINGS,CP10,CAPITAL - FAREHAM HOUSING CAPITAL,PREMISES RELATED EXPENDITURE,2,Social Community Care Supplies & Services,32,R & M OF BUILDINGS,2000,19/07/2019,652645,1931.90 ,Capital,LIFTABILITY LIMITED,03782380
Fareham Borough Council,http://statistics.data.gov.uk/id/local-authority/24UE,HOUSING REVENUE ACCOUNT,BV06,OTHER COMMUNAL SERVICES,5034,DEPT OF DEPUTY CHIEF EXECUTIVE,SUPPLIES & SERVICES,4,Building Construction Materials,10,FURNITURE & EQUIPT. PURCHASES,4000,19/07/2019,652646,412.61 ,Revenue,BALMORAL FLOORING LTD,5196959
Fareham Borough Council,http://statistics.data.gov.uk/id/local-authority/24UE,HOUSING REVENUE ACCOUNT,BV06,OTHER COMMUNAL SERVICES,5034,DEPT OF DEPUTY CHIEF EXECUTIVE,SUPPLIES & SERVICES,4,Building Construction Materials,10,FURNITURE & EQUIPT. PURCHASES,4000,19/07/2019,652646,275.08 ,Revenue,BALMORAL FLOORING LTD,5196959
Fareham Borough Council,http://statistics.data.gov.uk/id/local-authority/24UE,HOUSING REVENUE ACCOUNT,BV06,OTHER COMMUNAL SERVICES,5034,DEPT OF DEPUTY CHIEF EXECUTIVE,SUPPLIES & SERVICES,4,Building Construction Materials,10,FURNITURE & EQUIPT. PURCHASES,4000,19/07/2019,652646,687.69 ,Revenue,BALMORAL FLOORING LTD,5196959
Fareham Borough Council,http://statistics.data.gov.uk/id/local-authority/24UE,HOUSING REVENUE ACCOUNT,BV06,OTHER COMMUNAL SERVICES,5034,DEPT OF DEPUTY CHIEF EXECUTIVE,SUPPLIES & SERVICES,4,Building Construction Materials,10,FURNITURE & EQUIPT. PURCHASES,4000,19/07/2019,652646,-687.69 ,Revenue,BALMORAL FLOORING LTD,5196959
Fareham Borough Council,http://statistics.data.gov.uk/id/local-authority/24UE,CAPITAL PROGRAMME - HOUSING SERVICES,CP,RENOVATION OF L.A. DWELLINGS,CP10,CAPITAL - FAREHAM HOUSING CAPITAL,PREMISES RELATED EXPENDITURE,2,"Works - Construction, Repair & Maintenance",39,BUILDING CONSTRUCTION,2602,19/07/2019,652647,10973.00 ,Capital,KINGSLEY PLASTICS LIMITED,1336489
Fareham Borough Council,http://statistics.data.gov.uk/id/local-authority/24UE,CAPITAL PROGRAMME - HOUSING SERVICES,CP,RENOVATION OF L.A. DWELLINGS,CP10,CAPITAL - FAREHAM HOUSING CAPITAL,PREMISES RELATED EXPENDITURE,2,Social Community Care Supplies & Services,32,R & M OF BUILDINGS,2000,19/07/2019,652648,1810.00 ,Capital,LIFTABILITY LIMITED,03782380
Fareham Borough Council,http://statistics.data.gov.uk/id/local-authority/24UE,CAPITAL PROGRAMME - HOUSING SERVICES,CP,RENOVATION OF L.A. DWELLINGS,CP10,CAPITAL - FAREHAM HOUSING CAPITAL,PREMISES RELATED EXPENDITURE,2,"Works - Construction, Repair & Maintenance",39,BUILDING CONSTRUCTION,2602,19/07/2019,652649,10000.00 ,Capital,L DEVINE & CO LTD,4213581
Fareham Borough Council,http://statistics.data.gov.uk/id/local-authority/24UE,HOUSING REVENUE ACCOUNT,BV06,RESPONSIVE & VOID MAINTENANCE,5901,DEPT OF DEPUTY CHIEF EXECUTIVE,PREMISES RELATED EXPENDITURE,2,Facilities & Management Services,19,GENERAL REPAIRS,2018,19/07/2019,652650,724.94 ,Revenue,S A C LTD,01566628
Fareham Borough Council,http://statistics.data.gov.uk/id/local-authority/24UE,HOUSING REVENUE ACCOUNT,BV06,RESPONSIVE & VOID MAINTENANCE,5901,DEPT OF DEPUTY CHIEF EXECUTIVE,PREMISES RELATED EXPENDITURE,2,Facilities & Management Services,19,GENERAL REPAIRS,2018,19/07/2019,652650,765.00 ,Revenue,S A C LTD,01566628
Fareham Borough Council,http://statistics.data.gov.uk/id/local-authority/24UE,ENVIRONMENT AND REGULATORY SER,BV03,WASTE COLLECTION,BV03G,STREETSCENE,TRANSPORT RELATED EXPENDITURE,3,Vehicle Management,38,TYRES,3022,19/07/2019,652702,776.62 ,Revenue,TRUCTYRE FLEET MANAGEMENT LTD,03999449
Fareham Borough Council,http://statistics.data.gov.uk/id/local-authority/24UE,ENVIRONMENT AND REGULATORY SER,BV03,WASTE COLLECTION,BV03G,STREETSCENE,TRANSPORT RELATED EXPENDITURE,3,Vehicle Management,38,TYRES,3022,19/07/2019,652706,784.86 ,Revenue,TRUCTYRE FLEET MANAGEMENT LTD,03999449
Fareham Borough Council,http://statistics.data.gov.uk/id/local-authority/24UE,CULTURAL AND RELATED SERVICES,BV09,RECREATION AND SPORT,BV09B,STREETSCENE,PREMISES RELATED EXPENDITURE,2,Horticultural,24,R&M OF TREE PRESERVATION,2063,19/07/2019,652721,1460.00 ,Revenue,TITCHFIELD TREE SERVICES LTD,9011233
Fareham Borough Council,http://statistics.data.gov.uk/id/local-authority/24UE,HOUSING REVENUE ACCOUNT,BV06,MAINT OF LAWNS VERGES ETC,5030,DEPT OF DEPUTY CHIEF EXECUTIVE,PREMISES RELATED EXPENDITURE,2,Horticultural,24,R&M OF TREE PRESERVATION,2063,19/07/2019,652721,242.00 ,Revenue,TITCHFIELD TREE SERVICES LTD,9011233
Fareham Borough Council,http://statistics.data.gov.uk/id/local-authority/24UE,ENVIRONMENT AND REGULATORY SER,BV03,WASTE COLLECTION,BV03G,STREETSCENE,TRANSPORT RELATED EXPENDITURE,3,Vehicle Management,38,ROUTINE REPAIRS VEHICLES/PLANT,3010,25/07/2019,652727,1365.00 ,Revenue,BP ROLLS LTD,
Fareham Borough Council,http://statistics.data.gov.uk/id/local-authority/24UE,OTHER REVENUE ACCOUNTS,RV,NON WORK GROUP HOLDING ACCOUNT,RV18,DEPT OF SUPPORT SERVICES,SUPPLIES & SERVICES,4,Information Communication Technology,27,ICT SOFTWARE LICENCES,4530,25/07/2019,652741,307.00 ,Revenue,THE IT SUPPLIER,6514473
Fareham Borough Council,http://statistics.data.gov.uk/id/local-authority/24UE,OTHER REVENUE ACCOUNTS,RV,NON WORK GROUP HOLDING ACCOUNT,RV18,DEPT OF SUPPORT SERVICES,SUPPLIES & SERVICES,4,Information Communication Technology,27,ICT SOFTWARE LICENCES,4530,25/07/2019,652741,407.00 ,Revenue,THE IT SUPPLIER,6514473
Fareham Borough Council,http://statistics.data.gov.uk/id/local-authority/24UE,PLANNING SERVICES,BV13,PLANNING POLICY,BV13C,DEPT of STRATEGIC PLANNING and ENVIRONMENT,SUPPLIES & SERVICES,4,Information Communication Technology,27,FURNITURE & EQUIPT. PURCHASES,4000,25/07/2019,652742,577.00 ,Revenue,THE IT SUPPLIER,6514473
Fareham Borough Council,http://statistics.data.gov.uk/id/local-authority/24UE,PLANNING SERVICES,BV13,PLANNING POLICY,BV13C,DEPT of STRATEGIC PLANNING and ENVIRONMENT,SUPPLIES & SERVICES,4,Information Communication Technology,27,ICT SOFTWARE LICENCES,4530,25/07/2019,652742,102.75 ,Revenue,THE IT SUPPLIER,6514473
Fareham Borough Council,http://statistics.data.gov.uk/id/local-authority/24UE,GENERAL FUND HOUSING,BV05,HOUSING ADVICE,BV05C,DEPT OF DEPUTY CHIEF EXECUTIVE,SUPPLIES & SERVICES,4,Facilities & Management Services,19,LOCAL ASSISTANCE PAYMENT,4727,19/07/2019,652746,765.00 ,Revenue,redacted personal data,
Fareham Borough Council,http://statistics.data.gov.uk/id/local-authority/24UE,OTHER REVENUE ACCOUNTS,RV,G.F. EXPENDITURE ON SERVICES,RV10,STREETSCENE,TRANSPORT RELATED EXPENDITURE,3,Vehicle Management,38,HIRE OF VEHICLES,3210,19/07/2019,652748,-705.82 ,Revenue,NATIONWIDE PLATFORMS LTD,02268921
Fareham Borough Council,http://statistics.data.gov.uk/id/local-authority/24UE,HOUSING REVENUE ACCOUNT,BV06,RESPONSIVE & VOID MAINTENANCE,5901,DEPT OF DEPUTY CHIEF EXECUTIVE,PREMISES RELATED EXPENDITURE,2,"Works - Construction, Repair & Maintenance",39,GENERAL REPAIRS,2018,19/07/2019,652758,15919.82 ,Revenue,A PURKISS BUILDING & DECORATING LTD,3561215
Fareham Borough Council,http://statistics.data.gov.uk/id/local-authority/24UE,ENVIRONMENT AND REGULATORY SER,BV03,CEMETERIES CREM & MORTUARY,BV03A,STREETSCENE,PREMISES RELATED EXPENDITURE,2,"Works - Construction, Repair & Maintenance",39,GENERAL REPAIRS,2018,19/07/2019,652766,150.00 ,Revenue,M & B DRAIN SERVICES,
Fareham Borough Council,http://statistics.data.gov.uk/id/local-authority/24UE,FINANCING & INVESTMENT I&E,BVB02,INVESTMENT PROPERTIES,BVB170,DEPT of STRATEGIC PLANNING and ENVIRONMENT,PREMISES RELATED EXPENDITURE,2,"Works - Construction, Repair & Maintenance",39,R & M OF BUILDINGS,2000,19/07/2019,652766,120.00 ,Revenue,M & B DRAIN SERVICES,
Fareham Borough Council,http://statistics.data.gov.uk/id/local-authority/24UE,CULTURAL AND RELATED SERVICES,BV09,CULTURE AND HERITAGE,BV09A,STREETSCENE,PREMISES RELATED EXPENDITURE,2,"Works - Construction, Repair & Maintenance",39,R & M OF BUILDINGS,2000,19/07/2019,652766,80.00 ,Revenue,M & B DRAIN SERVICES,
Fareham Borough Council,http://statistics.data.gov.uk/id/local-authority/24UE,CULTURAL AND RELATED SERVICES,BV09,RECREATION AND SPORT,BV09B,DEPT OF LEISURE & COMMUNITY,PREMISES RELATED EXPENDITURE,2,"Works - Construction, Repair & Maintenance",39,GENERAL REPAIRS,2018,19/07/2019,652766,250.00 ,Revenue,M & B DRAIN SERVICES,
Fareham Borough Council,http://statistics.data.gov.uk/id/local-authority/24UE,ENVIRONMENT AND REGULATORY SER,BV03,ENVIRONMENTAL HEALTH,BV03C,STREETSCENE,PREMISES RELATED EXPENDITURE,2,"Works - Construction, Repair & Maintenance",39,GENERAL REPAIRS,2018,19/07/2019,652766,320.00 ,Revenue,M & B DRAIN SERVICES,
Fareham Borough Council,http://statistics.data.gov.uk/id/local-authority/24UE,HOUSING REVENUE ACCOUNT,BV06,RESPONSIVE & VOID MAINTENANCE,5901,DEPT OF DEPUTY CHIEF EXECUTIVE,PREMISES RELATED EXPENDITURE,2,"Works - Construction, Repair & Maintenance",39,GENERAL REPAIRS,2018,19/07/2019,652766,2355.00 ,Revenue,M & B DRAIN SERVICES,
Fareham Borough Council,http://statistics.data.gov.uk/id/local-authority/24UE,OTHER REVENUE ACCOUNTS,RV,NON WORK GROUP HOLDING ACCOUNT,RV18,DEPT of STRATEGIC PLANNING and ENVIRONMENT,PREMISES RELATED EXPENDITURE,2,"Works - Construction, Repair & Maintenance",39,GENERAL REPAIRS,2018,19/07/2019,652766,40.00 ,Revenue,M & B DRAIN SERVICES,
Fareham Borough Council,http://statistics.data.gov.uk/id/local-authority/24UE,CENTRAL SERVICES,BV07,CENTRAL SERVICES TO THE PUBLIC,BV07B,DEPT OF SUPPORT SERVICES,SUPPLIES & SERVICES,4,Facilities & Management Services,19,EXTERNAL PRINTING,4310,19/07/2019,652810,3464.16 ,Revenue,FINANCIAL DATA MANAGEMENT LTD,2827644
Fareham Borough Council,http://statistics.data.gov.uk/id/local-authority/24UE,CENTRAL SERVICES,BV07,CENTRAL SERVICES TO THE PUBLIC,BV07B,DEPT OF SUPPORT SERVICES,SUPPLIES & SERVICES,4,Facilities & Management Services,19,EXTERNAL PRINTING,4310,19/07/2019,652811,9035.52 ,Revenue,FINANCIAL DATA MANAGEMENT LTD,2827644
Fareham Borough Council,http://statistics.data.gov.uk/id/local-authority/24UE,CENTRAL SERVICES,BV07,CENTRAL SERVICES TO THE PUBLIC,BV07B,DEPT OF SUPPORT SERVICES,SUPPLIES & SERVICES,4,Facilities & Management Services,19,EXTERNAL PRINTING,4310,19/07/2019,652812,12406.45 ,Revenue,FINANCIAL DATA MANAGEMENT LTD,2827644
Fareham Borough Council,http://statistics.data.gov.uk/id/local-authority/24UE,OTHER REVENUE ACCOUNTS,RV,G.F. EXPENDITURE ON SERVICES,RV10,STREETSCENE,TRANSPORT RELATED EXPENDITURE,3,Horticultural,24,ROUTINE REPAIRS VEHICLES/PLANT,3010,19/07/2019,652814,1094.64 ,Revenue,KINGSWORTHY GARDEN MACHINERY LTD,5321124
Fareham Borough Council,http://statistics.data.gov.uk/id/local-authority/24UE,ENVIRONMENT AND REGULATORY SER,BV03,STREET CLEANSING,BV03F,STREETSCENE,TRANSPORT RELATED EXPENDITURE,3,Vehicle Management,38,TYRES,3022,19/07/2019,652815,619.49 ,Revenue,TRUCTYRE FLEET MANAGEMENT LTD,03999449
Fareham Borough Council,http://statistics.data.gov.uk/id/local-authority/24UE,HIGHWAYS ROADS AND TRANSPORT,BV12,PARKING SERVICES,BV12D,DEPT OF LEISURE & COMMUNITY,SUPPLIES & SERVICES,4,Information Communication Technology,27,FURNITURE & EQUIPT. PURCHASES,4000,19/07/2019,652817,1794.00 ,Revenue,CHIPSIDE LTD,04049461
Fareham Borough Council,http://statistics.data.gov.uk/id/local-authority/24UE,HIGHWAYS ROADS AND TRANSPORT,BV12,PARKING SERVICES,BV12D,DEPT OF LEISURE & COMMUNITY,SUPPLIES & SERVICES,4,Information Communication Technology,27,FURNITURE & EQUIPT. PURCHASES,4000,19/07/2019,652818,1590.00 ,Revenue,CHIPSIDE LTD,04049461
Fareham Borough Council,http://statistics.data.gov.uk/id/local-authority/24UE,HIGHWAYS ROADS AND TRANSPORT,BV12,PARKING SERVICES,BV12D,DEPT OF LEISURE & COMMUNITY,SUPPLIES & SERVICES,4,Information Communication Technology,27,FURNITURE & EQUIPT. PURCHASES,4000,19/07/2019,652819,547.50 ,Revenue,CHIPSIDE LTD,04049461
Fareham Borough Council,http://statistics.data.gov.uk/id/local-authority/24UE,CAPITAL PROGRAMME - OTHER SERVICES,CP,CAPITAL ICT SCHEMES,CP23,CAPITAL - FINANCE & RESOURCES CAPITAL,SUPPLIES & SERVICES,4,Information Communication Technology,27,ICT DATA LINES,4535,25/07/2019,652822,5500.00 ,Capital,DATRIX LIMITED,0298574
Fareham Borough Council,http://statistics.data.gov.uk/id/local-authority/24UE,CAPITAL PROGRAMME - HOUSING SERVICES,CP,RENOVATION OF L.A. DWELLINGS,CP10,CAPITAL - FAREHAM HOUSING CAPITAL,PREMISES RELATED EXPENDITURE,2,Social Community Care Supplies & Services,32,R & M OF BUILDINGS,2000,19/07/2019,652824,2250.00 ,Capital,LIFTABILITY LIMITED,03782380
Fareham Borough Council,http://statistics.data.gov.uk/id/local-authority/24UE,CAPITAL PROGRAMME - HOUSING SERVICES,CP,NEW HOUSE BUILDING,CP10,CAPITAL - FAREHAM HOUSING CAPITAL,SUPPLIES & SERVICES,4,"Works - Construction, Repair & Maintenance",39,EMPLOYEES AGENTS FEES,4452,19/07/2019,652825,12145.00 ,Capital,BOULTER MOSSMAN CHARTERED SURVEYORS,06951592
Fareham Borough Council,http://statistics.data.gov.uk/id/local-authority/24UE,CULTURAL AND RELATED SERVICES,BV09,CULTURE AND HERITAGE,BV09A,DEPT OF LEISURE & COMMUNITY,PREMISES RELATED EXPENDITURE,2,Facilities & Management Services,19,R & M OF BUILDINGS,2000,25/07/2019,653150,101.49 ,Revenue,TEMPLE LIFTS LTD,2388497
Fareham Borough Council,http://statistics.data.gov.uk/id/local-authority/24UE,HIGHWAYS ROADS AND TRANSPORT,BV12,PARKING SERVICES,BV12D,DEPT OF LEISURE & COMMUNITY,PREMISES RELATED EXPENDITURE,2,Facilities & Management Services,19,R & M OF LIFTS,2050,25/07/2019,653150,352.08 ,Revenue,TEMPLE LIFTS LTD,2388497
Fareham Borough Council,http://statistics.data.gov.uk/id/local-authority/24UE,HOUSING REVENUE ACCOUNT,BV06,RESPONSIVE & VOID MAINTENANCE,5901,DEPT OF DEPUTY CHIEF EXECUTIVE,PREMISES RELATED EXPENDITURE,2,Facilities & Management Services,19,SERVICING,2083,25/07/2019,653150,862.07 ,Revenue,TEMPLE LIFTS LTD,2388497
Fareham Borough Council,http://statistics.data.gov.uk/id/local-authority/24UE,OTHER REVENUE ACCOUNTS,RV,NON WORK GROUP HOLDING ACCOUNT,RV18,DEPT of STRATEGIC PLANNING and ENVIRONMENT,PREMISES RELATED EXPENDITURE,2,Facilities & Management Services,19,R & M OF LIFTS,2050,25/07/2019,653150,360.21 ,Revenue,TEMPLE LIFTS LTD,2388497
Fareham Borough Council,http://statistics.data.gov.uk/id/local-authority/24UE,GENERAL FUND HOUSING,BV05,HOMELESSNESS,BV05F,DEPT OF DEPUTY CHIEF EXECUTIVE,SUPPLIES & SERVICES,4,Social Community Care Supplies & Services,32,BED & BREAKFAST EXPENSES,4943,25/07/2019,653152,650.00 ,Revenue,WESTCOTE BED AND BREAKFAST,
Fareham Borough Council,http://statistics.data.gov.uk/id/local-authority/24UE,OTHER OPERATING EXPENDITURE,BVB01,HOUSING CAPITAL RECEIPTS POOL,BVB050,DEPT of FINANCE and RESOURCES,TRANSFER PAYMENTS,6,Local/Central Government,98,POOLED CAPITAL RECPT TO GOVT,6902,25/07/2019,653156,48897.83 ,Revenue,DCLG (Dept. for Communities & Local Govt.),
Fareham Borough Council,http://statistics.data.gov.uk/id/local-authority/24UE,GENERAL FUND HOUSING,BV05,HOUSING ADVICE,BV05C,DEPT OF DEPUTY CHIEF EXECUTIVE,SUPPLIES & SERVICES,4,Unclassified,,LOCAL ASSISTANCE PAYMENT,4727,25/07/2019,653160,980.77 ,Revenue,redacted personal data,
Fareham Borough Council,http://statistics.data.gov.uk/id/local-authority/24UE,CAPITAL PROGRAMME - OTHER SERVICES,CP,CAPITAL PROPERTY SERVICES,CP23,CAPITAL - FINANCE & RESOURCES CAPITAL,SUPPLIES & SERVICES,4,Consultancy,15,CONSULTANTS FEES,4401,25/07/2019,653162,900.00 ,Capital,BERMONT PROJECT MANAGEMENT LTD,06717515
Fareham Borough Council,http://statistics.data.gov.uk/id/local-authority/24UE,CAPITAL PROGRAMME - OTHER SERVICES,CP,CAPITAL PROPERTY SERVICES,CP23,CAPITAL - FINANCE & RESOURCES CAPITAL,SUPPLIES & SERVICES,4,Consultancy,15,CONSULTANTS FEES,4401,25/07/2019,653165,3200.00 ,Capital,CONCRETE & CORROSION CONSULTANCY PRACTICE,3590312
Fareham Borough Council,http://statistics.data.gov.uk/id/local-authority/24UE,FINANCING & INVESTMENT I&E,BVB02,INVESTMENT PROPERTIES,BVB170,DEPT of STRATEGIC PLANNING and ENVIRONMENT,EMPLOYEES RELATED EXPENDITURE,1,"Works - Construction, Repair & Maintenance",39,AGENCY WORKERS,1050,25/07/2019,653167,1050.00 ,Revenue,MGW SURVEYORS LTD,11766387
Fareham Borough Council,http://statistics.data.gov.uk/id/local-authority/24UE,CAPITAL PROGRAMME - HOUSING SERVICES,CP,NEW HOUSE BUILDING,CP10,CAPITAL - FAREHAM HOUSING CAPITAL,PREMISES RELATED EXPENDITURE,2,Environmental Services,18,BUILDING CONSTRUCTION,2602,25/07/2019,653168,6270.00 ,Capital,PORTSMOUTH DEMOLITION & SALVAGE LTD,7073246
Fareham Borough Council,http://statistics.data.gov.uk/id/local-authority/24UE,OTHER REVENUE ACCOUNTS,RV,CONTRACT SERVICES D.S.O.,RV14,DEPT OF DEPUTY CHIEF EXECUTIVE,SUPPLIES & SERVICES,4,Building Construction Materials,10,MATERIALS (OPERATIONAL),4007,25/07/2019,653182,629.66 ,Revenue,WILLIAMS TRADE SUPPLIES LTD,1864711
Fareham Borough Council,http://statistics.data.gov.uk/id/local-authority/24UE,OTHER REVENUE ACCOUNTS,RV,NON WORK GROUP HOLDING ACCOUNT,RV18,DEPT OF SUPPORT SERVICES,SUPPLIES & SERVICES,4,Information Communication Technology,27,ICT HARDWARE,4532,25/07/2019,653188,364.00 ,Revenue,ASPIRE TECHNOLOGY SOLUTIONS LTD,06031628
Fareham Borough Council,http://statistics.data.gov.uk/id/local-authority/24UE,OTHER REVENUE ACCOUNTS,RV,NON WORK GROUP HOLDING ACCOUNT,RV18,DEPT OF SUPPORT SERVICES,SUPPLIES & SERVICES,4,Information Communication Technology,27,ICT HARDWARE,4532,25/07/2019,653188,508.00 ,Revenue,ASPIRE TECHNOLOGY SOLUTIONS LTD,06031628
Fareham Borough Council,http://statistics.data.gov.uk/id/local-authority/24UE,OTHER REVENUE ACCOUNTS,RV,NON WORK GROUP HOLDING ACCOUNT,RV18,DEPT OF SUPPORT SERVICES,SUPPLIES & SERVICES,4,Information Communication Technology,27,ICT HARDWARE,4532,25/07/2019,653188,508.00 ,Revenue,ASPIRE TECHNOLOGY SOLUTIONS LTD,06031628
Fareham Borough Council,http://statistics.data.gov.uk/id/local-authority/24UE,OTHER REVENUE ACCOUNTS,RV,NON WORK GROUP HOLDING ACCOUNT,RV18,DEPT OF SUPPORT SERVICES,SUPPLIES & SERVICES,4,Information Communication Technology,27,ICT HARDWARE,4532,25/07/2019,653188,300.00 ,Revenue,ASPIRE TECHNOLOGY SOLUTIONS LTD,06031628
Fareham Borough Council,http://statistics.data.gov.uk/id/local-authority/24UE,OTHER REVENUE ACCOUNTS,RV,NON WORK GROUP HOLDING ACCOUNT,RV18,DEPT OF SUPPORT SERVICES,SUPPLIES & SERVICES,4,Information Communication Technology,27,ICT DATA LINES,4535,25/07/2019,653188,368.00 ,Revenue,ASPIRE TECHNOLOGY SOLUTIONS LTD,06031628
Fareham Borough Council,http://statistics.data.gov.uk/id/local-authority/24UE,OTHER REVENUE ACCOUNTS,RV,NON WORK GROUP HOLDING ACCOUNT,RV18,DEPT OF SUPPORT SERVICES,SUPPLIES & SERVICES,4,Information Communication Technology,27,ICT DATA LINES,4535,25/07/2019,653188,319.00 ,Revenue,ASPIRE TECHNOLOGY SOLUTIONS LTD,06031628
Fareham Borough Council,http://statistics.data.gov.uk/id/local-authority/24UE,CENTRAL SERVICES,BV07,CENTRAL SERVICES TO THE PUBLIC,BV07B,DEPT OF SUPPORT SERVICES,SUPPLIES & SERVICES,4,Facilities & Management Services,19,POSTAGES,4500,25/07/2019,653189,13763.35 ,Revenue,FINANCIAL DATA MANAGEMENT LTD,2827644
Fareham Borough Council,http://statistics.data.gov.uk/id/local-authority/24UE,CENTRAL SERVICES,BV07,CENTRAL SERVICES TO THE PUBLIC,BV07B,DEPT OF DEPUTY CHIEF EXECUTIVE,SUPPLIES & SERVICES,4,Information Communication Technology,27,TELEPHONES,4510,25/07/2019,653193,45.21 ,Revenue,4SIGHT COMMUNICATIONS LTD,8160359
Fareham Borough Council,http://statistics.data.gov.uk/id/local-authority/24UE,CULTURAL AND RELATED SERVICES,BV09,CULTURE AND HERITAGE,BV09A,DEPT OF LEISURE & COMMUNITY,SUPPLIES & SERVICES,4,Information Communication Technology,27,TELEPHONES,4510,25/07/2019,653193,67.41 ,Revenue,4SIGHT COMMUNICATIONS LTD,8160359
Fareham Borough Council,http://statistics.data.gov.uk/id/local-authority/24UE,CULTURAL AND RELATED SERVICES,BV09,RECREATION AND SPORT,BV09B,STREETSCENE,SUPPLIES & SERVICES,4,Information Communication Technology,27,TELEPHONES,4510,25/07/2019,653193,13.74 ,Revenue,4SIGHT COMMUNICATIONS LTD,8160359
Fareham Borough Council,http://statistics.data.gov.uk/id/local-authority/24UE,HIGHWAYS ROADS AND TRANSPORT,BV12,PARKING SERVICES,BV12D,DEPT OF LEISURE & COMMUNITY,SUPPLIES & SERVICES,4,Information Communication Technology,27,TELEPHONES,4510,25/07/2019,653193,41.71 ,Revenue,4SIGHT COMMUNICATIONS LTD,8160359
Fareham Borough Council,http://statistics.data.gov.uk/id/local-authority/24UE,HOUSING REVENUE ACCOUNT,BV06,SHELTERED HOUSING SERVICE,5031,DEPT OF DEPUTY CHIEF EXECUTIVE,SUPPLIES & SERVICES,4,Information Communication Technology,27,TELEPHONES,4510,25/07/2019,653193,235.75 ,Revenue,4SIGHT COMMUNICATIONS LTD,8160359
Fareham Borough Council,http://statistics.data.gov.uk/id/local-authority/24UE,HOUSING REVENUE ACCOUNT,BV06,SHELTERED HOUSING SERVICE,5031,DEPT OF DEPUTY CHIEF EXECUTIVE,PREMISES RELATED EXPENDITURE,2,Information Communication Technology,27,R & M ALARM SPEECH SYSTEMS,2027,25/07/2019,653193,157.95 ,Revenue,4SIGHT COMMUNICATIONS LTD,8160359
Fareham Borough Council,http://statistics.data.gov.uk/id/local-authority/24UE,CAPITAL PROGRAMME - HOUSING SERVICES,CP,RENOVATION OF L.A. DWELLINGS,CP10,CAPITAL - FAREHAM HOUSING CAPITAL,SUPPLIES & SERVICES,4,Information Communication Technology,27,TELEPHONES,4510,25/07/2019,653193,15.73 ,Capital,4SIGHT COMMUNICATIONS LTD,8160359
Fareham Borough Council,http://statistics.data.gov.uk/id/local-authority/24UE,OTHER REVENUE ACCOUNTS,RV,NON WORK GROUP HOLDING ACCOUNT,RV18,DEPT OF LEISURE & COMMUNITY,SUPPLIES & SERVICES,4,Information Communication Technology,27,TELEPHONES,4510,25/07/2019,653193,12.25 ,Revenue,4SIGHT COMMUNICATIONS LTD,8160359
Fareham Borough Council,http://statistics.data.gov.uk/id/local-authority/24UE,OTHER REVENUE ACCOUNTS,RV,NON WORK GROUP HOLDING ACCOUNT,RV18,DEPT OF SUPPORT SERVICES,SUPPLIES & SERVICES,4,Information Communication Technology,27,TELEPHONES,4510,25/07/2019,653193,604.23 ,Revenue,4SIGHT COMMUNICATIONS LTD,8160359
Fareham Borough Council,http://statistics.data.gov.uk/id/local-authority/24UE,ENVIRONMENT AND REGULATORY SER,BV03,WASTE COLLECTION,BV03G,STREETSCENE,SUPPLIES & SERVICES,4,Stationery,34,EXTERNAL PRINTING,4310,25/07/2019,653194,755.00 ,Revenue,EURO LABEL PRINTERS LTD,01175435
Fareham Borough Council,http://statistics.data.gov.uk/id/local-authority/24UE,GENERAL FUND HOUSING,BV05,HOUSING ADVICE,BV05C,DEPT OF DEPUTY CHIEF EXECUTIVE,SUPPLIES & SERVICES,4,Social Community Care Supplies & Services,32,GRANTS AND SUBSCRIPTIONS,4700,25/07/2019,653200,14462.50 ,Revenue,TWO SAINTS LTD,IP26511R
Fareham Borough Council,http://statistics.data.gov.uk/id/local-authority/24UE,PLANNING SERVICES,BV13,PLANNING POLICY,BV13C,DEPT of STRATEGIC PLANNING and ENVIRONMENT,SUPPLIES & SERVICES,4,Consultancy,15,CONSULTANTS FEES,4401,25/07/2019,653206,4431.50 ,Revenue,LICHFIELDS,02420307
Fareham Borough Council,http://statistics.data.gov.uk/id/local-authority/24UE,HOUSING REVENUE ACCOUNT,BV06,GENERAL ADMINISTRATION EXPENSE,5021,DEPT OF DEPUTY CHIEF EXECUTIVE,EMPLOYEES RELATED EXPENDITURE,1,Human Resources,26,AGENCY WORKERS,1050,25/07/2019,653207,814.38 ,Revenue,JAMES ANDREWS RECRUITMENT SOLUTIONS LTD,06834852
Fareham Borough Council,http://statistics.data.gov.uk/id/local-authority/24UE,OTHER REVENUE ACCOUNTS,RV,NON WORK GROUP HOLDING ACCOUNT,RV18,DEPT OF SUPPORT SERVICES,SUPPLIES & SERVICES,4,Information Communication Technology,27,FURNITURE & EQUIPT. PURCHASES,4000,25/07/2019,653208,551.00 ,Revenue,POWER TECNIQUE LIMITED,02643516
Fareham Borough Council,http://statistics.data.gov.uk/id/local-authority/24UE,CAPITAL PROGRAMME - HOUSING SERVICES,CP,RENOVATION OF L.A. DWELLINGS,CP10,CAPITAL - FAREHAM HOUSING CAPITAL,PREMISES RELATED EXPENDITURE,2,Social Community Care Supplies & Services,32,GENERAL REPAIRS,2018,25/07/2019,653232,130.00 ,Capital,SCOOTER STORE LIMITED,3141502
Fareham Borough Council,http://statistics.data.gov.uk/id/local-authority/24UE,CAPITAL PROGRAMME - HOUSING SERVICES,CP,RENOVATION OF L.A. DWELLINGS,CP10,CAPITAL - FAREHAM HOUSING CAPITAL,PREMISES RELATED EXPENDITURE,2,Social Community Care Supplies & Services,32,GENERAL REPAIRS,2018,25/07/2019,653232,970.00 ,Capital,SCOOTER STORE LIMITED,3141502
Fareham Borough Council,http://statistics.data.gov.uk/id/local-authority/24UE,CAPITAL PROGRAMME - HOUSING SERVICES,CP,RENOVATION OF L.A. DWELLINGS,CP10,CAPITAL - FAREHAM HOUSING CAPITAL,PREMISES RELATED EXPENDITURE,2,Social Community Care Supplies & Services,32,GENERAL REPAIRS,2018,25/07/2019,653232,-1100.00 ,Capital,SCOOTER STORE LIMITED,3141502
Fareham Borough Council,http://statistics.data.gov.uk/id/local-authority/24UE,CAPITAL PROGRAMME - HOUSING SERVICES,CP,RENOVATION OF L.A. DWELLINGS,CP10,CAPITAL - FAREHAM HOUSING CAPITAL,PREMISES RELATED EXPENDITURE,2,Social Community Care Supplies & Services,32,GENERAL REPAIRS,2018,25/07/2019,653232,1100.00 ,Capital,SCOOTER STORE LIMITED,3141502
Fareham Borough Council,http://statistics.data.gov.uk/id/local-authority/24UE,CULTURAL AND RELATED SERVICES,BV09,RECREATION AND SPORT,BV09B,STREETSCENE,PREMISES RELATED EXPENDITURE,2,Horticultural,24,R&M OF TREE PRESERVATION,2063,25/07/2019,653236,56.00 ,Revenue,CEDAR TREE SURGEONS,
Fareham Borough Council,http://statistics.data.gov.uk/id/local-authority/24UE,CULTURAL AND RELATED SERVICES,BV09,RECREATION AND SPORT,BV09B,STREETSCENE,PREMISES RELATED EXPENDITURE,2,Horticultural,24,R&M OF TREE PRESERVATION,2063,25/07/2019,653236,915.00 ,Revenue,CEDAR TREE SURGEONS,
Fareham Borough Council,http://statistics.data.gov.uk/id/local-authority/24UE,CULTURAL AND RELATED SERVICES,BV09,RECREATION AND SPORT,BV09B,STREETSCENE,PREMISES RELATED EXPENDITURE,2,Horticultural,24,R&M OF TREE PRESERVATION,2063,25/07/2019,653236,56.50 ,Revenue,CEDAR TREE SURGEONS,
Fareham Borough Council,http://statistics.data.gov.uk/id/local-authority/24UE,CULTURAL AND RELATED SERVICES,BV09,RECREATION AND SPORT,BV09B,STREETSCENE,PREMISES RELATED EXPENDITURE,2,Horticultural,24,R&M OF TREE PRESERVATION,2063,25/07/2019,653236,111.00 ,Revenue,CEDAR TREE SURGEONS,
Fareham Borough Council,http://statistics.data.gov.uk/id/local-authority/24UE,HIGHWAYS ROADS AND TRANSPORT,BV12,PARKING SERVICES,BV12D,DEPT OF LEISURE & COMMUNITY,PREMISES RELATED EXPENDITURE,2,Horticultural,24,R&M OF TREE PRESERVATION,2063,25/07/2019,653236,134.00 ,Revenue,CEDAR TREE SURGEONS,
Fareham Borough Council,http://statistics.data.gov.uk/id/local-authority/24UE,HOUSING REVENUE ACCOUNT,BV06,MAINT OF LAWNS VERGES ETC,5030,DEPT OF DEPUTY CHIEF EXECUTIVE,PREMISES RELATED EXPENDITURE,2,Horticultural,24,R&M OF TREE PRESERVATION,2063,25/07/2019,653236,44.50 ,Revenue,CEDAR TREE SURGEONS,
Fareham Borough Council,http://statistics.data.gov.uk/id/local-authority/24UE,HOUSING REVENUE ACCOUNT,BV06,MAINT OF LAWNS VERGES ETC,5030,DEPT OF DEPUTY CHIEF EXECUTIVE,PREMISES RELATED EXPENDITURE,2,Horticultural,24,R&M OF TREE PRESERVATION,2063,25/07/2019,653236,104.50 ,Revenue,CEDAR TREE SURGEONS,
Fareham Borough Council,http://statistics.data.gov.uk/id/local-authority/24UE,HOUSING REVENUE ACCOUNT,BV06,MAINT OF LAWNS VERGES ETC,5030,DEPT OF DEPUTY CHIEF EXECUTIVE,PREMISES RELATED EXPENDITURE,2,Horticultural,24,R&M OF TREE PRESERVATION,2063,25/07/2019,653236,45.00 ,Revenue,CEDAR TREE SURGEONS,
Fareham Borough Council,http://statistics.data.gov.uk/id/local-authority/24UE,HOUSING REVENUE ACCOUNT,BV06,MAINT OF LAWNS VERGES ETC,5030,DEPT OF DEPUTY CHIEF EXECUTIVE,PREMISES RELATED EXPENDITURE,2,Horticultural,24,R&M OF TREE PRESERVATION,2063,25/07/2019,653236,101.50 ,Revenue,CEDAR TREE SURGEONS,
Fareham Borough Council,http://statistics.data.gov.uk/id/local-authority/24UE,ENVIRONMENT AND REGULATORY SER,BV03,ENVIRONMENTAL HEALTH,BV03C,DEPT OF SUPPORT SERVICES,SUPPLIES & SERVICES,4,Local/Central Government,,MANAGEMENT SERVICES,4422,25/07/2019,653281,14736.73 ,Revenue,GOSPORT BOROUGH COUNCIL,
Fareham Borough Council,http://statistics.data.gov.uk/id/local-authority/24UE,ENVIRONMENT AND REGULATORY SER,BV03,ENVIRONMENTAL HEALTH,BV03C,DEPT OF SUPPORT SERVICES,SUPPLIES & SERVICES,4,Local/Central Government,,TELEPHONES,4510,25/07/2019,653282,5000.00 ,Revenue,GOSPORT BOROUGH COUNCIL,
Fareham Borough Council,http://statistics.data.gov.uk/id/local-authority/24UE,HOUSING REVENUE ACCOUNT,BV06,RESPONSIVE & VOID MAINTENANCE,5901,DEPT OF DEPUTY CHIEF EXECUTIVE,PREMISES RELATED EXPENDITURE,2,"Works - Construction, Repair & Maintenance",39,GENERAL REPAIRS,2018,25/07/2019,653329,2423.50 ,Revenue,IGS FENCING LTD,6438562
Fareham Borough Council,http://statistics.data.gov.uk/id/local-authority/24UE,CAPITAL PROGRAMME - HOUSING SERVICES,CP,RENOVATION OF L.A. DWELLINGS,CP10,CAPITAL - FAREHAM HOUSING CAPITAL,PREMISES RELATED EXPENDITURE,2,Building Construction Materials,10,GENERAL REPAIRS,2018,25/07/2019,653330,3305.00 ,Capital,IDEAL WINDOW SOLUTIONS LIMITED,3623785
Fareham Borough Council,http://statistics.data.gov.uk/id/local-authority/24UE,HOUSING REVENUE ACCOUNT,BV06,RESPONSIVE & VOID MAINTENANCE,5901,DEPT OF DEPUTY CHIEF EXECUTIVE,PREMISES RELATED EXPENDITURE,2,Environmental Services,18,GENERAL REPAIRS,2018,25/07/2019,653332,539.00 ,Revenue,RENTOKILL PEST CONTROL,301044
Fareham Borough Council,http://statistics.data.gov.uk/id/local-authority/24UE,CAPITAL PROGRAMME - HOUSING SERVICES,CP,RENOVATION OF L.A. DWELLINGS,CP10,CAPITAL - FAREHAM HOUSING CAPITAL,PREMISES RELATED EXPENDITURE,2,Building Construction Materials,10,GENERAL REPAIRS,2018,25/07/2019,653334,1621.00 ,Capital,IDEAL WINDOW SOLUTIONS LIMITED,3623785
Fareham Borough Council,http://statistics.data.gov.uk/id/local-authority/24UE,CULTURAL AND RELATED SERVICES,BV09,RECREATION AND SPORT,BV09B,STREETSCENE,PREMISES RELATED EXPENDITURE,2,"Works - Construction, Repair & Maintenance",39,R & M OF FENCING,2061,25/07/2019,653336,158.17 ,Revenue,BEAVEN GROUNDWORKS,
Fareham Borough Council,http://statistics.data.gov.uk/id/local-authority/24UE,CULTURAL AND RELATED SERVICES,BV09,CULTURE AND HERITAGE,BV09A,DEPT OF LEISURE & COMMUNITY,PREMISES RELATED EXPENDITURE,2,"Works - Construction, Repair & Maintenance",39,R & M OF BUILDINGS,2000,25/07/2019,653336,36.30 ,Revenue,BEAVEN GROUNDWORKS,
Fareham Borough Council,http://statistics.data.gov.uk/id/local-authority/24UE,CULTURAL AND RELATED SERVICES,BV09,RECREATION AND SPORT,BV09B,DEPT OF LEISURE & COMMUNITY,PREMISES RELATED EXPENDITURE,2,"Works - Construction, Repair & Maintenance",39,R & M OF BUILDINGS,2000,25/07/2019,653336,425.04 ,Revenue,BEAVEN GROUNDWORKS,
Fareham Borough Council,http://statistics.data.gov.uk/id/local-authority/24UE,CAPITAL PROGRAMME - HOUSING SERVICES,CP,RENOVATION OF L.A. DWELLINGS,CP10,CAPITAL - FAREHAM HOUSING CAPITAL,PREMISES RELATED EXPENDITURE,2,"Works - Construction, Repair & Maintenance",39,GENERAL REPAIRS,2018,25/07/2019,653336,3623.82 ,Capital,BEAVEN GROUNDWORKS,
Fareham Borough Council,http://statistics.data.gov.uk/id/local-authority/24UE,HOUSING REVENUE ACCOUNT,BV06,RESPONSIVE & VOID MAINTENANCE,5901,DEPT OF DEPUTY CHIEF EXECUTIVE,PREMISES RELATED EXPENDITURE,2,"Works - Construction, Repair & Maintenance",39,GENERAL REPAIRS,2018,25/07/2019,653336,7128.45 ,Revenue,BEAVEN GROUNDWORKS,
Fareham Borough Council,http://statistics.data.gov.uk/id/local-authority/24UE,HOUSING REVENUE ACCOUNT,BV06,RESPONSIVE & VOID MAINTENANCE,5901,DEPT OF DEPUTY CHIEF EXECUTIVE,PREMISES RELATED EXPENDITURE,2,"Works - Construction, Repair & Maintenance",39,GENERAL REPAIRS,2018,25/07/2019,653336,8665.21 ,Revenue,BEAVEN GROUNDWORKS,
Fareham Borough Council,http://statistics.data.gov.uk/id/local-authority/24UE,HOUSING REVENUE ACCOUNT,BV06,RESPONSIVE & VOID MAINTENANCE,5901,DEPT OF DEPUTY CHIEF EXECUTIVE,PREMISES RELATED EXPENDITURE,2,"Works - Construction, Repair & Maintenance",39,GENERAL REPAIRS,2018,25/07/2019,653336,-15793.66 ,Revenue,BEAVEN GROUNDWORKS,
Fareham Borough Council,http://statistics.data.gov.uk/id/local-authority/24UE,HOUSING REVENUE ACCOUNT,BV06,RESPONSIVE & VOID MAINTENANCE,5901,DEPT OF DEPUTY CHIEF EXECUTIVE,PREMISES RELATED EXPENDITURE,2,"Works - Construction, Repair & Maintenance",39,GENERAL REPAIRS,2018,25/07/2019,653336,15793.66 ,Revenue,BEAVEN GROUNDWORKS,
Fareham Borough Council,http://statistics.data.gov.uk/id/local-authority/24UE,HOUSING REVENUE ACCOUNT,BV06,RESPONSIVE & VOID MAINTENANCE,5901,DEPT OF DEPUTY CHIEF EXECUTIVE,PREMISES RELATED EXPENDITURE,2,"Works - Construction, Repair & Maintenance",39,VOID COSTS - NOT RECHARGEABLE,2011,25/07/2019,653336,698.45 ,Revenue,BEAVEN GROUNDWORKS,
